{"text_format":"1","workbook":"xlsx","n_sheets":8,"sheets":["ACCUEIL","COMBATPOULE","MONBAREME","SAELEVE1","REFERENTIELS","APPEL","DEBUT","SAMICBIS"],"not_rendered":{"charts":1,"images":59,"macros":0,"external_links":0,"defined_names":13,"comments":1,"pivot_tables":0},"unopened":[],"bounds":{"document_bytes":16777216,"sheet_cells":100000,"rows_first":2000,"rows_last":500,"rows_between":2000,"halvings":0,"cell_chars":16384,"cell_head_chars":4096},"cells_cut":0,"cells_raw":0,"read":"whole","date_system":"1900"}

{"sheet":"ACCUEIL","index":0,"n_rows":25,"n_cols":6,"rows_kept":25,"cut":false,"hidden":false,"merged":[]}
[]
[]
[]
[null,null,null,null,null,"1- Avant de commencer : dupliquez ce document et renommez le selon vos envies"]
[null,"ACCUEIL","CLASSES","DEBUT",null,"2- Supprimez les onglets et boutons inutiles (les colonnes et lignes aussi)"]
[null,null,null,null,null,"3- Créez votre appli"]
[]
[null,null,"COMBAT POULE"]
[]
[]
[null,"APP1","APP2","APP3"]
[]
[]
[]
[]
[]
[null,"SA"]
[]
[]
[]
[]
[]
[]
[]
[null,"Niveau 3","Niveau 4","Evaluation Cycle"]

{"sheet":"COMBATPOULE","index":1,"n_rows":109,"n_cols":97,"rows_kept":109,"cut":false,"hidden":false,"merged":[[1,25,2,34],[8,4,8,5],[7,25,7,34],[3,25,3,34],[4,25,4,34],[5,25,5,34],[6,25,6,34],[3,4,3,5],[4,4,4,5],[5,4,5,5],[6,4,6,5],[7,4,7,5],[9,3,9,4],[10,3,10,4],[9,6,9,7],[10,6,10,7],[9,9,9,10],[10,9,10,10],[9,15,9,16],[9,18,9,19],[10,15,10,16],[10,18,10,19],[19,9,19,10],[19,15,19,16],[9,12,9,13],[10,12,10,13],[10,61,10,66],[68,9,68,10],[68,15,68,16],[78,9,78,10],[78,15,78,16],[10,31,10,36],[10,37,10,42],[10,43,10,48],[10,49,10,54],[29,9,29,10],[29,15,29,16],[39,9,39,10],[39,15,39,16],[49,9,49,10],[49,15,49,16],[59,9,59,10],[98,9,98,10],[98,15,98,16],[108,9,108,10],[108,15,108,16],[10,55,10,60],[59,15,59,16],[88,9,88,10],[88,15,88,16]]}
[null,"Classe "]
[null,"STAGE",null,null,"ACCUEIL",null,null,null,null,null,null,null,null,null,null,null,null,null,null,null,null,null,null,null,null,"Tout le monde se rencontre "]
[]
[null,"Elèves",null,"VICTOIRES","1 POINT",null,"10 points","100 points",null,"CLASSEMENT",null,null,null,null,null,null,null,null,null,null,null,null,null,null,null,"Chaque combat dure 6 manches de 30 secondes",null,null,null,null,null,null,null,null,null,null,null,null,null,null,null,null,null,null,null,null,null,null,null,null,null,null,null,null,null,null,null,null,null,null,null,null,null,null,null,null,null,null,null,"1 PT","10 PT","100PT","V",null,null,"1 PT","10 PT","100PT","V",null,null,"1 PT","10 PT","100PT","V",null,null,"1 PT","10 PT","100PT","V",null,null,"1 PT","10 PT","100PT","V"]
["A","Audrey",null,null,{"$f":"BR5+BX5+CD5+CJ5+CP5","v":1},null,{"$f":"BS5+BY5+CE5+CK5","v":4},{"$f":"BT5+BZ5+CF5+CL5","v":1},null,null,null,null,null,null,null,null,null,null,null,null,null,null,null,null,null,"Pour gagner le combat il faut marquer plus de points que son adversaire",null,null,null,null,null,null,null,null,null,null,null,null,null,null,null,null,null,null,null,null,null,null,null,null,null,null,null,null,null,null,null,null,null,null,null,null,null,null,null,null,null,null,{"$f":"$B5&\"_1\"","v":"Audrey_1"},{"$f":"IFERROR(VLOOKUP(BQ5,$BP$12:$BT$115,3,FALSE),0)","v":1},{"$f":"IFERROR(VLOOKUP(BQ5,$BP$12:$BT$115,4,FALSE),0)","v":4},{"$f":"IFERROR(VLOOKUP(BQ5,$BP$12:$BT$115,5,FALSE),0)","v":1},null,null,{"$f":"$B5&\"_2\"","v":"Audrey_2"},{"$f":"IFERROR(VLOOKUP(BW5,$BP$12:$BT$115,3,FALSE),0)","v":0},{"$f":"IFERROR(VLOOKUP(BW5,$BP$12:$BT$115,4,FALSE),0)","v":0},{"$f":"IFERROR(VLOOKUP(BW5,$BP$12:$BT$115,5,FALSE),0)","v":0},null,null,{"$f":"$B5&\"_3\"","v":"Audrey_3"},{"$f":"IFERROR(VLOOKUP(CC5,$BP$12:$BT$115,3,FALSE),0)","v":0},{"$f":"IFERROR(VLOOKUP(CC5,$BP$12:$BT$115,4,FALSE),0)","v":0},{"$f":"IFERROR(VLOOKUP(CC5,$BP$12:$BT$115,5,FALSE),0)","v":0},null,null,{"$f":"$B5&\"_4\"","v":"Audrey_4"},{"$f":"IFERROR(VLOOKUP(CI5,$BP$12:$BT$115,3,FALSE),0)","v":0},{"$f":"IFERROR(VLOOKUP(CI5,$BP$12:$BT$115,4,FALSE),0)","v":0},{"$f":"IFERROR(VLOOKUP(CI5,$BP$12:$BT$115,5,FALSE),0)","v":0},null,null,{"$f":"$B5&\"_5\"","v":"Audrey_5"},{"$f":"IFERROR(VLOOKUP(CO5,$BP$12:$BT$115,3,FALSE),0)","v":0},{"$f":"IFERROR(VLOOKUP(CO5,$BP$12:$BT$115,4,FALSE),0)","v":0},{"$f":"IFERROR(VLOOKUP(CO5,$BP$12:$BT$115,5,FALSE),0)","v":0}]
["B","jean",null,null,{"$f":"BR6+BX6+CD6+CJ6+CP6","v":0},null,{"$f":"BS6+BY6+CE6+CK6","v":4},{"$f":"BT6+BZ6+CF6+CL6","v":0},null,null,null,null,null,null,null,null,null,null,null,null,null,null,null,null,null,"On marque 100 points pour un tombé",null,null,null,null,null,null,null,null,null,null,null,null,null,null,null,null,null,null,null,null,null,null,null,null,null,null,null,null,null,null,null,null,null,null,null,null,null,null,null,null,null,null,{"$f":"$B6&\"_1\"","v":"jean_1"},{"$f":"IFERROR(VLOOKUP(BQ6,$BP$12:$BT$115,3,FALSE),0)","v":0},{"$f":"IFERROR(VLOOKUP(BQ6,$BP$12:$BT$115,4,FALSE),0)","v":3},{"$f":"IFERROR(VLOOKUP(BQ6,$BP$12:$BT$115,5,FALSE),0)","v":0},null,null,{"$f":"$B6&\"_2\"","v":"jean_2"},{"$f":"IFERROR(VLOOKUP(BW6,$BP$12:$BT$115,3,FALSE),0)","v":0},{"$f":"IFERROR(VLOOKUP(BW6,$BP$12:$BT$115,4,FALSE),0)","v":0},{"$f":"IFERROR(VLOOKUP(BW6,$BP$12:$BT$115,5,FALSE),0)","v":0},null,null,{"$f":"$B6&\"_3\"","v":"jean_3"},{"$f":"IFERROR(VLOOKUP(CC6,$BP$12:$BT$115,3,FALSE),0)","v":0},{"$f":"IFERROR(VLOOKUP(CC6,$BP$12:$BT$115,4,FALSE),0)","v":0},{"$f":"IFERROR(VLOOKUP(CC6,$BP$12:$BT$115,5,FALSE),0)","v":0},null,null,{"$f":"$B6&\"_4\"","v":"jean_4"},{"$f":"IFERROR(VLOOKUP(CI6,$BP$12:$BT$115,3,FALSE),0)","v":0},{"$f":"IFERROR(VLOOKUP(CI6,$BP$12:$BT$115,4,FALSE),0)","v":1},{"$f":"IFERROR(VLOOKUP(CI6,$BP$12:$BT$115,5,FALSE),0)","v":0},null,null,{"$f":"$B6&\"_5\"","v":"jean_5"},{"$f":"IFERROR(VLOOKUP(CO6,$BP$12:$BT$115,3,FALSE),0)","v":0},{"$f":"IFERROR(VLOOKUP(CO6,$BP$12:$BT$115,4,FALSE),0)","v":0},{"$f":"IFERROR(VLOOKUP(CO6,$BP$12:$BT$115,5,FALSE),0)","v":0}]
["C","abdel",null,null,0,null,0,0,null,null,null,null,null,null,null,null,null,null,null,null,null,null,null,null,null,"10 points pour une mise en danger ",null,null,null,null,null,null,null,null,null,null,null,null,null,null,null,null,null,null,null,null,null,null,null,null,null,null,null,null,null,null,null,null,null,null,null,null,null,null,null,null,null,null,"abdel_1",{"$f":"IFERROR(VLOOKUP(BQ7,$BP$12:$BT$115,3,FALSE),0)","v":0},{"$f":"IFERROR(VLOOKUP(BQ7,$BP$12:$BT$115,4,FALSE),0)","v":0},{"$f":"IFERROR(VLOOKUP(BQ7,$BP$12:$BT$115,5,FALSE),0)","v":0},null,null,"abdel_2",{"$f":"IFERROR(VLOOKUP(BW7,$BP$12:$BT$115,3,FALSE),0)","v":0},{"$f":"IFERROR(VLOOKUP(BW7,$BP$12:$BT$115,4,FALSE),0)","v":0},{"$f":"IFERROR(VLOOKUP(BW7,$BP$12:$BT$115,5,FALSE),0)","v":0},null,null,"abdel_3",{"$f":"IFERROR(VLOOKUP(CC7,$BP$12:$BT$115,3,FALSE),0)","v":0},{"$f":"IFERROR(VLOOKUP(CC7,$BP$12:$BT$115,4,FALSE),0)","v":0},{"$f":"IFERROR(VLOOKUP(CC7,$BP$12:$BT$115,5,FALSE),0)","v":0},null,null,"abdel_4",{"$f":"IFERROR(VLOOKUP(CI7,$BP$12:$BT$115,3,FALSE),0)","v":0},{"$f":"IFERROR(VLOOKUP(CI7,$BP$12:$BT$115,4,FALSE),0)","v":0},{"$f":"IFERROR(VLOOKUP(CI7,$BP$12:$BT$115,5,FALSE),0)","v":0},null,null,"abdel_5",{"$f":"IFERROR(VLOOKUP(CO7,$BP$12:$BT$115,3,FALSE),0)","v":0},{"$f":"IFERROR(VLOOKUP(CO7,$BP$12:$BT$115,4,FALSE),0)","v":0},{"$f":"IFERROR(VLOOKUP(CO7,$BP$12:$BT$115,5,FALSE),0)","v":0}]
["D","mic",null,null,0,null,1,3,null,null,null,null,null,null,null,null,null,null,null,null,null,null,null,null,null,"1 point pour une sortie de tapis",null,null,null,null,null,null,null,null,null,null,null,null,null,null,null,null,null,null,null,null,null,null,null,null,null,null,null,null,null,null,null,null,null,null,null,null,null,null,null,null,null,null,"mic_1",{"$f":"IFERROR(VLOOKUP(BQ8,$BP$12:$BT$115,3,FALSE),0)","v":0},{"$f":"IFERROR(VLOOKUP(BQ8,$BP$12:$BT$115,4,FALSE),0)","v":1},{"$f":"IFERROR(VLOOKUP(BQ8,$BP$12:$BT$115,5,FALSE),0)","v":3},null,null,"mic_2",{"$f":"IFERROR(VLOOKUP(BW8,$BP$12:$BT$115,3,FALSE),0)","v":0},{"$f":"IFERROR(VLOOKUP(BW8,$BP$12:$BT$115,4,FALSE),0)","v":0},{"$f":"IFERROR(VLOOKUP(BW8,$BP$12:$BT$115,5,FALSE),0)","v":0},null,null,"mic_3",{"$f":"IFERROR(VLOOKUP(CC8,$BP$12:$BT$115,3,FALSE),0)","v":0},{"$f":"IFERROR(VLOOKUP(CC8,$BP$12:$BT$115,4,FALSE),0)","v":0},{"$f":"IFERROR(VLOOKUP(CC8,$BP$12:$BT$115,5,FALSE),0)","v":0},null,null,"mic_4",{"$f":"IFERROR(VLOOKUP(CI8,$BP$12:$BT$115,3,FALSE),0)","v":0},{"$f":"IFERROR(VLOOKUP(CI8,$BP$12:$BT$115,4,FALSE),0)","v":0},{"$f":"IFERROR(VLOOKUP(CI8,$BP$12:$BT$115,5,FALSE),0)","v":0},null,null,"mic_5",{"$f":"IFERROR(VLOOKUP(CO8,$BP$12:$BT$115,3,FALSE),0)","v":0},{"$f":"IFERROR(VLOOKUP(CO8,$BP$12:$BT$115,4,FALSE),0)","v":0},{"$f":"IFERROR(VLOOKUP(CO8,$BP$12:$BT$115,5,FALSE),0)","v":0}]
["E","Nadine",null,null,0,null,3,0,null,null,null,null,null,null,null,null,null,null,null,null,null,null,null,null,null,null,null,null,null,null,null,null,null,null,null,null,null,null,null,null,null,null,null,null,null,null,null,null,null,null,null,null,null,null,null,null,null,null,null,null,null,null,null,null,null,null,null,null,"Nadine_1",{"$f":"IFERROR(VLOOKUP(BQ9,$BP$12:$BT$115,3,FALSE),0)","v":0},{"$f":"IFERROR(VLOOKUP(BQ9,$BP$12:$BT$115,4,FALSE),0)","v":3},{"$f":"IFERROR(VLOOKUP(BQ9,$BP$12:$BT$115,5,FALSE),0)","v":0},null,null,"Nadine_2",{"$f":"IFERROR(VLOOKUP(BW9,$BP$12:$BT$115,3,FALSE),0)","v":0},{"$f":"IFERROR(VLOOKUP(BW9,$BP$12:$BT$115,4,FALSE),0)","v":0},{"$f":"IFERROR(VLOOKUP(BW9,$BP$12:$BT$115,5,FALSE),0)","v":0},null,null,"Nadine_3",{"$f":"IFERROR(VLOOKUP(CC9,$BP$12:$BT$115,3,FALSE),0)","v":0},{"$f":"IFERROR(VLOOKUP(CC9,$BP$12:$BT$115,4,FALSE),0)","v":0},{"$f":"IFERROR(VLOOKUP(CC9,$BP$12:$BT$115,5,FALSE),0)","v":0},null,null,"Nadine_4",{"$f":"IFERROR(VLOOKUP(CI9,$BP$12:$BT$115,3,FALSE),0)","v":0},{"$f":"IFERROR(VLOOKUP(CI9,$BP$12:$BT$115,4,FALSE),0)","v":0},{"$f":"IFERROR(VLOOKUP(CI9,$BP$12:$BT$115,5,FALSE),0)","v":0},null,null,"Nadine_5",{"$f":"IFERROR(VLOOKUP(CO9,$BP$12:$BT$115,3,FALSE),0)","v":0},{"$f":"IFERROR(VLOOKUP(CO9,$BP$12:$BT$115,4,FALSE),0)","v":0},{"$f":"IFERROR(VLOOKUP(CO9,$BP$12:$BT$115,5,FALSE),0)","v":0}]
[null,null,null,"MANCHE 1",null,null,"MANCHE 2",null,null,"MANCHE 3",null,null,"MANCHE 4",null,null,"MANCHE 5",null,null,"MANCHE 6"]
[null,null,null,"A CONTRÔLE BRAS TETE",null,null,"B CONTRÔLE BRAS TETE",null,null,"A CONTRÔLE JAMBE",null,null,"B CONTRÔLE JAMBE",null,null,"A CONTRÔLE AU CHOIX",null,null,"B CONTRÔLE AU CHOIX",null,null,null,null,null,null,null,null,null,null,null,null,"MANCHE 1",null,null,null,null,null,"MANCHE 2",null,null,null,null,null,"MANCHE 3",null,null,null,null,null,"MANCHE 4",null,null,null,null,null,"MANCHE 5",null,null,null,null,null,"MANCHE 6",null,null,null,null,null,null,null,"1 POINT","10 pts","100 pts","N° incrémentation","V"]
[null,"COMBAT 1",null,{"$f":"$B$5","v":"Audrey"},{"$f":"$B$6","v":"jean"},null,{"$f":"$D12","v":"Audrey"},{"$f":"$E12","v":"jean"},null,{"$f":"$D12","v":"Audrey"},{"$f":"$E12","v":"jean"},null,{"$f":"$D12","v":"Audrey"},{"$f":"$E12","v":"jean"},null,{"$f":"$D12","v":"Audrey"},{"$f":"$E12","v":"jean"},null,{"$f":"$D12","v":"Audrey"},{"$f":"$E12","v":"jean"},null,null,null,null,null,null,null,null,null,null,{"$f":"D12","v":"Audrey"},{"$f":"OFFSET($D13,0,0)","v":10},{"$f":"OFFSET($D14,0,0)","v":100},{"$f":"OFFSET($D15,0,0)","v":10},{"$f":"OFFSET($D16,0,0)","v":10},{"$f":"OFFSET($D17,0,0)","v":10},{"$f":"OFFSET($D18,0,0)","v":1},{"$f":"OFFSET($D13,0,3)","v":0},{"$f":"OFFSET($D14,0,3)","v":0},{"$f":"OFFSET($D15,0,3)","v":0},{"$f":"OFFSET($D16,0,3)","v":0},{"$f":"OFFSET($D17,0,3)","v":0},{"$f":"OFFSET($D18,0,3)","v":0},{"$f":"OFFSET($D13,0,6)","v":0},{"$f":"OFFSET($D14,0,6)","v":0},{"$f":"OFFSET($D15,0,6)","v":0},{"$f":"OFFSET($D16,0,6)","v":0},{"$f":"OFFSET($D17,0,6)","v":0},{"$f":"OFFSET($D18,0,6)","v":0},{"$f":"OFFSET($D13,0,9)","v":0},{"$f":"OFFSET($D14,0,9)","v":0},{"$f":"OFFSET($D15,0,9)","v":0},{"$f":"OFFSET($D16,0,9)","v":0},{"$f":"OFFSET($D17,0,9)","v":0},{"$f":"OFFSET($D18,0,9)","v":0},{"$f":"OFFSET($D13,0,12)","v":0},{"$f":"OFFSET($D14,0,12)","v":0},{"$f":"OFFSET($D15,0,12)","v":0},{"$f":"OFFSET($D16,0,12)","v":0},{"$f":"OFFSET($D17,0,12)","v":0},{"$f":"OFFSET($D18,0,12)","v":0},{"$f":"OFFSET($D13,0,15)","v":0},{"$f":"OFFSET($D14,0,15)","v":0},{"$f":"OFFSET($D15,0,15)","v":0},{"$f":"OFFSET($D16,0,15)","v":0},{"$f":"OFFSET($D17,0,15)","v":0},{"$f":"OFFSET($D18,0,15)","v":0},{"$f":"BQ12&\"_\"&BU12","v":"Audrey_1"},{"$f":"AE12","v":"Audrey"},{"$f":"COUNTIF(AF12:BO12,1)","v":1},{"$f":"COUNTIF(AF12:BO12,10)","v":4},{"$f":"COUNTIF(AF12:BO12,100)","v":1},{"$f":"IF(BQ12<>0,COUNTIF($BQ$12:BQ12,BQ12),\"\")","v":1}]
[null,"ARBITRE",null,10,10,null,null,null,null,null,null,null,null,null,null,null,null,null,null,null,null,null,null,null,null,null,null,null,null,null,{"$f":"E12","v":"jean"},{"$f":"OFFSET($E13,0,0)","v":10},{"$f":"OFFSET($E14,0,0)","v":10},{"$f":"OFFSET($E15,0,0)","v":10},{"$f":"OFFSET($E16,0,0)","v":0},{"$f":"OFFSET($E17,0,0)","v":0},{"$f":"OFFSET($E18,0,0)","v":0},{"$f":"OFFSET($E13,0,3)","v":0},{"$f":"OFFSET($E14,0,3)","v":0},{"$f":"OFFSET($E15,0,3)","v":0},{"$f":"OFFSET($E16,0,3)","v":0},{"$f":"OFFSET($E17,0,3)","v":0},{"$f":"OFFSET($E18,0,3)","v":0},{"$f":"OFFSET($E13,0,6)","v":0},{"$f":"OFFSET($E14,0,6)","v":0},{"$f":"OFFSET($E15,0,6)","v":0},{"$f":"OFFSET($E16,0,6)","v":0},{"$f":"OFFSET($E17,0,6)","v":0},{"$f":"OFFSET($E18,0,6)","v":0},{"$f":"OFFSET($E13,0,9)","v":0},{"$f":"OFFSET($E14,0,9)","v":0},{"$f":"OFFSET($E15,0,9)","v":0},{"$f":"OFFSET($E16,0,9)","v":0},{"$f":"OFFSET($E17,0,9)","v":0},{"$f":"OFFSET($E18,0,9)","v":0},{"$f":"OFFSET($E13,0,12)","v":0},{"$f":"OFFSET($E14,0,12)","v":0},{"$f":"OFFSET($E15,0,12)","v":0},{"$f":"OFFSET($E16,0,12)","v":0},{"$f":"OFFSET($E17,0,12)","v":0},{"$f":"OFFSET($E18,0,12)","v":0},{"$f":"OFFSET($E13,0,15)","v":0},{"$f":"OFFSET($E14,0,15)","v":0},{"$f":"OFFSET($E15,0,15)","v":0},{"$f":"OFFSET($E16,0,15)","v":0},{"$f":"OFFSET($E17,0,15)","v":0},{"$f":"OFFSET($E18,0,15)","v":0},{"$f":"BQ13&\"_\"&BU13","v":"jean_1"},{"$f":"AE13","v":"jean"},{"$f":"COUNTIF(AF13:BO13,1)","v":0},{"$f":"COUNTIF(AF13:BO13,10)","v":3},{"$f":"COUNTIF(AF13:BO13,100)","v":0},{"$f":"IF(BQ13<>0,COUNTIF($BQ$12:BQ13,BQ13),\"\")","v":1}]
[null,{"$f":"B7","v":"abdel"},null,100,10,null,null,null,null,null,null,null,null,null,null,null,null,null,null,null,null,null,null,null,null,null,null,null,null,null,null,null,null,null,null,null,null,null,null,null,null,null,null,null,null,null,null,null,null,null,null,null,null,null,null,null,null,null,null,null,null,null,null,null,null,null,null,"_",null,null,null,null,{"$f":"IF(BQ14<>0,COUNTIF($BQ$12:BQ14,BQ14),\"\")","v":""}]
[null,"JUGE",null,10,10,null,null,null,null,null,null,null,null,null,null,null,null,null,null,null,null,null,null,null,null,null,null,null,null,null,null,null,null,null,null,null,null,null,null,null,null,null,null,null,null,null,null,null,null,null,null,null,null,null,null,null,null,null,null,null,null,null,null,null,null,null,null,"_",null,null,null,null,{"$f":"IF(BQ15<>0,COUNTIF($BQ$12:BQ15,BQ15),\"\")","v":""}]
[null,{"$f":"B8","v":"mic"},null,10,null,null,null,null,null,null,null,null,null,null,null,null,null,null,null,null,null,null,null,null,null,null,null,null,null,null,null,null,null,null,null,null,null,null,null,null,null,null,null,null,null,null,null,null,null,null,null,null,null,null,null,null,null,null,null,null,null,null,null,null,null,null,null,"_",null,null,null,null,{"$f":"IF(BQ16<>0,COUNTIF($BQ$12:BQ16,BQ16),\"\")","v":""}]
[null,"SECRETAIRE",null,10,null,null,null,null,null,null,null,null,null,null,null,null,null,null,null,null,null,null,null,null,null,null,null,null,null,null,null,null,null,null,null,null,null,null,null,null,null,null,null,null,null,null,null,null,null,null,null,null,null,null,null,null,null,null,null,null,null,null,null,null,null,null,null,"_",null,null,null,null,{"$f":"IF(BQ17<>0,COUNTIF($BQ$12:BQ17,BQ17),\"\")","v":""}]
[null,{"$f":"B9","v":"Nadine"},null,1,null,null,null,null,null,null,null,null,null,null,null,null,null,null,null,null,null,null,null,null,null,null,null,null,null,null,null,null,null,null,null,null,null,null,null,null,null,null,null,null,null,null,null,null,null,null,null,null,null,null,null,null,null,null,null,null,null,null,null,null,null,null,null,"_",null,null,null,null,{"$f":"IF(BQ18<>0,COUNTIF($BQ$12:BQ18,BQ18),\"\")","v":""}]
[null,null,null,{"$f":"SUM(D13:D18)","v":141},{"$f":"SUM(E13:E18)","v":30},null,{"$f":"SUM(G13:G18)","v":0},{"$f":"SUM(H13:H18)","v":0},null,{"$f":"SUM(J13:J18)","v":0},{"$f":"SUM(K13:K18)","v":0},null,{"$f":"SUM(M13:M18)","v":0},{"$f":"SUM(N13:N18)","v":0},null,{"$f":"SUM(P13:P18)","v":0},{"$f":"SUM(Q13:Q18)","v":0},null,{"$f":"SUM(S13:S18)","v":0},{"$f":"SUM(T13:T18)","v":0},null,null,null,null,null,null,null,null,null,null,null,null,null,null,null,null,null,null,null,null,null,null,null,null,null,null,null,null,null,null,null,null,null,null,null,null,null,null,null,null,null,null,null,null,null,null,null,"_",null,null,null,null,{"$f":"IF(BQ19<>0,COUNTIF($BQ$12:BQ19,BQ19),\"\")","v":""}]
[null,null,null,null,null,null,{"$f":"$D12","v":"Audrey"},{"$f":"D19+G19+J19+M19+P19+S19","v":141},null,{"$f":"VLOOKUP(H20,DEBUT!$G$5:$J$89,2,TRUE)","v":"Très bonne maitrise"},null,null,{"$f":"$E12","v":"jean"},{"$f":"E19+H19+K19+N19+Q19+T19","v":30},null,{"$f":"VLOOKUP(N20,DEBUT!$G$5:$H$89,2,TRUE)","v":"Fragile"},null,null,null,null,null,null,null,null,null,null,null,null,null,null,null,null,null,null,null,null,null,null,null,null,null,null,null,null,null,null,null,null,null,null,null,null,null,null,null,null,null,null,null,null,null,null,null,null,null,null,null,"_",null,null,null,null,{"$f":"IF(BQ20<>0,COUNTIF($BQ$12:BQ20,BQ20),\"\")","v":""}]
[null,null,null,null,null,null,null,null,null,null,null,null,null,null,null,null,null,null,null,null,null,null,null,null,null,null,null,null,null,null,null,null,null,null,null,null,null,null,null,null,null,null,null,null,null,null,null,null,null,null,null,null,null,null,null,null,null,null,null,null,null,null,null,null,null,null,null,"_",null,null,null,null,{"$f":"IF(BQ21<>0,COUNTIF($BQ$12:BQ21,BQ21),\"\")","v":""}]
[null,"COMBAT 2",null,{"$f":"B9","v":"Nadine"},{"$f":"B16","v":"mic"},null,{"$f":"$D22","v":"Nadine"},{"$f":"$E22","v":"mic"},null,{"$f":"$D22","v":"Nadine"},{"$f":"$E22","v":"mic"},null,{"$f":"$D22","v":"Nadine"},{"$f":"$E22","v":"mic"},null,{"$f":"$D22","v":"Nadine"},{"$f":"$E22","v":"mic"},null,{"$f":"$D22","v":"Nadine"},{"$f":"$E22","v":"mic"},null,null,null,null,null,null,null,null,null,null,{"$f":"D22","v":"Nadine"},{"$f":"OFFSET($D23,0,0)","v":10},{"$f":"OFFSET($D24,0,0)","v":10},{"$f":"OFFSET($D25,0,0)","v":10},{"$f":"OFFSET($D26,0,0)","v":0},{"$f":"OFFSET($D27,0,0)","v":0},{"$f":"OFFSET($D28,0,0)","v":0},{"$f":"OFFSET($D23,0,3)","v":0},{"$f":"OFFSET($D24,0,3)","v":0},{"$f":"OFFSET($D25,0,3)","v":0},{"$f":"OFFSET($D26,0,3)","v":0},{"$f":"OFFSET($D27,0,3)","v":0},{"$f":"OFFSET($D28,0,3)","v":0},{"$f":"OFFSET($D23,0,6)","v":0},{"$f":"OFFSET($D24,0,6)","v":0},{"$f":"OFFSET($D25,0,6)","v":0},{"$f":"OFFSET($D26,0,6)","v":0},{"$f":"OFFSET($D27,0,6)","v":0},{"$f":"OFFSET($D28,0,6)","v":0},{"$f":"OFFSET($D23,0,9)","v":0},{"$f":"OFFSET($D24,0,9)","v":0},{"$f":"OFFSET($D25,0,9)","v":0},{"$f":"OFFSET($D26,0,9)","v":0},{"$f":"OFFSET($D27,0,9)","v":0},{"$f":"OFFSET($D28,0,9)","v":0},{"$f":"OFFSET($D23,0,12)","v":0},{"$f":"OFFSET($D24,0,12)","v":0},{"$f":"OFFSET($D25,0,12)","v":0},{"$f":"OFFSET($D26,0,12)","v":0},{"$f":"OFFSET($D27,0,12)","v":0},{"$f":"OFFSET($D28,0,12)","v":0},{"$f":"OFFSET($D23,0,15)","v":0},{"$f":"OFFSET($D24,0,15)","v":0},{"$f":"OFFSET($D25,0,15)","v":0},{"$f":"OFFSET($D26,0,15)","v":0},{"$f":"OFFSET($D27,0,15)","v":0},{"$f":"OFFSET($D28,0,15)","v":0},"Nadine_1",{"$f":"AE22","v":"Nadine"},{"$f":"COUNTIF(AF22:BO22,1)","v":0},{"$f":"COUNTIF(AF22:BO22,10)","v":3},{"$f":"COUNTIF(AF22:BO22,100)","v":0},{"$f":"IF(BQ22<>0,COUNTIF($BQ$12:BQ22,BQ22),\"\")","v":1}]
[null,"ARBITRE",null,10,100,null,null,null,null,null,null,null,null,null,null,null,null,null,null,null,null,null,null,null,null,null,null,null,null,null,{"$f":"E22","v":"mic"},{"$f":"OFFSET($E23,0,0)","v":100},{"$f":"OFFSET($E24,0,0)","v":10},{"$f":"OFFSET($E25,0,0)","v":100},{"$f":"OFFSET($E26,0,0)","v":100},{"$f":"OFFSET($E27,0,0)","v":0},{"$f":"OFFSET($E28,0,0)","v":0},{"$f":"OFFSET($E23,0,3)","v":0},{"$f":"OFFSET($E24,0,3)","v":0},{"$f":"OFFSET($E25,0,3)","v":0},{"$f":"OFFSET($E26,0,3)","v":0},{"$f":"OFFSET($E27,0,3)","v":0},{"$f":"OFFSET($E28,0,3)","v":0},{"$f":"OFFSET($E23,0,6)","v":0},{"$f":"OFFSET($E24,0,6)","v":0},{"$f":"OFFSET($E25,0,6)","v":0},{"$f":"OFFSET($E26,0,6)","v":0},{"$f":"OFFSET($E27,0,6)","v":0},{"$f":"OFFSET($E28,0,6)","v":0},{"$f":"OFFSET($E23,0,9)","v":0},{"$f":"OFFSET($E24,0,9)","v":0},{"$f":"OFFSET($E25,0,9)","v":0},{"$f":"OFFSET($E26,0,9)","v":0},{"$f":"OFFSET($E27,0,9)","v":0},{"$f":"OFFSET($E28,0,9)","v":0},{"$f":"OFFSET($E23,0,12)","v":0},{"$f":"OFFSET($E24,0,12)","v":0},{"$f":"OFFSET($E25,0,12)","v":0},{"$f":"OFFSET($E26,0,12)","v":0},{"$f":"OFFSET($E27,0,12)","v":0},{"$f":"OFFSET($E28,0,12)","v":0},{"$f":"OFFSET($E23,0,15)","v":0},{"$f":"OFFSET($E24,0,15)","v":0},{"$f":"OFFSET($E25,0,15)","v":0},{"$f":"OFFSET($E26,0,15)","v":0},{"$f":"OFFSET($E27,0,15)","v":0},{"$f":"OFFSET($E28,0,15)","v":0},"mic_1",{"$f":"AE23","v":"mic"},{"$f":"COUNTIF(AF23:BO23,1)","v":0},{"$f":"COUNTIF(AF23:BO23,10)","v":1},{"$f":"COUNTIF(AF23:BO23,100)","v":3},{"$f":"IF(BQ23<>0,COUNTIF($BQ$12:BQ23,BQ23),\"\")","v":1}]
[null,{"$f":"B5","v":"Audrey"},null,10,10,null,null,null,null,null,null,null,null,null,null,null,null,null,null,null,null,null,null,null,null,null,null,null,null,null,null,null,null,null,null,null,null,null,null,null,null,null,null,null,null,null,null,null,null,null,null,null,null,null,null,null,null,null,null,null,null,null,null,null,null,null,null,"_",null,null,null,null,{"$f":"IF(BQ24<>0,COUNTIF($BQ$12:BQ24,BQ24),\"\")","v":""}]
[null,"JUGE",null,10,100,null,null,null,null,null,null,null,null,null,null,null,null,null,null,null,null,null,null,null,null,null,null,null,null,null,null,null,null,null,null,null,null,null,null,null,null,null,null,null,null,null,null,null,null,null,null,null,null,null,null,null,null,null,null,null,null,null,null,null,null,null,null,"_",null,null,null,null,{"$f":"IF(BQ25<>0,COUNTIF($BQ$12:BQ25,BQ25),\"\")","v":""}]
[null,{"$f":"B6","v":"jean"},null,null,100,null,null,null,null,null,null,null,null,null,null,null,null,null,null,null,null,null,null,null,null,null,null,null,null,null,null,null,null,null,null,null,null,null,null,null,null,null,null,null,null,null,null,null,null,null,null,null,null,null,null,null,null,null,null,null,null,null,null,null,null,null,null,"_",null,null,null,null,{"$f":"IF(BQ26<>0,COUNTIF($BQ$12:BQ26,BQ26),\"\")","v":""}]
[null,"SECRETAIRE",null,null,null,null,null,null,null,null,null,null,null,null,null,null,null,null,null,null,null,null,null,null,null,null,null,null,null,null,null,null,null,null,null,null,null,null,null,null,null,null,null,null,null,null,null,null,null,null,null,null,null,null,null,null,null,null,null,null,null,null,null,null,null,null,null,"_",null,null,null,null,{"$f":"IF(BQ27<>0,COUNTIF($BQ$12:BQ27,BQ27),\"\")","v":""}]
[null,{"$f":"B14","v":"abdel"},null,null,null,null,null,null,null,null,null,null,null,null,null,null,null,null,null,null,null,null,null,null,null,null,null,null,null,null,null,null,null,null,null,null,null,null,null,null,null,null,null,null,null,null,null,null,null,null,null,null,null,null,null,null,null,null,null,null,null,null,null,null,null,null,null,"_",null,null,null,null,{"$f":"IF(BQ28<>0,COUNTIF($BQ$12:BQ28,BQ28),\"\")","v":""}]
[null,null,null,{"$f":"SUM(D23:D28)","v":30},{"$f":"SUM(E23:E28)","v":310},null,{"$f":"SUM(G23:G28)","v":0},{"$f":"SUM(H23:H28)","v":0},null,{"$f":"SUM(J23:J28)","v":0},{"$f":"SUM(K23:K28)","v":0},null,{"$f":"SUM(M23:M28)","v":0},{"$f":"SUM(N23:N28)","v":0},null,{"$f":"SUM(P23:P28)","v":0},{"$f":"SUM(Q23:Q28)","v":0},null,{"$f":"SUM(S23:S28)","v":0},{"$f":"SUM(T23:T28)","v":0},null,null,null,null,null,null,null,null,null,null,null,null,null,null,null,null,null,null,null,null,null,null,null,null,null,null,null,null,null,null,null,null,null,null,null,null,null,null,null,null,null,null,null,null,null,null,null,"_",null,null,null,null,{"$f":"IF(BQ29<>0,COUNTIF($BQ$12:BQ29,BQ29),\"\")","v":""}]
[null,null,null,null,null,null,{"$f":"$D22","v":"Nadine"},{"$f":"D29+G29+J29+M29+P29+S29","v":30},null,{"$f":"VLOOKUP(H30,DEBUT!$G$5:$J$89,2,TRUE)","v":"Fragile"},null,null,{"$f":"$E22","v":"mic"},{"$f":"E29+H29+K29+N29+Q29+T29","v":310},null,{"$f":"VLOOKUP(N30,DEBUT!$G$5:$H$89,2,TRUE)","v":"Très bonne maitrise"},null,null,null,null,null,null,null,null,null,null,null,null,null,null,null,null,null,null,null,null,null,null,null,null,null,null,null,null,null,null,null,null,null,null,null,null,null,null,null,null,null,null,null,null,null,null,null,null,null,null,null,"_",null,null,null,null,{"$f":"IF(BQ30<>0,COUNTIF($BQ$12:BQ30,BQ30),\"\")","v":""}]
[null,null,null,null,null,null,null,null,null,null,null,null,null,null,null,null,null,null,null,null,null,null,null,null,null,null,null,null,null,null,null,null,null,null,null,null,null,null,null,null,null,null,null,null,null,null,null,null,null,null,null,null,null,null,null,null,null,null,null,null,null,null,null,null,null,null,null,"_",null,null,null,null,{"$f":"IF(BQ31<>0,COUNTIF($BQ$12:BQ31,BQ31),\"\")","v":""}]
[null,"COMBAT 3",null,{"$f":"B7","v":"abdel"},{"$f":"B5","v":"Audrey"},null,{"$f":"$D32","v":"abdel"},{"$f":"$E32","v":"Audrey"},null,{"$f":"$D32","v":"abdel"},{"$f":"$E32","v":"Audrey"},null,{"$f":"$D32","v":"abdel"},{"$f":"$E32","v":"Audrey"},null,{"$f":"$D32","v":"abdel"},{"$f":"$E32","v":"Audrey"},null,{"$f":"$D32","v":"abdel"},{"$f":"$E32","v":"Audrey"},null,null,null,null,null,null,null,null,null,null,{"$f":"D32","v":"abdel"},{"$f":"OFFSET($D33,0,0)","v":0},{"$f":"OFFSET($D34,0,0)","v":0},{"$f":"OFFSET($D35,0,0)","v":0},{"$f":"OFFSET($D36,0,0)","v":0},{"$f":"OFFSET($D37,0,0)","v":0},{"$f":"OFFSET($D38,0,0)","v":0},{"$f":"OFFSET($D33,0,3)","v":0},{"$f":"OFFSET($D34,0,3)","v":0},{"$f":"OFFSET($D35,0,3)","v":0},{"$f":"OFFSET($D36,0,3)","v":0},{"$f":"OFFSET($D37,0,3)","v":0},{"$f":"OFFSET($D38,0,3)","v":0},{"$f":"OFFSET($D33,0,6)","v":0},{"$f":"OFFSET($D34,0,6)","v":0},{"$f":"OFFSET($D35,0,6)","v":0},{"$f":"OFFSET($D36,0,6)","v":0},{"$f":"OFFSET($D37,0,6)","v":0},{"$f":"OFFSET($D38,0,6)","v":0},{"$f":"OFFSET($D33,0,9)","v":0},{"$f":"OFFSET($D34,0,9)","v":0},{"$f":"OFFSET($D35,0,9)","v":0},{"$f":"OFFSET($D36,0,9)","v":0},{"$f":"OFFSET($D37,0,9)","v":0},{"$f":"OFFSET($D38,0,9)","v":0},{"$f":"OFFSET($D33,0,12)","v":0},{"$f":"OFFSET($D34,0,12)","v":0},{"$f":"OFFSET($D35,0,12)","v":0},{"$f":"OFFSET($D36,0,12)","v":0},{"$f":"OFFSET($D37,0,12)","v":0},{"$f":"OFFSET($D38,0,12)","v":0},{"$f":"OFFSET($D33,0,15)","v":0},{"$f":"OFFSET($D34,0,15)","v":0},{"$f":"OFFSET($D35,0,15)","v":0},{"$f":"OFFSET($D36,0,15)","v":0},{"$f":"OFFSET($D37,0,15)","v":0},{"$f":"OFFSET($D38,0,15)","v":0},"abdel_1",{"$f":"AE32","v":"abdel"},{"$f":"COUNTIF(AF32:BO32,1)","v":0},{"$f":"COUNTIF(AF32:BO32,10)","v":0},{"$f":"COUNTIF(AF32:BO32,100)","v":0},{"$f":"IF(BQ32<>0,COUNTIF($BQ$12:BQ32,BQ32),\"\")","v":1}]
[null,"ARBITRE",null,null,null,null,null,null,null,null,null,null,null,null,null,null,null,null,null,null,null,null,null,null,null,null,null,null,null,null,{"$f":"E32","v":"Audrey"},{"$f":"OFFSET($E33,0,0)","v":0},{"$f":"OFFSET($E34,0,0)","v":0},{"$f":"OFFSET($E35,0,0)","v":0},{"$f":"OFFSET($E36,0,0)","v":0},{"$f":"OFFSET($E37,0,0)","v":0},{"$f":"OFFSET($E38,0,0)","v":0},{"$f":"OFFSET($E33,0,3)","v":0},{"$f":"OFFSET($E34,0,3)","v":0},{"$f":"OFFSET($E35,0,3)","v":0},{"$f":"OFFSET($E36,0,3)","v":0},{"$f":"OFFSET($E37,0,3)","v":0},{"$f":"OFFSET($E38,0,3)","v":0},{"$f":"OFFSET($E33,0,6)","v":0},{"$f":"OFFSET($E34,0,6)","v":0},{"$f":"OFFSET($E35,0,6)","v":0},{"$f":"OFFSET($E36,0,6)","v":0},{"$f":"OFFSET($E37,0,6)","v":0},{"$f":"OFFSET($E38,0,6)","v":0},{"$f":"OFFSET($E33,0,9)","v":0},{"$f":"OFFSET($E34,0,9)","v":0},{"$f":"OFFSET($E35,0,9)","v":0},{"$f":"OFFSET($E36,0,9)","v":0},{"$f":"OFFSET($E37,0,9)","v":0},{"$f":"OFFSET($E38,0,9)","v":0},{"$f":"OFFSET($E33,0,12)","v":0},{"$f":"OFFSET($E34,0,12)","v":0},{"$f":"OFFSET($E35,0,12)","v":0},{"$f":"OFFSET($E36,0,12)","v":0},{"$f":"OFFSET($E37,0,12)","v":0},{"$f":"OFFSET($E38,0,12)","v":0},{"$f":"OFFSET($E33,0,15)","v":0},{"$f":"OFFSET($E34,0,15)","v":0},{"$f":"OFFSET($E35,0,15)","v":0},{"$f":"OFFSET($E36,0,15)","v":0},{"$f":"OFFSET($E37,0,15)","v":0},{"$f":"OFFSET($E38,0,15)","v":0},"Audrey_2",{"$f":"AE33","v":"Audrey"},{"$f":"COUNTIF(AF33:BO33,1)","v":0},{"$f":"COUNTIF(AF33:BO33,10)","v":0},{"$f":"COUNTIF(AF33:BO33,100)","v":0},{"$f":"IF(BQ33<>0,COUNTIF($BQ$12:BQ33,BQ33),\"\")","v":2}]
[null,{"$f":"B27","v":"SECRETAIRE"},null,null,null,null,null,null,null,null,null,null,null,null,null,null,null,null,null,null,null,null,null,null,null,null,null,null,null,null,null,null,null,null,null,null,null,null,null,null,null,null,null,null,null,null,null,null,null,null,null,null,null,null,null,null,null,null,null,null,null,null,null,null,null,null,null,"_",null,null,null,null,{"$f":"IF(BQ34<>0,COUNTIF($BQ$12:BQ34,BQ34),\"\")","v":""}]
[null,"JUGE",null,null,null,null,null,null,null,null,null,null,null,null,null,null,null,null,null,null,null,null,null,null,null,null,null,null,null,null,null,null,null,null,null,null,null,null,null,null,null,null,null,null,null,null,null,null,null,null,null,null,null,null,null,null,null,null,null,null,null,null,null,null,null,null,null,"_",null,null,null,null,{"$f":"IF(BQ35<>0,COUNTIF($BQ$12:BQ35,BQ35),\"\")","v":""}]
[null,{"$f":"B28","v":"abdel"},null,null,null,null,null,null,null,null,null,null,null,null,null,null,null,null,null,null,null,null,null,null,null,null,null,null,null,null,null,null,null,null,null,null,null,null,null,null,null,null,null,null,null,null,null,null,null,null,null,null,null,null,null,null,null,null,null,null,null,null,null,null,null,null,null,"_",null,null,null,null,{"$f":"IF(BQ36<>0,COUNTIF($BQ$12:BQ36,BQ36),\"\")","v":""}]
[null,"SECRETAIRE",null,null,null,null,null,null,null,null,null,null,null,null,null,null,null,null,null,null,null,null,null,null,null,null,null,null,null,null,null,null,null,null,null,null,null,null,null,null,null,null,null,null,null,null,null,null,null,null,null,null,null,null,null,null,null,null,null,null,null,null,null,null,null,null,null,"_",null,null,null,null,{"$f":"IF(BQ37<>0,COUNTIF($BQ$12:BQ37,BQ37),\"\")","v":""}]
[null,{"$f":"B29","v":0},null,null,null,null,null,null,null,null,null,null,null,null,null,null,null,null,null,null,null,null,null,null,null,null,null,null,null,null,null,null,null,null,null,null,null,null,null,null,null,null,null,null,null,null,null,null,null,null,null,null,null,null,null,null,null,null,null,null,null,null,null,null,null,null,null,"_",null,null,null,null,{"$f":"IF(BQ38<>0,COUNTIF($BQ$12:BQ38,BQ38),\"\")","v":""}]
[null,null,null,{"$f":"SUM(D33:D38)","v":0},{"$f":"SUM(E33:E38)","v":0},null,{"$f":"SUM(G33:G38)","v":0},{"$f":"SUM(H33:H38)","v":0},null,{"$f":"SUM(J33:J38)","v":0},{"$f":"SUM(K33:K38)","v":0},null,{"$f":"SUM(M33:M38)","v":0},{"$f":"SUM(N33:N38)","v":0},null,{"$f":"SUM(P33:P38)","v":0},{"$f":"SUM(Q33:Q38)","v":0},null,{"$f":"SUM(S33:S38)","v":0},{"$f":"SUM(T33:T38)","v":0},null,null,null,null,null,null,null,null,null,null,null,null,null,null,null,null,null,null,null,null,null,null,null,null,null,null,null,null,null,null,null,null,null,null,null,null,null,null,null,null,null,null,null,null,null,null,null,"_",null,null,null,null,{"$f":"IF(BQ39<>0,COUNTIF($BQ$12:BQ39,BQ39),\"\")","v":""}]
[null,null,null,null,null,null,{"$f":"$D32","v":"abdel"},{"$f":"D39+G39+J39+M39+P39+S39","v":0},null,{"$f":"VLOOKUP(H40,DEBUT!$G$5:$J$89,2,TRUE)","v":"Insuffisant"},null,null,{"$f":"$E32","v":"Audrey"},{"$f":"E39+H39+K39+N39+Q39+T39","v":0},null,{"$f":"VLOOKUP(N40,DEBUT!$G$5:$H$89,2,TRUE)","v":"Insuffisant"},null,null,null,null,null,null,null,null,null,null,null,null,null,null,null,null,null,null,null,null,null,null,null,null,null,null,null,null,null,null,null,null,null,null,null,null,null,null,null,null,null,null,null,null,null,null,null,null,null,null,null,"_",null,null,null,null,{"$f":"IF(BQ40<>0,COUNTIF($BQ$12:BQ40,BQ40),\"\")","v":""}]
[null,null,null,null,null,null,null,null,null,null,null,null,null,null,null,null,null,null,null,null,null,null,null,null,null,null,null,null,null,null,null,null,null,null,null,null,null,null,null,null,null,null,null,null,null,null,null,null,null,null,null,null,null,null,null,null,null,null,null,null,null,null,null,null,null,null,null,"_",null,null,null,null,{"$f":"IF(BQ41<>0,COUNTIF($BQ$12:BQ41,BQ41),\"\")","v":""}]
[null,"COMBAT 4",null,{"$f":"$B$5","v":"Audrey"},{"$f":"$B$6","v":"jean"},null,{"$f":"$D42","v":"Audrey"},{"$f":"$E42","v":"jean"},null,{"$f":"$D42","v":"Audrey"},{"$f":"$E42","v":"jean"},null,{"$f":"$D42","v":"Audrey"},{"$f":"$E42","v":"jean"},null,{"$f":"$D42","v":"Audrey"},{"$f":"$E42","v":"jean"},null,{"$f":"$D42","v":"Audrey"},{"$f":"$E42","v":"jean"},null,null,null,null,null,null,null,null,null,null,{"$f":"D42","v":"Audrey"},{"$f":"OFFSET($D43,0,0)","v":0},{"$f":"OFFSET($D44,0,0)","v":0},{"$f":"OFFSET($D45,0,0)","v":0},{"$f":"OFFSET($D46,0,0)","v":0},{"$f":"OFFSET($D47,0,0)","v":0},{"$f":"OFFSET($D48,0,0)","v":0},{"$f":"OFFSET($D43,0,3)","v":0},{"$f":"OFFSET($D44,0,3)","v":0},{"$f":"OFFSET($D45,0,3)","v":0},{"$f":"OFFSET($D46,0,3)","v":0},{"$f":"OFFSET($D47,0,3)","v":0},{"$f":"OFFSET($D48,0,3)","v":0},{"$f":"OFFSET($D43,0,6)","v":0},{"$f":"OFFSET($D44,0,6)","v":0},{"$f":"OFFSET($D45,0,6)","v":0},{"$f":"OFFSET($D46,0,6)","v":0},{"$f":"OFFSET($D47,0,6)","v":0},{"$f":"OFFSET($D48,0,6)","v":0},{"$f":"OFFSET($D43,0,9)","v":0},{"$f":"OFFSET($D44,0,9)","v":0},{"$f":"OFFSET($D45,0,9)","v":0},{"$f":"OFFSET($D46,0,9)","v":0},{"$f":"OFFSET($D47,0,9)","v":0},{"$f":"OFFSET($D48,0,9)","v":0},{"$f":"OFFSET($D43,0,12)","v":0},{"$f":"OFFSET($D44,0,12)","v":0},{"$f":"OFFSET($D45,0,12)","v":0},{"$f":"OFFSET($D46,0,12)","v":0},{"$f":"OFFSET($D47,0,12)","v":0},{"$f":"OFFSET($D48,0,12)","v":0},{"$f":"OFFSET($D43,0,15)","v":0},{"$f":"OFFSET($D44,0,15)","v":0},{"$f":"OFFSET($D45,0,15)","v":0},{"$f":"OFFSET($D46,0,15)","v":0},{"$f":"OFFSET($D47,0,15)","v":0},{"$f":"OFFSET($D48,0,15)","v":0},"Audrey_3",{"$f":"AE42","v":"Audrey"},{"$f":"COUNTIF(AF42:BO42,1)","v":0},{"$f":"COUNTIF(AF42:BO42,10)","v":0},{"$f":"COUNTIF(AF42:BO42,100)","v":0},{"$f":"IF(BQ42<>0,COUNTIF($BQ$12:BQ42,BQ42),\"\")","v":3}]
[null,"ARBITRE",null,null,null,null,null,null,null,null,null,null,null,null,null,null,null,null,null,null,null,null,null,null,null,null,null,null,null,null,{"$f":"E42","v":"jean"},{"$f":"OFFSET($E43,0,0)","v":0},{"$f":"OFFSET($E44,0,0)","v":0},{"$f":"OFFSET($E45,0,0)","v":0},{"$f":"OFFSET($E46,0,0)","v":0},{"$f":"OFFSET($E47,0,0)","v":0},{"$f":"OFFSET($E48,0,0)","v":0},{"$f":"OFFSET($E43,0,3)","v":0},{"$f":"OFFSET($E44,0,3)","v":0},{"$f":"OFFSET($E45,0,3)","v":0},{"$f":"OFFSET($E46,0,3)","v":0},{"$f":"OFFSET($E47,0,3)","v":0},{"$f":"OFFSET($E48,0,3)","v":0},{"$f":"OFFSET($E43,0,6)","v":0},{"$f":"OFFSET($E44,0,6)","v":0},{"$f":"OFFSET($E45,0,6)","v":0},{"$f":"OFFSET($E46,0,6)","v":0},{"$f":"OFFSET($E47,0,6)","v":0},{"$f":"OFFSET($E48,0,6)","v":0},{"$f":"OFFSET($E43,0,9)","v":0},{"$f":"OFFSET($E44,0,9)","v":0},{"$f":"OFFSET($E45,0,9)","v":0},{"$f":"OFFSET($E46,0,9)","v":0},{"$f":"OFFSET($E47,0,9)","v":0},{"$f":"OFFSET($E48,0,9)","v":0},{"$f":"OFFSET($E43,0,12)","v":0},{"$f":"OFFSET($E44,0,12)","v":0},{"$f":"OFFSET($E45,0,12)","v":0},{"$f":"OFFSET($E46,0,12)","v":0},{"$f":"OFFSET($E47,0,12)","v":0},{"$f":"OFFSET($E48,0,12)","v":0},{"$f":"OFFSET($E43,0,15)","v":0},{"$f":"OFFSET($E44,0,15)","v":0},{"$f":"OFFSET($E45,0,15)","v":0},{"$f":"OFFSET($E46,0,15)","v":0},{"$f":"OFFSET($E47,0,15)","v":0},{"$f":"OFFSET($E48,0,15)","v":0},"jean_2",{"$f":"AE43","v":"jean"},{"$f":"COUNTIF(AF43:BO43,1)","v":0},{"$f":"COUNTIF(AF43:BO43,10)","v":0},{"$f":"COUNTIF(AF43:BO43,100)","v":0},{"$f":"IF(BQ43<>0,COUNTIF($BQ$12:BQ43,BQ43),\"\")","v":2}]
[null,{"$f":"B37","v":"SECRETAIRE"},null,null,null,null,null,null,null,null,null,null,null,null,null,null,null,null,null,null,null,null,null,null,null,null,null,null,null,null,null,null,null,null,null,null,null,null,null,null,null,null,null,null,null,null,null,null,null,null,null,null,null,null,null,null,null,null,null,null,null,null,null,null,null,null,null,"_",null,null,null,null,{"$f":"IF(BQ44<>0,COUNTIF($BQ$12:BQ44,BQ44),\"\")","v":""}]
[null,"JUGE",null,null,null,null,null,null,null,null,null,null,null,null,null,null,null,null,null,null,null,null,null,null,null,null,null,null,null,null,null,null,null,null,null,null,null,null,null,null,null,null,null,null,null,null,null,null,null,null,null,null,null,null,null,null,null,null,null,null,null,null,null,null,null,null,null,"_",null,null,null,null,{"$f":"IF(BQ45<>0,COUNTIF($BQ$12:BQ45,BQ45),\"\")","v":""}]
[null,{"$f":"B38","v":0},null,null,null,null,null,null,null,null,null,null,null,null,null,null,null,null,null,null,null,null,null,null,null,null,null,null,null,null,null,null,null,null,null,null,null,null,null,null,null,null,null,null,null,null,null,null,null,null,null,null,null,null,null,null,null,null,null,null,null,null,null,null,null,null,null,"_",null,null,null,null,{"$f":"IF(BQ46<>0,COUNTIF($BQ$12:BQ46,BQ46),\"\")","v":""}]
[null,"SECRETAIRE",null,null,null,null,null,null,null,null,null,null,null,null,null,null,null,null,null,null,null,null,null,null,null,null,null,null,null,null,null,null,null,null,null,null,null,null,null,null,null,null,null,null,null,null,null,null,null,null,null,null,null,null,null,null,null,null,null,null,null,null,null,null,null,null,null,"_",null,null,null,null,{"$f":"IF(BQ47<>0,COUNTIF($BQ$12:BQ47,BQ47),\"\")","v":""}]
[null,{"$f":"B39","v":0},null,null,null,null,null,null,null,null,null,null,null,null,null,null,null,null,null,null,null,null,null,null,null,null,null,null,null,null,null,null,null,null,null,null,null,null,null,null,null,null,null,null,null,null,null,null,null,null,null,null,null,null,null,null,null,null,null,null,null,null,null,null,null,null,null,"_",null,null,null,null,{"$f":"IF(BQ48<>0,COUNTIF($BQ$12:BQ48,BQ48),\"\")","v":""}]
[null,null,null,{"$f":"SUM(D43:D48)","v":0},{"$f":"SUM(E43:E48)","v":0},null,{"$f":"SUM(G43:G48)","v":0},{"$f":"SUM(H43:H48)","v":0},null,{"$f":"SUM(J43:J48)","v":0},{"$f":"SUM(K43:K48)","v":0},null,{"$f":"SUM(M43:M48)","v":0},{"$f":"SUM(N43:N48)","v":0},null,{"$f":"SUM(P43:P48)","v":0},{"$f":"SUM(Q43:Q48)","v":0},null,{"$f":"SUM(S43:S48)","v":0},{"$f":"SUM(T43:T48)","v":0},null,null,null,null,null,null,null,null,null,null,null,null,null,null,null,null,null,null,null,null,null,null,null,null,null,null,null,null,null,null,null,null,null,null,null,null,null,null,null,null,null,null,null,null,null,null,null,"_",null,null,null,null,{"$f":"IF(BQ49<>0,COUNTIF($BQ$12:BQ49,BQ49),\"\")","v":""}]
[null,null,null,null,null,null,{"$f":"$D42","v":"Audrey"},{"$f":"D49+G49+J49+M49+P49+S49","v":0},null,{"$f":"VLOOKUP(H50,DEBUT!$G$5:$J$89,2,TRUE)","v":"Insuffisant"},null,null,{"$f":"$E42","v":"jean"},{"$f":"E49+H49+K49+N49+Q49+T49","v":0},null,{"$f":"VLOOKUP(N50,DEBUT!$G$5:$H$89,2,TRUE)","v":"Insuffisant"},null,null,null,null,null,null,null,null,null,null,null,null,null,null,null,null,null,null,null,null,null,null,null,null,null,null,null,null,null,null,null,null,null,null,null,null,null,null,null,null,null,null,null,null,null,null,null,null,null,null,null,"_",null,null,null,null,{"$f":"IF(BQ50<>0,COUNTIF($BQ$12:BQ50,BQ50),\"\")","v":""}]
[null,null,null,null,null,null,null,null,null,null,null,null,null,null,null,null,null,null,null,null,null,null,null,null,null,null,null,null,null,null,null,null,null,null,null,null,null,null,null,null,null,null,null,null,null,null,null,null,null,null,null,null,null,null,null,null,null,null,null,null,null,null,null,null,null,null,null,"_",null,null,null,null,{"$f":"IF(BQ51<>0,COUNTIF($BQ$12:BQ51,BQ51),\"\")","v":""}]
[null,"COMBAT 5",null,{"$f":"$B$5","v":"Audrey"},{"$f":"$B$6","v":"jean"},null,{"$f":"$D52","v":"Audrey"},{"$f":"$E52","v":"jean"},null,{"$f":"$D52","v":"Audrey"},{"$f":"$E52","v":"jean"},null,{"$f":"$D52","v":"Audrey"},{"$f":"$E52","v":"jean"},null,{"$f":"$D52","v":"Audrey"},{"$f":"$E52","v":"jean"},null,{"$f":"$D52","v":"Audrey"},{"$f":"$E52","v":"jean"},null,null,null,null,null,null,null,null,null,null,{"$f":"D52","v":"Audrey"},{"$f":"OFFSET($D53,0,0)","v":0},{"$f":"OFFSET($D54,0,0)","v":0},{"$f":"OFFSET($D55,0,0)","v":0},{"$f":"OFFSET($D56,0,0)","v":0},{"$f":"OFFSET($D57,0,0)","v":0},{"$f":"OFFSET($D58,0,0)","v":0},{"$f":"OFFSET($D53,0,3)","v":0},{"$f":"OFFSET($D54,0,3)","v":0},{"$f":"OFFSET($D55,0,3)","v":0},{"$f":"OFFSET($D56,0,3)","v":0},{"$f":"OFFSET($D57,0,3)","v":0},{"$f":"OFFSET($D58,0,3)","v":0},{"$f":"OFFSET($D53,0,6)","v":0},{"$f":"OFFSET($D54,0,6)","v":0},{"$f":"OFFSET($D55,0,6)","v":0},{"$f":"OFFSET($D56,0,6)","v":0},{"$f":"OFFSET($D57,0,6)","v":0},{"$f":"OFFSET($D58,0,6)","v":0},{"$f":"OFFSET($D53,0,9)","v":0},{"$f":"OFFSET($D54,0,9)","v":0},{"$f":"OFFSET($D55,0,9)","v":0},{"$f":"OFFSET($D56,0,9)","v":0},{"$f":"OFFSET($D57,0,9)","v":0},{"$f":"OFFSET($D58,0,9)","v":0},{"$f":"OFFSET($D53,0,12)","v":0},{"$f":"OFFSET($D54,0,12)","v":0},{"$f":"OFFSET($D55,0,12)","v":0},{"$f":"OFFSET($D56,0,12)","v":0},{"$f":"OFFSET($D57,0,12)","v":0},{"$f":"OFFSET($D58,0,12)","v":0},{"$f":"OFFSET($D53,0,15)","v":0},{"$f":"OFFSET($D54,0,15)","v":0},{"$f":"OFFSET($D55,0,15)","v":0},{"$f":"OFFSET($D56,0,15)","v":0},{"$f":"OFFSET($D57,0,15)","v":0},{"$f":"OFFSET($D58,0,15)","v":0},"Audrey_4",{"$f":"AE52","v":"Audrey"},{"$f":"COUNTIF(AF52:BO52,1)","v":0},{"$f":"COUNTIF(AF52:BO52,10)","v":0},{"$f":"COUNTIF(AF52:BO52,100)","v":0},{"$f":"IF(BQ52<>0,COUNTIF($BQ$12:BQ52,BQ52),\"\")","v":4}]
[null,"ARBITRE",null,null,null,null,null,null,null,null,null,null,null,null,null,null,null,null,null,null,null,null,null,null,null,null,null,null,null,null,{"$f":"E52","v":"jean"},{"$f":"OFFSET($E53,0,0)","v":0},{"$f":"OFFSET($E54,0,0)","v":0},{"$f":"OFFSET($E55,0,0)","v":0},{"$f":"OFFSET($E56,0,0)","v":0},{"$f":"OFFSET($E57,0,0)","v":0},{"$f":"OFFSET($E58,0,0)","v":0},{"$f":"OFFSET($E53,0,3)","v":0},{"$f":"OFFSET($E54,0,3)","v":0},{"$f":"OFFSET($E55,0,3)","v":0},{"$f":"OFFSET($E56,0,3)","v":0},{"$f":"OFFSET($E57,0,3)","v":0},{"$f":"OFFSET($E58,0,3)","v":0},{"$f":"OFFSET($E53,0,6)","v":0},{"$f":"OFFSET($E54,0,6)","v":0},{"$f":"OFFSET($E55,0,6)","v":0},{"$f":"OFFSET($E56,0,6)","v":0},{"$f":"OFFSET($E57,0,6)","v":0},{"$f":"OFFSET($E58,0,6)","v":0},{"$f":"OFFSET($E53,0,9)","v":0},{"$f":"OFFSET($E54,0,9)","v":0},{"$f":"OFFSET($E55,0,9)","v":0},{"$f":"OFFSET($E56,0,9)","v":0},{"$f":"OFFSET($E57,0,9)","v":0},{"$f":"OFFSET($E58,0,9)","v":0},{"$f":"OFFSET($E53,0,12)","v":0},{"$f":"OFFSET($E54,0,12)","v":0},{"$f":"OFFSET($E55,0,12)","v":0},{"$f":"OFFSET($E56,0,12)","v":0},{"$f":"OFFSET($E57,0,12)","v":0},{"$f":"OFFSET($E58,0,12)","v":0},{"$f":"OFFSET($E53,0,15)","v":0},{"$f":"OFFSET($E54,0,15)","v":0},{"$f":"OFFSET($E55,0,15)","v":0},{"$f":"OFFSET($E56,0,15)","v":0},{"$f":"OFFSET($E57,0,15)","v":0},{"$f":"OFFSET($E58,0,15)","v":0},"jean_3",{"$f":"AE53","v":"jean"},{"$f":"COUNTIF(AF53:BO53,1)","v":0},{"$f":"COUNTIF(AF53:BO53,10)","v":0},{"$f":"COUNTIF(AF53:BO53,100)","v":0},{"$f":"IF(BQ53<>0,COUNTIF($BQ$12:BQ53,BQ53),\"\")","v":3}]
[null,{"$f":"B47","v":"SECRETAIRE"},null,null,null,null,null,null,null,null,null,null,null,null,null,null,null,null,null,null,null,null,null,null,null,null,null,null,null,null,null,null,null,null,null,null,null,null,null,null,null,null,null,null,null,null,null,null,null,null,null,null,null,null,null,null,null,null,null,null,null,null,null,null,null,null,null,"_",null,null,null,null,{"$f":"IF(BQ54<>0,COUNTIF($BQ$12:BQ54,BQ54),\"\")","v":""}]
[null,"JUGE",null,null,null,null,null,null,null,null,null,null,null,null,null,null,null,null,null,null,null,null,null,null,null,null,null,null,null,null,null,null,null,null,null,null,null,null,null,null,null,null,null,null,null,null,null,null,null,null,null,null,null,null,null,null,null,null,null,null,null,null,null,null,null,null,null,"_",null,null,null,null,{"$f":"IF(BQ55<>0,COUNTIF($BQ$12:BQ55,BQ55),\"\")","v":""}]
[null,{"$f":"B48","v":0},null,null,null,null,null,null,null,null,null,null,null,null,null,null,null,null,null,null,null,null,null,null,null,null,null,null,null,null,null,null,null,null,null,null,null,null,null,null,null,null,null,null,null,null,null,null,null,null,null,null,null,null,null,null,null,null,null,null,null,null,null,null,null,null,null,"_",null,null,null,null,{"$f":"IF(BQ56<>0,COUNTIF($BQ$12:BQ56,BQ56),\"\")","v":""}]
[null,"SECRETAIRE",null,null,null,null,null,null,null,null,null,null,null,null,null,null,null,null,null,null,null,null,null,null,null,null,null,null,null,null,null,null,null,null,null,null,null,null,null,null,null,null,null,null,null,null,null,null,null,null,null,null,null,null,null,null,null,null,null,null,null,null,null,null,null,null,null,"_",null,null,null,null,{"$f":"IF(BQ57<>0,COUNTIF($BQ$12:BQ57,BQ57),\"\")","v":""}]
[null,{"$f":"B49","v":0},null,null,null,null,null,null,null,null,null,null,null,null,null,null,null,null,null,null,null,null,null,null,null,null,null,null,null,null,null,null,null,null,null,null,null,null,null,null,null,null,null,null,null,null,null,null,null,null,null,null,null,null,null,null,null,null,null,null,null,null,null,null,null,null,null,"_",null,null,null,null,{"$f":"IF(BQ58<>0,COUNTIF($BQ$12:BQ58,BQ58),\"\")","v":""}]
[null,null,null,{"$f":"SUM(D53:D58)","v":0},{"$f":"SUM(E53:E58)","v":0},null,{"$f":"SUM(G53:G58)","v":0},{"$f":"SUM(H53:H58)","v":0},null,{"$f":"SUM(J53:J58)","v":0},{"$f":"SUM(K53:K58)","v":0},null,{"$f":"SUM(M53:M58)","v":0},{"$f":"SUM(N53:N58)","v":0},null,{"$f":"SUM(P53:P58)","v":0},{"$f":"SUM(Q53:Q58)","v":0},null,{"$f":"SUM(S53:S58)","v":0},{"$f":"SUM(T53:T58)","v":0},null,null,null,null,null,null,null,null,null,null,null,null,null,null,null,null,null,null,null,null,null,null,null,null,null,null,null,null,null,null,null,null,null,null,null,null,null,null,null,null,null,null,null,null,null,null,null,"_",null,null,null,null,{"$f":"IF(BQ59<>0,COUNTIF($BQ$12:BQ59,BQ59),\"\")","v":""}]
[null,null,null,null,null,null,{"$f":"$D52","v":"Audrey"},{"$f":"D59+G59+J59+M59+P59+S59","v":0},null,{"$f":"VLOOKUP(H60,DEBUT!$G$5:$J$89,2,TRUE)","v":"Insuffisant"},null,null,{"$f":"$E52","v":"jean"},{"$f":"E59+H59+K59+N59+Q59+T59","v":0},null,{"$f":"VLOOKUP(N60,DEBUT!$G$5:$H$89,2,TRUE)","v":"Insuffisant"},null,null,null,null,null,null,null,null,null,null,null,null,null,null,null,null,null,null,null,null,null,null,null,null,null,null,null,null,null,null,null,null,null,null,null,null,null,null,null,null,null,null,null,null,null,null,null,null,null,null,null,"_",null,null,null,null,{"$f":"IF(BQ60<>0,COUNTIF($BQ$12:BQ60,BQ60),\"\")","v":""}]
[null,"COMBAT 6",null,{"$f":"$B$5","v":"Audrey"},{"$f":"$B$6","v":"jean"},null,{"$f":"$D61","v":"Audrey"},{"$f":"$E61","v":"jean"},null,{"$f":"$D61","v":"Audrey"},{"$f":"$E61","v":"jean"},null,{"$f":"$D61","v":"Audrey"},{"$f":"$E61","v":"jean"},null,{"$f":"$D61","v":"Audrey"},{"$f":"$E61","v":"jean"},null,{"$f":"$D61","v":"Audrey"},{"$f":"$E61","v":"jean"},null,null,null,null,null,null,null,null,null,null,{"$f":"D61","v":"Audrey"},{"$f":"OFFSET($D62,0,0)","v":0},{"$f":"OFFSET($D63,0,0)","v":0},{"$f":"OFFSET($D64,0,0)","v":0},{"$f":"OFFSET($D65,0,0)","v":0},{"$f":"OFFSET($D66,0,0)","v":0},{"$f":"OFFSET($D67,0,0)","v":0},{"$f":"OFFSET($D62,0,3)","v":0},{"$f":"OFFSET($D63,0,3)","v":0},{"$f":"OFFSET($D64,0,3)","v":0},{"$f":"OFFSET($D65,0,3)","v":0},{"$f":"OFFSET($D66,0,3)","v":0},{"$f":"OFFSET($D67,0,3)","v":0},{"$f":"OFFSET($D62,0,6)","v":0},{"$f":"OFFSET($D63,0,6)","v":0},{"$f":"OFFSET($D64,0,6)","v":0},{"$f":"OFFSET($D65,0,6)","v":0},{"$f":"OFFSET($D66,0,6)","v":0},{"$f":"OFFSET($D67,0,6)","v":0},{"$f":"OFFSET($D62,0,9)","v":0},{"$f":"OFFSET($D63,0,9)","v":0},{"$f":"OFFSET($D64,0,9)","v":0},{"$f":"OFFSET($D65,0,9)","v":0},{"$f":"OFFSET($D66,0,9)","v":0},{"$f":"OFFSET($D67,0,9)","v":0},{"$f":"OFFSET($D62,0,12)","v":0},{"$f":"OFFSET($D63,0,12)","v":0},{"$f":"OFFSET($D64,0,12)","v":0},{"$f":"OFFSET($D65,0,12)","v":0},{"$f":"OFFSET($D66,0,12)","v":0},{"$f":"OFFSET($D67,0,12)","v":0},{"$f":"OFFSET($D62,0,15)","v":0},{"$f":"OFFSET($D63,0,15)","v":0},{"$f":"OFFSET($D64,0,15)","v":0},{"$f":"OFFSET($D65,0,15)","v":0},{"$f":"OFFSET($D66,0,15)","v":0},{"$f":"OFFSET($D67,0,15)","v":0},"Audrey_5",{"$f":"AE61","v":"Audrey"},{"$f":"COUNTIF(AF61:BO61,1)","v":0},{"$f":"COUNTIF(AF61:BO61,10)","v":0},{"$f":"COUNTIF(AF61:BO61,100)","v":0},{"$f":"IF(BQ61<>0,COUNTIF($BQ$12:BQ61,BQ61),\"\")","v":5}]
[null,"ARBITRE",null,null,10,null,null,null,null,null,null,null,null,null,null,null,null,null,null,null,null,null,null,null,null,null,null,null,null,null,{"$f":"E61","v":"jean"},{"$f":"OFFSET($E62,0,0)","v":10},{"$f":"OFFSET($E63,0,0)","v":0},{"$f":"OFFSET($E64,0,0)","v":0},{"$f":"OFFSET($E65,0,0)","v":0},{"$f":"OFFSET($E66,0,0)","v":0},{"$f":"OFFSET($E67,0,0)","v":0},{"$f":"OFFSET($E62,0,3)","v":0},{"$f":"OFFSET($E63,0,3)","v":0},{"$f":"OFFSET($E64,0,3)","v":0},{"$f":"OFFSET($E65,0,3)","v":0},{"$f":"OFFSET($E66,0,3)","v":0},{"$f":"OFFSET($E67,0,3)","v":0},{"$f":"OFFSET($E62,0,6)","v":0},{"$f":"OFFSET($E63,0,6)","v":0},{"$f":"OFFSET($E64,0,6)","v":0},{"$f":"OFFSET($E65,0,6)","v":0},{"$f":"OFFSET($E66,0,6)","v":0},{"$f":"OFFSET($E67,0,6)","v":0},{"$f":"OFFSET($E62,0,9)","v":0},{"$f":"OFFSET($E63,0,9)","v":0},{"$f":"OFFSET($E64,0,9)","v":0},{"$f":"OFFSET($E65,0,9)","v":0},{"$f":"OFFSET($E66,0,9)","v":0},{"$f":"OFFSET($E67,0,9)","v":0},{"$f":"OFFSET($E62,0,12)","v":0},{"$f":"OFFSET($E63,0,12)","v":0},{"$f":"OFFSET($E64,0,12)","v":0},{"$f":"OFFSET($E65,0,12)","v":0},{"$f":"OFFSET($E66,0,12)","v":0},{"$f":"OFFSET($E67,0,12)","v":0},{"$f":"OFFSET($E62,0,15)","v":0},{"$f":"OFFSET($E63,0,15)","v":0},{"$f":"OFFSET($E64,0,15)","v":0},{"$f":"OFFSET($E65,0,15)","v":0},{"$f":"OFFSET($E66,0,15)","v":0},{"$f":"OFFSET($E67,0,15)","v":0},"jean_4",{"$f":"AE62","v":"jean"},{"$f":"COUNTIF(AF62:BO62,1)","v":0},{"$f":"COUNTIF(AF62:BO62,10)","v":1},{"$f":"COUNTIF(AF62:BO62,100)","v":0},{"$f":"IF(BQ62<>0,COUNTIF($BQ$12:BQ62,BQ62),\"\")","v":4}]
[null,{"$f":"B56","v":0},null,null,null,null,null,null,null,null,null,null,null,null,null,null,null,null,null,null,null,null,null,null,null,null,null,null,null,null,null,null,null,null,null,null,null,null,null,null,null,null,null,null,null,null,null,null,null,null,null,null,null,null,null,null,null,null,null,null,null,null,null,null,null,null,null,"_",null,null,null,null,{"$f":"IF(BQ63<>0,COUNTIF($BQ$12:BQ63,BQ63),\"\")","v":""}]
[null,"JUGE",null,null,null,null,null,null,null,null,null,null,null,null,null,null,null,null,null,null,null,null,null,null,null,null,null,null,null,null,null,null,null,null,null,null,null,null,null,null,null,null,null,null,null,null,null,null,null,null,null,null,null,null,null,null,null,null,null,null,null,null,null,null,null,null,null,"_",null,null,null,null,{"$f":"IF(BQ64<>0,COUNTIF($BQ$12:BQ64,BQ64),\"\")","v":""}]
[null,{"$f":"B57","v":"SECRETAIRE"},null,null,null,null,null,null,null,null,null,null,null,null,null,null,null,null,null,null,null,null,null,null,null,null,null,null,null,null,null,null,null,null,null,null,null,null,null,null,null,null,null,null,null,null,null,null,null,null,null,null,null,null,null,null,null,null,null,null,null,null,null,null,null,null,null,"_",null,null,null,null,{"$f":"IF(BQ65<>0,COUNTIF($BQ$12:BQ65,BQ65),\"\")","v":""}]
[null,"SECRETAIRE",null,null,null,null,null,null,null,null,null,null,null,null,null,null,null,null,null,null,null,null,null,null,null,null,null,null,null,null,null,null,null,null,null,null,null,null,null,null,null,null,null,null,null,null,null,null,null,null,null,null,null,null,null,null,null,null,null,null,null,null,null,null,null,null,null,"_",null,null,null,null,{"$f":"IF(BQ66<>0,COUNTIF($BQ$12:BQ66,BQ66),\"\")","v":""}]
[null,{"$f":"B58","v":0},null,null,null,null,null,null,null,null,null,null,null,null,null,null,null,null,null,null,null,null,null,null,null,null,null,null,null,null,null,null,null,null,null,null,null,null,null,null,null,null,null,null,null,null,null,null,null,null,null,null,null,null,null,null,null,null,null,null,null,null,null,null,null,null,null,"_",null,null,null,null,{"$f":"IF(BQ67<>0,COUNTIF($BQ$12:BQ67,BQ67),\"\")","v":""}]
[null,null,null,{"$f":"SUM(D62:D67)","v":0},{"$f":"SUM(E62:E67)","v":10},null,{"$f":"SUM(G62:G67)","v":0},{"$f":"SUM(H62:H67)","v":0},null,{"$f":"SUM(J62:J67)","v":0},{"$f":"SUM(K62:K67)","v":0},null,{"$f":"SUM(M62:M67)","v":0},{"$f":"SUM(N62:N67)","v":0},null,{"$f":"SUM(P62:P67)","v":0},{"$f":"SUM(Q62:Q67)","v":0},null,{"$f":"SUM(S62:S67)","v":0},{"$f":"SUM(T62:T67)","v":0},null,null,null,null,null,null,null,null,null,null,null,null,null,null,null,null,null,null,null,null,null,null,null,null,null,null,null,null,null,null,null,null,null,null,null,null,null,null,null,null,null,null,null,null,null,null,null,"_",null,null,null,null,{"$f":"IF(BQ68<>0,COUNTIF($BQ$12:BQ68,BQ68),\"\")","v":""}]
[null,null,null,null,null,null,{"$f":"$D61","v":"Audrey"},{"$f":"D68+G68+J68+M68+P68+S68","v":0},null,{"$f":"VLOOKUP(H69,DEBUT!$G$5:$J$89,2,TRUE)","v":"Insuffisant"},null,null,{"$f":"$E61","v":"jean"},{"$f":"E68+H68+K68+N68+Q68+T68","v":10},null,{"$f":"VLOOKUP(N69,DEBUT!$G$5:$H$89,2,TRUE)","v":"Fragile"},null,null,null,null,null,null,null,null,null,null,null,null,null,null,null,null,null,null,null,null,null,null,null,null,null,null,null,null,null,null,null,null,null,null,null,null,null,null,null,null,null,null,null,null,null,null,null,null,null,null,null,"_",null,null,null,null,{"$f":"IF(BQ69<>0,COUNTIF($BQ$12:BQ69,BQ69),\"\")","v":""}]
[null,null,null,null,null,null,null,null,null,null,null,null,null,null,null,null,null,null,null,null,null,null,null,null,null,null,null,null,null,null,null,null,null,null,null,null,null,null,null,null,null,null,null,null,null,null,null,null,null,null,null,null,null,null,null,null,null,null,null,null,null,null,null,null,null,null,null,"_",null,null,null,null,{"$f":"IF(BQ70<>0,COUNTIF($BQ$12:BQ70,BQ70),\"\")","v":""}]
[null,"COMBAT 7",null,{"$f":"$B$5","v":"Audrey"},{"$f":"$B$6","v":"jean"},null,{"$f":"$D71","v":"Audrey"},{"$f":"$E71","v":"jean"},null,{"$f":"$D71","v":"Audrey"},{"$f":"$E71","v":"jean"},null,{"$f":"$D71","v":"Audrey"},{"$f":"$E71","v":"jean"},null,{"$f":"$D71","v":"Audrey"},{"$f":"$E71","v":"jean"},null,{"$f":"$D71","v":"Audrey"},{"$f":"$E71","v":"jean"},null,null,null,null,null,null,null,null,null,null,{"$f":"D71","v":"Audrey"},{"$f":"OFFSET($D72,0,0)","v":0},{"$f":"OFFSET($D73,0,0)","v":0},{"$f":"OFFSET($D74,0,0)","v":0},{"$f":"OFFSET($D75,0,0)","v":0},{"$f":"OFFSET($D76,0,0)","v":0},{"$f":"OFFSET($D77,0,0)","v":0},{"$f":"OFFSET($D72,0,3)","v":0},{"$f":"OFFSET($D73,0,3)","v":0},{"$f":"OFFSET($D74,0,3)","v":0},{"$f":"OFFSET($D75,0,3)","v":0},{"$f":"OFFSET($D76,0,3)","v":0},{"$f":"OFFSET($D77,0,3)","v":0},{"$f":"OFFSET($D72,0,6)","v":0},{"$f":"OFFSET($D73,0,6)","v":0},{"$f":"OFFSET($D74,0,6)","v":0},{"$f":"OFFSET($D75,0,6)","v":0},{"$f":"OFFSET($D76,0,6)","v":0},{"$f":"OFFSET($D77,0,6)","v":0},{"$f":"OFFSET($D72,0,9)","v":0},{"$f":"OFFSET($D73,0,9)","v":0},{"$f":"OFFSET($D74,0,9)","v":0},{"$f":"OFFSET($D75,0,9)","v":0},{"$f":"OFFSET($D76,0,9)","v":0},{"$f":"OFFSET($D77,0,9)","v":0},{"$f":"OFFSET($D72,0,12)","v":0},{"$f":"OFFSET($D73,0,12)","v":0},{"$f":"OFFSET($D74,0,12)","v":0},{"$f":"OFFSET($D75,0,12)","v":0},{"$f":"OFFSET($D76,0,12)","v":0},{"$f":"OFFSET($D77,0,12)","v":0},{"$f":"OFFSET($D72,0,15)","v":0},{"$f":"OFFSET($D73,0,15)","v":0},{"$f":"OFFSET($D74,0,15)","v":0},{"$f":"OFFSET($D75,0,15)","v":0},{"$f":"OFFSET($D76,0,15)","v":0},{"$f":"OFFSET($D77,0,15)","v":0},"Audrey_6",{"$f":"AE71","v":"Audrey"},{"$f":"COUNTIF(AF71:BO71,1)","v":0},{"$f":"COUNTIF(AF71:BO71,10)","v":0},{"$f":"COUNTIF(AF71:BO71,100)","v":0},{"$f":"IF(BQ71<>0,COUNTIF($BQ$12:BQ71,BQ71),\"\")","v":6}]
[null,"ARBITRE",null,null,null,null,null,null,null,null,null,null,null,null,null,null,null,null,null,null,null,null,null,null,null,null,null,null,null,null,{"$f":"E71","v":"jean"},{"$f":"OFFSET($E72,0,0)","v":0},{"$f":"OFFSET($E73,0,0)","v":0},{"$f":"OFFSET($E74,0,0)","v":0},{"$f":"OFFSET($E75,0,0)","v":0},{"$f":"OFFSET($E76,0,0)","v":0},{"$f":"OFFSET($E77,0,0)","v":0},{"$f":"OFFSET($E72,0,3)","v":0},{"$f":"OFFSET($E73,0,3)","v":0},{"$f":"OFFSET($E74,0,3)","v":0},{"$f":"OFFSET($E75,0,3)","v":0},{"$f":"OFFSET($E76,0,3)","v":0},{"$f":"OFFSET($E77,0,3)","v":0},{"$f":"OFFSET($E72,0,6)","v":0},{"$f":"OFFSET($E73,0,6)","v":0},{"$f":"OFFSET($E74,0,6)","v":0},{"$f":"OFFSET($E75,0,6)","v":0},{"$f":"OFFSET($E76,0,6)","v":0},{"$f":"OFFSET($E77,0,6)","v":0},{"$f":"OFFSET($E72,0,9)","v":0},{"$f":"OFFSET($E73,0,9)","v":0},{"$f":"OFFSET($E74,0,9)","v":0},{"$f":"OFFSET($E75,0,9)","v":0},{"$f":"OFFSET($E76,0,9)","v":0},{"$f":"OFFSET($E77,0,9)","v":0},{"$f":"OFFSET($E72,0,12)","v":0},{"$f":"OFFSET($E73,0,12)","v":0},{"$f":"OFFSET($E74,0,12)","v":0},{"$f":"OFFSET($E75,0,12)","v":0},{"$f":"OFFSET($E76,0,12)","v":0},{"$f":"OFFSET($E77,0,12)","v":0},{"$f":"OFFSET($E72,0,15)","v":0},{"$f":"OFFSET($E73,0,15)","v":0},{"$f":"OFFSET($E74,0,15)","v":0},{"$f":"OFFSET($E75,0,15)","v":0},{"$f":"OFFSET($E76,0,15)","v":0},{"$f":"OFFSET($E77,0,15)","v":0},"jean_5",{"$f":"AE72","v":"jean"},{"$f":"COUNTIF(AF72:BO72,1)","v":0},{"$f":"COUNTIF(AF72:BO72,10)","v":0},{"$f":"COUNTIF(AF72:BO72,100)","v":0},{"$f":"IF(BQ72<>0,COUNTIF($BQ$12:BQ72,BQ72),\"\")","v":5}]
[null,{"$f":"B66","v":"SECRETAIRE"},null,null,null,null,null,null,null,null,null,null,null,null,null,null,null,null,null,null,null,null,null,null,null,null,null,null,null,null,null,null,null,null,null,null,null,null,null,null,null,null,null,null,null,null,null,null,null,null,null,null,null,null,null,null,null,null,null,null,null,null,null,null,null,null,null,"_",null,null,null,null,{"$f":"IF(BQ73<>0,COUNTIF($BQ$12:BQ73,BQ73),\"\")","v":""}]
[null,"JUGE",null,null,null,null,null,null,null,null,null,null,null,null,null,null,null,null,null,null,null,null,null,null,null,null,null,null,null,null,null,null,null,null,null,null,null,null,null,null,null,null,null,null,null,null,null,null,null,null,null,null,null,null,null,null,null,null,null,null,null,null,null,null,null,null,null,"_",null,null,null,null,{"$f":"IF(BQ74<>0,COUNTIF($BQ$12:BQ74,BQ74),\"\")","v":""}]
[null,{"$f":"B67","v":0},null,null,null,null,null,null,null,null,null,null,null,null,null,null,null,null,null,null,null,null,null,null,null,null,null,null,null,null,null,null,null,null,null,null,null,null,null,null,null,null,null,null,null,null,null,null,null,null,null,null,null,null,null,null,null,null,null,null,null,null,null,null,null,null,null,"_",null,null,null,null,{"$f":"IF(BQ75<>0,COUNTIF($BQ$12:BQ75,BQ75),\"\")","v":""}]
[null,"SECRETAIRE",null,null,null,null,null,null,null,null,null,null,null,null,null,null,null,null,null,null,null,null,null,null,null,null,null,null,null,null,null,null,null,null,null,null,null,null,null,null,null,null,null,null,null,null,null,null,null,null,null,null,null,null,null,null,null,null,null,null,null,null,null,null,null,null,null,"_",null,null,null,null,{"$f":"IF(BQ76<>0,COUNTIF($BQ$12:BQ76,BQ76),\"\")","v":""}]
[null,{"$f":"B68","v":0},null,null,null,null,null,null,null,null,null,null,null,null,null,null,null,null,null,null,null,null,null,null,null,null,null,null,null,null,null,null,null,null,null,null,null,null,null,null,null,null,null,null,null,null,null,null,null,null,null,null,null,null,null,null,null,null,null,null,null,null,null,null,null,null,null,{"$f":"BQ77&\"_\"&BU77","v":"_"},null,null,null,null,{"$f":"IF(BQ77<>0,COUNTIF($BQ$12:BQ77,BQ77),\"\")","v":""}]
[null,null,null,{"$f":"SUM(D72:D77)","v":0},{"$f":"SUM(E72:E77)","v":0},null,{"$f":"SUM(G72:G77)","v":0},{"$f":"SUM(H72:H77)","v":0},null,{"$f":"SUM(J72:J77)","v":0},{"$f":"SUM(K72:K77)","v":0},null,{"$f":"SUM(M72:M77)","v":0},{"$f":"SUM(N72:N77)","v":0},null,{"$f":"SUM(P72:P77)","v":0},{"$f":"SUM(Q72:Q77)","v":0},null,{"$f":"SUM(S72:S77)","v":0},{"$f":"SUM(T72:T77)","v":0},null,null,null,null,null,null,null,null,null,null,null,null,null,null,null,null,null,null,null,null,null,null,null,null,null,null,null,null,null,null,null,null,null,null,null,null,null,null,null,null,null,null,null,null,null,null,null,"_",null,null,null,null,{"$f":"IF(BQ78<>0,COUNTIF($BQ$12:BQ78,BQ78),\"\")","v":""}]
[null,null,null,null,null,null,{"$f":"$D71","v":"Audrey"},{"$f":"D78+G78+J78+M78+P78+S78","v":0},null,{"$f":"VLOOKUP(H79,DEBUT!$G$5:$J$89,2,TRUE)","v":"Insuffisant"},null,null,{"$f":"$E71","v":"jean"},{"$f":"E78+H78+K78+N78+Q78+T78","v":0},null,{"$f":"VLOOKUP(N79,DEBUT!$G$5:$H$89,2,TRUE)","v":"Insuffisant"},null,null,null,null,null,null,null,null,null,null,null,null,null,null,null,null,null,null,null,null,null,null,null,null,null,null,null,null,null,null,null,null,null,null,null,null,null,null,null,null,null,null,null,null,null,null,null,null,null,null,null,"_",null,null,null,null,{"$f":"IF(BQ79<>0,COUNTIF($BQ$12:BQ79,BQ79),\"\")","v":""}]
[null,null,null,null,null,null,null,null,null,null,null,null,null,null,null,null,null,null,null,null,null,null,null,null,null,null,null,null,null,null,null,null,null,null,null,null,null,null,null,null,null,null,null,null,null,null,null,null,null,null,null,null,null,null,null,null,null,null,null,null,null,null,null,null,null,null,null,"_",null,null,null,null,{"$f":"IF(BQ80<>0,COUNTIF($BQ$12:BQ80,BQ80),\"\")","v":""}]
[null,"COMBAT 8",null,{"$f":"$B$5","v":"Audrey"},{"$f":"$B$6","v":"jean"},null,{"$f":"$D81","v":"Audrey"},{"$f":"$E81","v":"jean"},null,{"$f":"$D81","v":"Audrey"},{"$f":"$E81","v":"jean"},null,{"$f":"$D81","v":"Audrey"},{"$f":"$E81","v":"jean"},null,{"$f":"$D81","v":"Audrey"},{"$f":"$E81","v":"jean"},null,{"$f":"$D81","v":"Audrey"},{"$f":"$E81","v":"jean"},null,null,null,null,null,null,null,null,null,null,{"$f":"D81","v":"Audrey"},{"$f":"OFFSET($D82,0,0)","v":0},{"$f":"OFFSET($D83,0,0)","v":0},{"$f":"OFFSET($D84,0,0)","v":0},{"$f":"OFFSET($D85,0,0)","v":0},{"$f":"OFFSET($D86,0,0)","v":0},{"$f":"OFFSET($D87,0,0)","v":0},{"$f":"OFFSET($D82,0,3)","v":0},{"$f":"OFFSET($D83,0,3)","v":0},{"$f":"OFFSET($D84,0,3)","v":0},{"$f":"OFFSET($D85,0,3)","v":0},{"$f":"OFFSET($D86,0,3)","v":0},{"$f":"OFFSET($D87,0,3)","v":0},{"$f":"OFFSET($D82,0,6)","v":0},{"$f":"OFFSET($D83,0,6)","v":0},{"$f":"OFFSET($D84,0,6)","v":0},{"$f":"OFFSET($D85,0,6)","v":0},{"$f":"OFFSET($D86,0,6)","v":0},{"$f":"OFFSET($D87,0,6)","v":0},{"$f":"OFFSET($D82,0,9)","v":0},{"$f":"OFFSET($D83,0,9)","v":0},{"$f":"OFFSET($D84,0,9)","v":0},{"$f":"OFFSET($D85,0,9)","v":0},{"$f":"OFFSET($D86,0,9)","v":0},{"$f":"OFFSET($D87,0,9)","v":0},{"$f":"OFFSET($D82,0,12)","v":0},{"$f":"OFFSET($D83,0,12)","v":0},{"$f":"OFFSET($D84,0,12)","v":0},{"$f":"OFFSET($D85,0,12)","v":0},{"$f":"OFFSET($D86,0,12)","v":0},{"$f":"OFFSET($D87,0,12)","v":0},{"$f":"OFFSET($D82,0,15)","v":0},{"$f":"OFFSET($D83,0,15)","v":0},{"$f":"OFFSET($D84,0,15)","v":0},{"$f":"OFFSET($D85,0,15)","v":0},{"$f":"OFFSET($D86,0,15)","v":0},{"$f":"OFFSET($D87,0,15)","v":0},"Audrey_7",{"$f":"AE81","v":"Audrey"},{"$f":"COUNTIF(AF81:BO81,1)","v":0},{"$f":"COUNTIF(AF81:BO81,10)","v":0},{"$f":"COUNTIF(AF81:BO81,100)","v":0},{"$f":"IF(BQ81<>0,COUNTIF($BQ$12:BQ81,BQ81),\"\")","v":7}]
[null,"ARBITRE",null,null,10,null,null,null,null,null,null,null,null,null,null,null,null,null,null,null,null,null,null,null,null,null,null,null,null,null,{"$f":"E81","v":"jean"},{"$f":"OFFSET($E82,0,0)","v":10},{"$f":"OFFSET($E83,0,0)","v":0},{"$f":"OFFSET($E84,0,0)","v":0},{"$f":"OFFSET($E85,0,0)","v":0},{"$f":"OFFSET($E86,0,0)","v":0},{"$f":"OFFSET($E87,0,0)","v":0},{"$f":"OFFSET($E82,0,3)","v":0},{"$f":"OFFSET($E83,0,3)","v":0},{"$f":"OFFSET($E84,0,3)","v":0},{"$f":"OFFSET($E85,0,3)","v":0},{"$f":"OFFSET($E86,0,3)","v":0},{"$f":"OFFSET($E87,0,3)","v":0},{"$f":"OFFSET($E82,0,6)","v":0},{"$f":"OFFSET($E83,0,6)","v":0},{"$f":"OFFSET($E84,0,6)","v":0},{"$f":"OFFSET($E85,0,6)","v":0},{"$f":"OFFSET($E86,0,6)","v":0},{"$f":"OFFSET($E87,0,6)","v":0},{"$f":"OFFSET($E82,0,9)","v":0},{"$f":"OFFSET($E83,0,9)","v":0},{"$f":"OFFSET($E84,0,9)","v":0},{"$f":"OFFSET($E85,0,9)","v":0},{"$f":"OFFSET($E86,0,9)","v":0},{"$f":"OFFSET($E87,0,9)","v":0},{"$f":"OFFSET($E82,0,12)","v":0},{"$f":"OFFSET($E83,0,12)","v":0},{"$f":"OFFSET($E84,0,12)","v":0},{"$f":"OFFSET($E85,0,12)","v":0},{"$f":"OFFSET($E86,0,12)","v":0},{"$f":"OFFSET($E87,0,12)","v":0},{"$f":"OFFSET($E82,0,15)","v":0},{"$f":"OFFSET($E83,0,15)","v":0},{"$f":"OFFSET($E84,0,15)","v":0},{"$f":"OFFSET($E85,0,15)","v":0},{"$f":"OFFSET($E86,0,15)","v":0},{"$f":"OFFSET($E87,0,15)","v":0},"jean_6",{"$f":"AE82","v":"jean"},{"$f":"COUNTIF(AF82:BO82,1)","v":0},{"$f":"COUNTIF(AF82:BO82,10)","v":1},{"$f":"COUNTIF(AF82:BO82,100)","v":0},{"$f":"IF(BQ82<>0,COUNTIF($BQ$12:BQ82,BQ82),\"\")","v":6}]
[null,{"$f":"B76","v":"SECRETAIRE"},null,null,null,null,null,null,null,null,null,null,null,null,null,null,null,null,null,null,null,null,null,null,null,null,null,null,null,null,null,null,null,null,null,null,null,null,null,null,null,null,null,null,null,null,null,null,null,null,null,null,null,null,null,null,null,null,null,null,null,null,null,null,null,null,null,"_",null,null,null,null,{"$f":"IF(BQ83<>0,COUNTIF($BQ$12:BQ83,BQ83),\"\")","v":""}]
[null,"JUGE",null,null,null,null,null,null,null,null,null,null,null,null,null,null,null,null,null,null,null,null,null,null,null,null,null,null,null,null,null,null,null,null,null,null,null,null,null,null,null,null,null,null,null,null,null,null,null,null,null,null,null,null,null,null,null,null,null,null,null,null,null,null,null,null,null,"_",null,null,null,null,{"$f":"IF(BQ84<>0,COUNTIF($BQ$12:BQ84,BQ84),\"\")","v":""}]
[null,{"$f":"B77","v":0},null,null,null,null,null,null,null,null,null,null,null,null,null,null,null,null,null,null,null,null,null,null,null,null,null,null,null,null,null,null,null,null,null,null,null,null,null,null,null,null,null,null,null,null,null,null,null,null,null,null,null,null,null,null,null,null,null,null,null,null,null,null,null,null,null,"_",null,null,null,null,{"$f":"IF(BQ85<>0,COUNTIF($BQ$12:BQ85,BQ85),\"\")","v":""}]
[null,"SECRETAIRE",null,null,null,null,null,null,null,null,null,null,null,null,null,null,null,null,null,null,null,null,null,null,null,null,null,null,null,null,null,null,null,null,null,null,null,null,null,null,null,null,null,null,null,null,null,null,null,null,null,null,null,null,null,null,null,null,null,null,null,null,null,null,null,null,null,"_",null,null,null,null,{"$f":"IF(BQ86<>0,COUNTIF($BQ$12:BQ86,BQ86),\"\")","v":""}]
[null,{"$f":"B78","v":0},null,null,null,null,null,null,null,null,null,null,null,null,null,null,null,null,null,null,null,null,null,null,null,null,null,null,null,null,null,null,null,null,null,null,null,null,null,null,null,null,null,null,null,null,null,null,null,null,null,null,null,null,null,null,null,null,null,null,null,null,null,null,null,null,null,"_",null,null,null,null,{"$f":"IF(BQ87<>0,COUNTIF($BQ$12:BQ87,BQ87),\"\")","v":""}]
[null,null,null,{"$f":"SUM(D82:D87)","v":0},{"$f":"SUM(E82:E87)","v":10},null,{"$f":"SUM(G82:G87)","v":0},{"$f":"SUM(H82:H87)","v":0},null,{"$f":"SUM(J82:J87)","v":0},{"$f":"SUM(K82:K87)","v":0},null,{"$f":"SUM(M82:M87)","v":0},{"$f":"SUM(N82:N87)","v":0},null,{"$f":"SUM(P82:P87)","v":0},{"$f":"SUM(Q82:Q87)","v":0},null,{"$f":"SUM(S82:S87)","v":0},{"$f":"SUM(T82:T87)","v":0},null,null,null,null,null,null,null,null,null,null,null,null,null,null,null,null,null,null,null,null,null,null,null,null,null,null,null,null,null,null,null,null,null,null,null,null,null,null,null,null,null,null,null,null,null,null,null,"_",null,null,null,null,{"$f":"IF(BQ88<>0,COUNTIF($BQ$12:BQ88,BQ88),\"\")","v":""}]
[null,null,null,null,null,null,{"$f":"$D81","v":"Audrey"},{"$f":"D88+G88+J88+M88+P88+S88","v":0},null,{"$f":"VLOOKUP(H89,DEBUT!$G$5:$J$89,2,TRUE)","v":"Insuffisant"},null,null,{"$f":"$E81","v":"jean"},{"$f":"E88+H88+K88+N88+Q88+T88","v":10},null,{"$f":"VLOOKUP(N89,DEBUT!$G$5:$H$89,2,TRUE)","v":"Fragile"},null,null,null,null,null,null,null,null,null,null,null,null,null,null,null,null,null,null,null,null,null,null,null,null,null,null,null,null,null,null,null,null,null,null,null,null,null,null,null,null,null,null,null,null,null,null,null,null,null,null,null,"_",null,null,null,null,{"$f":"IF(BQ89<>0,COUNTIF($BQ$12:BQ89,BQ89),\"\")","v":""}]
[null,null,null,null,null,null,null,null,null,null,null,null,null,null,null,null,null,null,null,null,null,null,null,null,null,null,null,null,null,null,null,null,null,null,null,null,null,null,null,null,null,null,null,null,null,null,null,null,null,null,null,null,null,null,null,null,null,null,null,null,null,null,null,null,null,null,null,"_",null,null,null,null,{"$f":"IF(BQ90<>0,COUNTIF($BQ$12:BQ90,BQ90),\"\")","v":""}]
[null,"COMBAT 9",null,{"$f":"$B$5","v":"Audrey"},{"$f":"$B$6","v":"jean"},null,{"$f":"$D91","v":"Audrey"},{"$f":"$E91","v":"jean"},null,{"$f":"$D91","v":"Audrey"},{"$f":"$E91","v":"jean"},null,{"$f":"$D91","v":"Audrey"},{"$f":"$E91","v":"jean"},null,{"$f":"$D91","v":"Audrey"},{"$f":"$E91","v":"jean"},null,{"$f":"$D91","v":"Audrey"},{"$f":"$E91","v":"jean"},null,null,null,null,null,null,null,null,null,null,{"$f":"D91","v":"Audrey"},{"$f":"OFFSET($D92,0,0)","v":0},{"$f":"OFFSET($D93,0,0)","v":0},{"$f":"OFFSET($D94,0,0)","v":0},{"$f":"OFFSET($D95,0,0)","v":0},{"$f":"OFFSET($D96,0,0)","v":0},{"$f":"OFFSET($D97,0,0)","v":0},{"$f":"OFFSET($D92,0,3)","v":0},{"$f":"OFFSET($D93,0,3)","v":0},{"$f":"OFFSET($D94,0,3)","v":0},{"$f":"OFFSET($D95,0,3)","v":0},{"$f":"OFFSET($D96,0,3)","v":0},{"$f":"OFFSET($D97,0,3)","v":0},{"$f":"OFFSET($D92,0,6)","v":0},{"$f":"OFFSET($D93,0,6)","v":0},{"$f":"OFFSET($D94,0,6)","v":0},{"$f":"OFFSET($D95,0,6)","v":0},{"$f":"OFFSET($D96,0,6)","v":0},{"$f":"OFFSET($D97,0,6)","v":0},{"$f":"OFFSET($D92,0,9)","v":0},{"$f":"OFFSET($D93,0,9)","v":0},{"$f":"OFFSET($D94,0,9)","v":0},{"$f":"OFFSET($D95,0,9)","v":0},{"$f":"OFFSET($D96,0,9)","v":0},{"$f":"OFFSET($D97,0,9)","v":0},{"$f":"OFFSET($D92,0,12)","v":0},{"$f":"OFFSET($D93,0,12)","v":0},{"$f":"OFFSET($D94,0,12)","v":0},{"$f":"OFFSET($D95,0,12)","v":0},{"$f":"OFFSET($D96,0,12)","v":0},{"$f":"OFFSET($D97,0,12)","v":0},{"$f":"OFFSET($D92,0,15)","v":0},{"$f":"OFFSET($D93,0,15)","v":0},{"$f":"OFFSET($D94,0,15)","v":0},{"$f":"OFFSET($D95,0,15)","v":0},{"$f":"OFFSET($D96,0,15)","v":0},{"$f":"OFFSET($D97,0,15)","v":0},"Audrey_8",{"$f":"AE91","v":"Audrey"},{"$f":"COUNTIF(AF91:BO91,1)","v":0},{"$f":"COUNTIF(AF91:BO91,10)","v":0},{"$f":"COUNTIF(AF91:BO91,100)","v":0},{"$f":"IF(BQ91<>0,COUNTIF($BQ$12:BQ91,BQ91),\"\")","v":8}]
[null,"ARBITRE",null,null,null,null,null,null,null,null,null,null,null,null,null,null,null,null,null,null,null,null,null,null,null,null,null,null,null,null,{"$f":"E91","v":"jean"},{"$f":"OFFSET($E92,0,0)","v":0},{"$f":"OFFSET($E93,0,0)","v":0},{"$f":"OFFSET($E94,0,0)","v":0},{"$f":"OFFSET($E95,0,0)","v":0},{"$f":"OFFSET($E96,0,0)","v":0},{"$f":"OFFSET($E97,0,0)","v":0},{"$f":"OFFSET($E92,0,3)","v":0},{"$f":"OFFSET($E93,0,3)","v":0},{"$f":"OFFSET($E94,0,3)","v":0},{"$f":"OFFSET($E95,0,3)","v":0},{"$f":"OFFSET($E96,0,3)","v":0},{"$f":"OFFSET($E97,0,3)","v":0},{"$f":"OFFSET($E92,0,6)","v":0},{"$f":"OFFSET($E93,0,6)","v":0},{"$f":"OFFSET($E94,0,6)","v":0},{"$f":"OFFSET($E95,0,6)","v":0},{"$f":"OFFSET($E96,0,6)","v":0},{"$f":"OFFSET($E97,0,6)","v":0},{"$f":"OFFSET($E92,0,9)","v":0},{"$f":"OFFSET($E93,0,9)","v":0},{"$f":"OFFSET($E94,0,9)","v":0},{"$f":"OFFSET($E95,0,9)","v":0},{"$f":"OFFSET($E96,0,9)","v":0},{"$f":"OFFSET($E97,0,9)","v":0},{"$f":"OFFSET($E92,0,12)","v":0},{"$f":"OFFSET($E93,0,12)","v":0},{"$f":"OFFSET($E94,0,12)","v":0},{"$f":"OFFSET($E95,0,12)","v":0},{"$f":"OFFSET($E96,0,12)","v":0},{"$f":"OFFSET($E97,0,12)","v":0},{"$f":"OFFSET($E92,0,15)","v":0},{"$f":"OFFSET($E93,0,15)","v":0},{"$f":"OFFSET($E94,0,15)","v":0},{"$f":"OFFSET($E95,0,15)","v":0},{"$f":"OFFSET($E96,0,15)","v":0},{"$f":"OFFSET($E97,0,15)","v":0},"jean_7",{"$f":"AE92","v":"jean"},{"$f":"COUNTIF(AF92:BO92,1)","v":0},{"$f":"COUNTIF(AF92:BO92,10)","v":0},{"$f":"COUNTIF(AF92:BO92,100)","v":0},{"$f":"IF(BQ92<>0,COUNTIF($BQ$12:BQ92,BQ92),\"\")","v":7}]
[null,{"$f":"B86","v":"SECRETAIRE"},null,null,null,null,null,null,null,null,null,null,null,null,null,null,null,null,null,null,null,null,null,null,null,null,null,null,null,null,null,null,null,null,null,null,null,null,null,null,null,null,null,null,null,null,null,null,null,null,null,null,null,null,null,null,null,null,null,null,null,null,null,null,null,null,null,"_",null,null,null,null,{"$f":"IF(BQ93<>0,COUNTIF($BQ$12:BQ93,BQ93),\"\")","v":""}]
[null,"JUGE",null,null,null,null,null,null,null,null,null,null,null,null,null,null,null,null,null,null,null,null,null,null,null,null,null,null,null,null,null,null,null,null,null,null,null,null,null,null,null,null,null,null,null,null,null,null,null,null,null,null,null,null,null,null,null,null,null,null,null,null,null,null,null,null,null,"_",null,null,null,null,{"$f":"IF(BQ94<>0,COUNTIF($BQ$12:BQ94,BQ94),\"\")","v":""}]
[null,{"$f":"B87","v":0},null,null,null,null,null,null,null,null,null,null,null,null,null,null,null,null,null,null,null,null,null,null,null,null,null,null,null,null,null,null,null,null,null,null,null,null,null,null,null,null,null,null,null,null,null,null,null,null,null,null,null,null,null,null,null,null,null,null,null,null,null,null,null,null,null,"_",null,null,null,null,{"$f":"IF(BQ95<>0,COUNTIF($BQ$12:BQ95,BQ95),\"\")","v":""}]
[null,"SECRETAIRE",null,null,null,null,null,null,null,null,null,null,null,null,null,null,null,null,null,null,null,null,null,null,null,null,null,null,null,null,null,null,null,null,null,null,null,null,null,null,null,null,null,null,null,null,null,null,null,null,null,null,null,null,null,null,null,null,null,null,null,null,null,null,null,null,null,"_",null,null,null,null,{"$f":"IF(BQ96<>0,COUNTIF($BQ$12:BQ96,BQ96),\"\")","v":""}]
[null,{"$f":"B88","v":0},null,null,null,null,null,null,null,null,null,null,null,null,null,null,null,null,null,null,null,null,null,null,null,null,null,null,null,null,null,null,null,null,null,null,null,null,null,null,null,null,null,null,null,null,null,null,null,null,null,null,null,null,null,null,null,null,null,null,null,null,null,null,null,null,null,"_",null,null,null,null,{"$f":"IF(BQ97<>0,COUNTIF($BQ$12:BQ97,BQ97),\"\")","v":""}]
[null,null,null,{"$f":"SUM(D92:D97)","v":0},{"$f":"SUM(E92:E97)","v":0},null,{"$f":"SUM(G92:G97)","v":0},{"$f":"SUM(H92:H97)","v":0},null,{"$f":"SUM(J92:J97)","v":0},{"$f":"SUM(K92:K97)","v":0},null,{"$f":"SUM(M92:M97)","v":0},{"$f":"SUM(N92:N97)","v":0},null,{"$f":"SUM(P92:P97)","v":0},{"$f":"SUM(Q92:Q97)","v":0},null,{"$f":"SUM(S92:S97)","v":0},{"$f":"SUM(T92:T97)","v":0},null,null,null,null,null,null,null,null,null,null,null,null,null,null,null,null,null,null,null,null,null,null,null,null,null,null,null,null,null,null,null,null,null,null,null,null,null,null,null,null,null,null,null,null,null,null,null,"_",null,null,null,null,{"$f":"IF(BQ98<>0,COUNTIF($BQ$12:BQ98,BQ98),\"\")","v":""}]
[null,null,null,null,null,null,{"$f":"$D91","v":"Audrey"},{"$f":"D98+G98+J98+M98+P98+S98","v":0},null,{"$f":"VLOOKUP(H99,DEBUT!$G$5:$J$89,2,TRUE)","v":"Insuffisant"},null,null,{"$f":"$E91","v":"jean"},{"$f":"E98+H98+K98+N98+Q98+T98","v":0},null,{"$f":"VLOOKUP(N99,DEBUT!$G$5:$H$89,2,TRUE)","v":"Insuffisant"},null,null,null,null,null,null,null,null,null,null,null,null,null,null,null,null,null,null,null,null,null,null,null,null,null,null,null,null,null,null,null,null,null,null,null,null,null,null,null,null,null,null,null,null,null,null,null,null,null,null,null,"_",null,null,null,null,{"$f":"IF(BQ99<>0,COUNTIF($BQ$12:BQ99,BQ99),\"\")","v":""}]
[null,null,null,null,null,null,null,null,null,null,null,null,null,null,null,null,null,null,null,null,null,null,null,null,null,null,null,null,null,null,null,null,null,null,null,null,null,null,null,null,null,null,null,null,null,null,null,null,null,null,null,null,null,null,null,null,null,null,null,null,null,null,null,null,null,null,null,"_",null,null,null,null,{"$f":"IF(BQ100<>0,COUNTIF($BQ$12:BQ100,BQ100),\"\")","v":""}]
[null,"COMBAT 10",null,{"$f":"$B$5","v":"Audrey"},{"$f":"$B$6","v":"jean"},null,{"$f":"$D101","v":"Audrey"},{"$f":"$E101","v":"jean"},null,{"$f":"$D101","v":"Audrey"},{"$f":"$E101","v":"jean"},null,{"$f":"$D101","v":"Audrey"},{"$f":"$E101","v":"jean"},null,{"$f":"$D101","v":"Audrey"},{"$f":"$E101","v":"jean"},null,{"$f":"$D101","v":"Audrey"},{"$f":"$E101","v":"jean"},null,null,null,null,null,null,null,null,null,null,{"$f":"D101","v":"Audrey"},{"$f":"OFFSET($D102,0,0)","v":0},{"$f":"OFFSET($D103,0,0)","v":0},{"$f":"OFFSET($D104,0,0)","v":0},{"$f":"OFFSET($D105,0,0)","v":0},{"$f":"OFFSET($D106,0,0)","v":0},{"$f":"OFFSET($D107,0,0)","v":0},{"$f":"OFFSET($D102,0,3)","v":0},{"$f":"OFFSET($D103,0,3)","v":0},{"$f":"OFFSET($D104,0,3)","v":0},{"$f":"OFFSET($D105,0,3)","v":0},{"$f":"OFFSET($D106,0,3)","v":0},{"$f":"OFFSET($D107,0,3)","v":0},{"$f":"OFFSET($D102,0,6)","v":0},{"$f":"OFFSET($D103,0,6)","v":0},{"$f":"OFFSET($D104,0,6)","v":0},{"$f":"OFFSET($D105,0,6)","v":0},{"$f":"OFFSET($D106,0,6)","v":0},{"$f":"OFFSET($D107,0,6)","v":0},{"$f":"OFFSET($D102,0,9)","v":0},{"$f":"OFFSET($D103,0,9)","v":0},{"$f":"OFFSET($D104,0,9)","v":0},{"$f":"OFFSET($D105,0,9)","v":0},{"$f":"OFFSET($D106,0,9)","v":0},{"$f":"OFFSET($D107,0,9)","v":0},{"$f":"OFFSET($D102,0,12)","v":0},{"$f":"OFFSET($D103,0,12)","v":0},{"$f":"OFFSET($D104,0,12)","v":0},{"$f":"OFFSET($D105,0,12)","v":0},{"$f":"OFFSET($D106,0,12)","v":0},{"$f":"OFFSET($D107,0,12)","v":0},{"$f":"OFFSET($D102,0,15)","v":0},{"$f":"OFFSET($D103,0,15)","v":0},{"$f":"OFFSET($D104,0,15)","v":0},{"$f":"OFFSET($D105,0,15)","v":0},{"$f":"OFFSET($D106,0,15)","v":0},{"$f":"OFFSET($D107,0,15)","v":0},"Audrey_9",{"$f":"AE101","v":"Audrey"},{"$f":"COUNTIF(AF101:BO101,1)","v":0},{"$f":"COUNTIF(AF101:BO101,10)","v":0},{"$f":"COUNTIF(AF101:BO101,100)","v":0},{"$f":"IF(BQ101<>0,COUNTIF($BQ$12:BQ101,BQ101),\"\")","v":9}]
[null,"ARBITRE",null,null,null,null,null,null,null,null,null,null,null,null,null,null,null,null,null,null,null,null,null,null,null,null,null,null,null,null,{"$f":"E101","v":"jean"},{"$f":"OFFSET($E102,0,0)","v":0},{"$f":"OFFSET($E103,0,0)","v":0},{"$f":"OFFSET($E104,0,0)","v":0},{"$f":"OFFSET($E105,0,0)","v":0},{"$f":"OFFSET($E106,0,0)","v":0},{"$f":"OFFSET($E107,0,0)","v":0},{"$f":"OFFSET($E102,0,3)","v":0},{"$f":"OFFSET($E103,0,3)","v":0},{"$f":"OFFSET($E104,0,3)","v":0},{"$f":"OFFSET($E105,0,3)","v":0},{"$f":"OFFSET($E106,0,3)","v":0},{"$f":"OFFSET($E107,0,3)","v":0},{"$f":"OFFSET($E102,0,6)","v":0},{"$f":"OFFSET($E103,0,6)","v":0},{"$f":"OFFSET($E104,0,6)","v":0},{"$f":"OFFSET($E105,0,6)","v":0},{"$f":"OFFSET($E106,0,6)","v":0},{"$f":"OFFSET($E107,0,6)","v":0},{"$f":"OFFSET($E102,0,9)","v":0},{"$f":"OFFSET($E103,0,9)","v":0},{"$f":"OFFSET($E104,0,9)","v":0},{"$f":"OFFSET($E105,0,9)","v":0},{"$f":"OFFSET($E106,0,9)","v":0},{"$f":"OFFSET($E107,0,9)","v":0},{"$f":"OFFSET($E102,0,12)","v":0},{"$f":"OFFSET($E103,0,12)","v":0},{"$f":"OFFSET($E104,0,12)","v":0},{"$f":"OFFSET($E105,0,12)","v":0},{"$f":"OFFSET($E106,0,12)","v":0},{"$f":"OFFSET($E107,0,12)","v":0},{"$f":"OFFSET($E102,0,15)","v":0},{"$f":"OFFSET($E103,0,15)","v":0},{"$f":"OFFSET($E104,0,15)","v":0},{"$f":"OFFSET($E105,0,15)","v":0},{"$f":"OFFSET($E106,0,15)","v":0},{"$f":"OFFSET($E107,0,15)","v":0},"jean_8",{"$f":"AE102","v":"jean"},{"$f":"COUNTIF(AF102:BO102,1)","v":0},{"$f":"COUNTIF(AF102:BO102,10)","v":0},{"$f":"COUNTIF(AF102:BO102,100)","v":0},{"$f":"IF(BQ102<>0,COUNTIF($BQ$12:BQ102,BQ102),\"\")","v":8}]
[null,{"$f":"B96","v":"SECRETAIRE"},null,null,null,null,null,null,null,null,null,null,null,null,null,null,null,null,null,null,null,null,null,null,null,null,null,null,null,null,null,null,null,null,null,null,null,null,null,null,null,null,null,null,null,null,null,null,null,null,null,null,null,null,null,null,null,null,null,null,null,null,null,null,null,null,null,"_",null,null,null,null,{"$f":"IF(BQ103<>0,COUNTIF($BQ$12:BQ103,BQ103),\"\")","v":""}]
[null,"JUGE",null,null,null,null,null,null,null,null,null,null,null,null,null,null,null,null,null,null,null,null,null,null,null,null,null,null,null,null,null,null,null,null,null,null,null,null,null,null,null,null,null,null,null,null,null,null,null,null,null,null,null,null,null,null,null,null,null,null,null,null,null,null,null,null,null,"_",null,null,null,null,{"$f":"IF(BQ104<>0,COUNTIF($BQ$12:BQ104,BQ104),\"\")","v":""}]
[null,{"$f":"B97","v":0},null,null,null,null,null,null,null,null,null,null,null,null,null,null,null,null,null,null,null,null,null,null,null,null,null,null,null,null,null,null,null,null,null,null,null,null,null,null,null,null,null,null,null,null,null,null,null,null,null,null,null,null,null,null,null,null,null,null,null,null,null,null,null,null,null,"_",null,null,null,null,{"$f":"IF(BQ105<>0,COUNTIF($BQ$12:BQ105,BQ105),\"\")","v":""}]
[null,"SECRETAIRE",null,null,null,null,null,null,null,null,null,null,null,null,null,null,null,null,null,null,null,null,null,null,null,null,null,null,null,null,null,null,null,null,null,null,null,null,null,null,null,null,null,null,null,null,null,null,null,null,null,null,null,null,null,null,null,null,null,null,null,null,null,null,null,null,null,"_",null,null,null,null,{"$f":"IF(BQ106<>0,COUNTIF($BQ$12:BQ106,BQ106),\"\")","v":""}]
[null,{"$f":"B98","v":0},null,null,null,null,null,null,null,null,null,null,null,null,null,null,null,null,null,null,null,null,null,null,null,null,null,null,null,null,null,null,null,null,null,null,null,null,null,null,null,null,null,null,null,null,null,null,null,null,null,null,null,null,null,null,null,null,null,null,null,null,null,null,null,null,null,"_",null,null,null,null,{"$f":"IF(BQ107<>0,COUNTIF($BQ$12:BQ107,BQ107),\"\")","v":""}]
[null,null,null,{"$f":"SUM(D102:D107)","v":0},{"$f":"SUM(E102:E107)","v":0},null,{"$f":"SUM(G102:G107)","v":0},{"$f":"SUM(H102:H107)","v":0},null,{"$f":"SUM(J102:J107)","v":0},{"$f":"SUM(K102:K107)","v":0},null,{"$f":"SUM(M102:M107)","v":0},{"$f":"SUM(N102:N107)","v":0},null,{"$f":"SUM(P102:P107)","v":0},{"$f":"SUM(Q102:Q107)","v":0},null,{"$f":"SUM(S102:S107)","v":0},{"$f":"SUM(T102:T107)","v":0}]
[null,null,null,null,null,null,{"$f":"$D101","v":"Audrey"},{"$f":"D108+G108+J108+M108+P108+S108","v":0},null,{"$f":"VLOOKUP(H109,DEBUT!$G$5:$J$89,2,TRUE)","v":"Insuffisant"},null,null,{"$f":"$E101","v":"jean"},{"$f":"E108+H108+K108+N108+Q108+T108","v":0},null,{"$f":"VLOOKUP(N109,DEBUT!$G$5:$H$89,2,TRUE)","v":"Insuffisant"}]

{"sheet":"MONBAREME","index":2,"n_rows":36,"n_cols":11,"rows_kept":36,"cut":false,"hidden":false,"merged":[[6,1,6,2],[0,5,2,10],[0,13,2,16],[3,1,3,2],[4,1,4,2],[5,1,5,2],[18,1,18,2],[7,1,7,2],[8,1,8,2],[9,1,9,2],[10,1,10,2],[11,1,11,2],[12,1,12,2],[13,1,13,2],[14,1,14,2],[15,1,15,2],[16,1,16,2],[17,1,17,2],[30,1,30,2],[19,1,19,2],[20,1,20,2],[21,1,21,2],[22,1,22,2],[23,1,23,2],[24,1,24,2],[25,1,25,2],[26,1,26,2],[27,1,27,2],[28,1,28,2],[29,1,29,2],[31,1,31,2],[32,1,32,2],[33,1,33,2],[34,1,34,2],[35,1,35,2]]}
[null,"Classe "]
[null,"1TU-GA",null,null,"N4"]
[]
[null,"Elèves",null,{"$f":"Tableau4[[#Headers],[Points marqués]]","v":"Points marqués"},{"$f":"Tableau4[[#Headers],[CRITERE 2]]","v":"CRITERE 2"},{"$f":"Tableau4[[#Headers],[CRITERE 3]]","v":"CRITERE 3"},{"$f":"Tableau4[[#Headers],[CRITERE 4]]","v":"CRITERE 4"},{"$f":"Tableau46[[#Headers],[POINTS]]","v":"POINTS"},{"$f":"Tableau46[[#Headers],[COMPETENCE]]","v":"COMPETENCE"},{"$f":"Tableau46[[#Headers],[C3]]","v":"C3"},{"$f":"Tableau46[[#Headers],[C4]]","v":"C4"}]
[{"$f":"IF($B$2=APPEL!$B$1,VLOOKUP(B5,APPEL!$C$3:$D$38,2,FALSE),IF($B$2=APPEL!$E$1,VLOOKUP(B5,APPEL!$F$3:$G$38,2,FALSE),IF($B$2=APPEL!$H$1,VLOOKUP(B5,APPEL!$I$3:$J$38,2,FALSE),IF($B$2=APPEL!$K$1,VLOOKUP(B5,APPEL!$L$3:$M$38,2,FALSE),IF($B$2=APPEL!$N$1,VLOOKUP(B5,APPEL!$O$3:$P$38,2,FALSE),IF($B$2=APPEL!$Q$1,VLOOKUP(B5,APPEL!$R$3:$S$38,2,FALSE),IF($B$2=APPEL!$T$1,VLOOKUP(B5,APPEL!$U$3:$V$38,2,FALSE),IF($B$2=APPEL!$W$1,VLOOKUP(B5,APPEL!$X$3:$Y$38,2,FALSE),IF($B$2=APPEL!$Z$1,VLOOKUP(B5,APPEL!$AA$3:$AB$38,2,FALSE))))))))))","v":"g"},{"$f":"IF($B$2=APPEL!$B$1,APPEL!C3,IF($B$2=APPEL!$E$1,APPEL!F3,IF($B$2=APPEL!$H$1,APPEL!I3,IF($B$2=APPEL!$K$1,APPEL!L3,IF($B$2=APPEL!$N$1,APPEL!O3,IF($B$2=APPEL!$Q$1,APPEL!R3,IF($B$2=APPEL!$T$1,APPEL!U3,IF($B$2=APPEL!$W$1,APPEL!X3,IF($B$2=APPEL!$Z$1,APPEL!AA3)))))))))","v":"Abraham"},null,100,{"$f":"IFERROR(VLOOKUP(D5,DEBUT!$B$5:$E$100,2,FALSE),\"\")","v":0},{"$f":"IFERROR(VLOOKUP(D5,DEBUT!$B$5:$E$100,3,FALSE),\"\")","v":0},{"$f":"IFERROR(VLOOKUP(D5,DEBUT!$B$5:$E$100,4,FALSE),\"\")","v":0},"et en +",{"$f":"IFERROR(VLOOKUP(H5,DEBUT!$G$5:$J$100,2,FALSE),\"\")","v":""},{"$f":"IFERROR(VLOOKUP(H5,DEBUT!$G$5:$J$100,3,FALSE),\"\")","v":""},{"$f":"IFERROR(VLOOKUP(H5,DEBUT!$G$5:$J$100,4,FALSE),\"\")","v":""}]
[{"$f":"IF($B$2=APPEL!$B$1,VLOOKUP(B6,APPEL!$C$3:$D$38,2,FALSE),IF($B$2=APPEL!$E$1,VLOOKUP(B6,APPEL!$F$3:$G$38,2,FALSE),IF($B$2=APPEL!$H$1,VLOOKUP(B6,APPEL!$I$3:$J$38,2,FALSE),IF($B$2=APPEL!$K$1,VLOOKUP(B6,APPEL!$L$3:$M$38,2,FALSE),IF($B$2=APPEL!$N$1,VLOOKUP(B6,APPEL!$O$3:$P$38,2,FALSE),IF($B$2=APPEL!$Q$1,VLOOKUP(B6,APPEL!$R$3:$S$38,2,FALSE),IF($B$2=APPEL!$T$1,VLOOKUP(B6,APPEL!$U$3:$V$38,2,FALSE),IF($B$2=APPEL!$W$1,VLOOKUP(B6,APPEL!$X$3:$Y$38,2,FALSE),IF($B$2=APPEL!$Z$1,VLOOKUP(B6,APPEL!$AA$3:$AB$38,2,FALSE))))))))))","v":"f"},{"$f":"IF($B$2=APPEL!$B$1,APPEL!C4,IF($B$2=APPEL!$E$1,APPEL!F4,IF($B$2=APPEL!$H$1,APPEL!I4,IF($B$2=APPEL!$K$1,APPEL!L4,IF($B$2=APPEL!$N$1,APPEL!O4,IF($B$2=APPEL!$Q$1,APPEL!R4,IF($B$2=APPEL!$T$1,APPEL!U4,IF($B$2=APPEL!$W$1,APPEL!X4,IF($B$2=APPEL!$Z$1,APPEL!AA4)))))))))","v":"Aimane"},null,10,{"$f":"IFERROR(VLOOKUP(D6,DEBUT!$B$5:$E$100,2,FALSE),\"\")","v":0},{"$f":"IFERROR(VLOOKUP(D6,DEBUT!$B$5:$E$100,3,FALSE),\"\")","v":0},{"$f":"IFERROR(VLOOKUP(D6,DEBUT!$B$5:$E$100,4,FALSE),\"\")","v":0},"Bien échauffé",{"$f":"IFERROR(VLOOKUP(H6,DEBUT!$G$5:$J$100,2,FALSE),\"\")","v":""},{"$f":"IFERROR(VLOOKUP(H6,DEBUT!$G$5:$J$100,3,FALSE),\"\")","v":""},{"$f":"IFERROR(VLOOKUP(H6,DEBUT!$G$5:$J$100,4,FALSE),\"\")","v":""}]
[{"$f":"IF($B$2=APPEL!$B$1,VLOOKUP(B7,APPEL!$C$3:$D$38,2,FALSE),IF($B$2=APPEL!$E$1,VLOOKUP(B7,APPEL!$F$3:$G$38,2,FALSE),IF($B$2=APPEL!$H$1,VLOOKUP(B7,APPEL!$I$3:$J$38,2,FALSE),IF($B$2=APPEL!$K$1,VLOOKUP(B7,APPEL!$L$3:$M$38,2,FALSE),IF($B$2=APPEL!$N$1,VLOOKUP(B7,APPEL!$O$3:$P$38,2,FALSE),IF($B$2=APPEL!$Q$1,VLOOKUP(B7,APPEL!$R$3:$S$38,2,FALSE),IF($B$2=APPEL!$T$1,VLOOKUP(B7,APPEL!$U$3:$V$38,2,FALSE),IF($B$2=APPEL!$W$1,VLOOKUP(B7,APPEL!$X$3:$Y$38,2,FALSE),IF($B$2=APPEL!$Z$1,VLOOKUP(B7,APPEL!$AA$3:$AB$38,2,FALSE))))))))))","v":"f"},{"$f":"IF($B$2=APPEL!$B$1,APPEL!C5,IF($B$2=APPEL!$E$1,APPEL!F5,IF($B$2=APPEL!$H$1,APPEL!I5,IF($B$2=APPEL!$K$1,APPEL!L5,IF($B$2=APPEL!$N$1,APPEL!O5,IF($B$2=APPEL!$Q$1,APPEL!R5,IF($B$2=APPEL!$T$1,APPEL!U5,IF($B$2=APPEL!$W$1,APPEL!X5,IF($B$2=APPEL!$Z$1,APPEL!AA5)))))))))","v":"Amel"},null,null,{"$f":"IFERROR(VLOOKUP(D7,DEBUT!$B$5:$E$100,2,FALSE),\"\")","v":""},{"$f":"IFERROR(VLOOKUP(D7,DEBUT!$B$5:$E$100,3,FALSE),\"\")","v":""},{"$f":"IFERROR(VLOOKUP(D7,DEBUT!$B$5:$E$100,4,FALSE),\"\")","v":""},null,{"$f":"IFERROR(VLOOKUP(H7,DEBUT!$G$5:$J$100,2,FALSE),\"\")","v":"Insuffisant"},{"$f":"IFERROR(VLOOKUP(H7,DEBUT!$G$5:$J$100,3,FALSE),\"\")","v":0},{"$f":"IFERROR(VLOOKUP(H7,DEBUT!$G$5:$J$100,4,FALSE),\"\")","v":0}]
[{"$f":"IF($B$2=APPEL!$B$1,VLOOKUP(B8,APPEL!$C$3:$D$38,2,FALSE),IF($B$2=APPEL!$E$1,VLOOKUP(B8,APPEL!$F$3:$G$38,2,FALSE),IF($B$2=APPEL!$H$1,VLOOKUP(B8,APPEL!$I$3:$J$38,2,FALSE),IF($B$2=APPEL!$K$1,VLOOKUP(B8,APPEL!$L$3:$M$38,2,FALSE),IF($B$2=APPEL!$N$1,VLOOKUP(B8,APPEL!$O$3:$P$38,2,FALSE),IF($B$2=APPEL!$Q$1,VLOOKUP(B8,APPEL!$R$3:$S$38,2,FALSE),IF($B$2=APPEL!$T$1,VLOOKUP(B8,APPEL!$U$3:$V$38,2,FALSE),IF($B$2=APPEL!$W$1,VLOOKUP(B8,APPEL!$X$3:$Y$38,2,FALSE),IF($B$2=APPEL!$Z$1,VLOOKUP(B8,APPEL!$AA$3:$AB$38,2,FALSE))))))))))","v":"f"},{"$f":"IF($B$2=APPEL!$B$1,APPEL!C6,IF($B$2=APPEL!$E$1,APPEL!F6,IF($B$2=APPEL!$H$1,APPEL!I6,IF($B$2=APPEL!$K$1,APPEL!L6,IF($B$2=APPEL!$N$1,APPEL!O6,IF($B$2=APPEL!$Q$1,APPEL!R6,IF($B$2=APPEL!$T$1,APPEL!U6,IF($B$2=APPEL!$W$1,APPEL!X6,IF($B$2=APPEL!$Z$1,APPEL!AA6)))))))))","v":"Amira"},null,null,{"$f":"IFERROR(VLOOKUP(D8,DEBUT!$B$5:$E$100,2,FALSE),\"\")","v":""},{"$f":"IFERROR(VLOOKUP(D8,DEBUT!$B$5:$E$100,3,FALSE),\"\")","v":""},{"$f":"IFERROR(VLOOKUP(D8,DEBUT!$B$5:$E$100,4,FALSE),\"\")","v":""},null,{"$f":"IFERROR(VLOOKUP(H8,DEBUT!$G$5:$J$100,2,FALSE),\"\")","v":"Insuffisant"},{"$f":"IFERROR(VLOOKUP(H8,DEBUT!$G$5:$J$100,3,FALSE),\"\")","v":0},{"$f":"IFERROR(VLOOKUP(H8,DEBUT!$G$5:$J$100,4,FALSE),\"\")","v":0}]
[{"$f":"IF($B$2=APPEL!$B$1,VLOOKUP(B9,APPEL!$C$3:$D$38,2,FALSE),IF($B$2=APPEL!$E$1,VLOOKUP(B9,APPEL!$F$3:$G$38,2,FALSE),IF($B$2=APPEL!$H$1,VLOOKUP(B9,APPEL!$I$3:$J$38,2,FALSE),IF($B$2=APPEL!$K$1,VLOOKUP(B9,APPEL!$L$3:$M$38,2,FALSE),IF($B$2=APPEL!$N$1,VLOOKUP(B9,APPEL!$O$3:$P$38,2,FALSE),IF($B$2=APPEL!$Q$1,VLOOKUP(B9,APPEL!$R$3:$S$38,2,FALSE),IF($B$2=APPEL!$T$1,VLOOKUP(B9,APPEL!$U$3:$V$38,2,FALSE),IF($B$2=APPEL!$W$1,VLOOKUP(B9,APPEL!$X$3:$Y$38,2,FALSE),IF($B$2=APPEL!$Z$1,VLOOKUP(B9,APPEL!$AA$3:$AB$38,2,FALSE))))))))))","v":"g"},{"$f":"IF($B$2=APPEL!$B$1,APPEL!C7,IF($B$2=APPEL!$E$1,APPEL!F7,IF($B$2=APPEL!$H$1,APPEL!I7,IF($B$2=APPEL!$K$1,APPEL!L7,IF($B$2=APPEL!$N$1,APPEL!O7,IF($B$2=APPEL!$Q$1,APPEL!R7,IF($B$2=APPEL!$T$1,APPEL!U7,IF($B$2=APPEL!$W$1,APPEL!X7,IF($B$2=APPEL!$Z$1,APPEL!AA7)))))))))","v":"Anis"},null,null,{"$f":"IFERROR(VLOOKUP(D9,DEBUT!$B$5:$E$100,2,FALSE),\"\")","v":""},{"$f":"IFERROR(VLOOKUP(D9,DEBUT!$B$5:$E$100,3,FALSE),\"\")","v":""},{"$f":"IFERROR(VLOOKUP(D9,DEBUT!$B$5:$E$100,4,FALSE),\"\")","v":""},null,{"$f":"IFERROR(VLOOKUP(H9,DEBUT!$G$5:$J$100,2,FALSE),\"\")","v":"Insuffisant"},{"$f":"IFERROR(VLOOKUP(H9,DEBUT!$G$5:$J$100,3,FALSE),\"\")","v":0},{"$f":"IFERROR(VLOOKUP(H9,DEBUT!$G$5:$J$100,4,FALSE),\"\")","v":0}]
[{"$f":"IF($B$2=APPEL!$B$1,VLOOKUP(B10,APPEL!$C$3:$D$38,2,FALSE),IF($B$2=APPEL!$E$1,VLOOKUP(B10,APPEL!$F$3:$G$38,2,FALSE),IF($B$2=APPEL!$H$1,VLOOKUP(B10,APPEL!$I$3:$J$38,2,FALSE),IF($B$2=APPEL!$K$1,VLOOKUP(B10,APPEL!$L$3:$M$38,2,FALSE),IF($B$2=APPEL!$N$1,VLOOKUP(B10,APPEL!$O$3:$P$38,2,FALSE),IF($B$2=APPEL!$Q$1,VLOOKUP(B10,APPEL!$R$3:$S$38,2,FALSE),IF($B$2=APPEL!$T$1,VLOOKUP(B10,APPEL!$U$3:$V$38,2,FALSE),IF($B$2=APPEL!$W$1,VLOOKUP(B10,APPEL!$X$3:$Y$38,2,FALSE),IF($B$2=APPEL!$Z$1,VLOOKUP(B10,APPEL!$AA$3:$AB$38,2,FALSE))))))))))","v":"f"},{"$f":"IF($B$2=APPEL!$B$1,APPEL!C8,IF($B$2=APPEL!$E$1,APPEL!F8,IF($B$2=APPEL!$H$1,APPEL!I8,IF($B$2=APPEL!$K$1,APPEL!L8,IF($B$2=APPEL!$N$1,APPEL!O8,IF($B$2=APPEL!$Q$1,APPEL!R8,IF($B$2=APPEL!$T$1,APPEL!U8,IF($B$2=APPEL!$W$1,APPEL!X8,IF($B$2=APPEL!$Z$1,APPEL!AA8)))))))))","v":"Beyza"},null,null,{"$f":"IFERROR(VLOOKUP(D10,DEBUT!$B$5:$E$100,2,FALSE),\"\")","v":""},{"$f":"IFERROR(VLOOKUP(D10,DEBUT!$B$5:$E$100,3,FALSE),\"\")","v":""},{"$f":"IFERROR(VLOOKUP(D10,DEBUT!$B$5:$E$100,4,FALSE),\"\")","v":""},null,{"$f":"IFERROR(VLOOKUP(H10,DEBUT!$G$5:$J$100,2,FALSE),\"\")","v":"Insuffisant"},{"$f":"IFERROR(VLOOKUP(H10,DEBUT!$G$5:$J$100,3,FALSE),\"\")","v":0},{"$f":"IFERROR(VLOOKUP(H10,DEBUT!$G$5:$J$100,4,FALSE),\"\")","v":0}]
[{"$f":"IF($B$2=APPEL!$B$1,VLOOKUP(B11,APPEL!$C$3:$D$38,2,FALSE),IF($B$2=APPEL!$E$1,VLOOKUP(B11,APPEL!$F$3:$G$38,2,FALSE),IF($B$2=APPEL!$H$1,VLOOKUP(B11,APPEL!$I$3:$J$38,2,FALSE),IF($B$2=APPEL!$K$1,VLOOKUP(B11,APPEL!$L$3:$M$38,2,FALSE),IF($B$2=APPEL!$N$1,VLOOKUP(B11,APPEL!$O$3:$P$38,2,FALSE),IF($B$2=APPEL!$Q$1,VLOOKUP(B11,APPEL!$R$3:$S$38,2,FALSE),IF($B$2=APPEL!$T$1,VLOOKUP(B11,APPEL!$U$3:$V$38,2,FALSE),IF($B$2=APPEL!$W$1,VLOOKUP(B11,APPEL!$X$3:$Y$38,2,FALSE),IF($B$2=APPEL!$Z$1,VLOOKUP(B11,APPEL!$AA$3:$AB$38,2,FALSE))))))))))","v":"g"},{"$f":"IF($B$2=APPEL!$B$1,APPEL!C9,IF($B$2=APPEL!$E$1,APPEL!F9,IF($B$2=APPEL!$H$1,APPEL!I9,IF($B$2=APPEL!$K$1,APPEL!L9,IF($B$2=APPEL!$N$1,APPEL!O9,IF($B$2=APPEL!$Q$1,APPEL!R9,IF($B$2=APPEL!$T$1,APPEL!U9,IF($B$2=APPEL!$W$1,APPEL!X9,IF($B$2=APPEL!$Z$1,APPEL!AA9)))))))))","v":"Clarky"},null,null,{"$f":"IFERROR(VLOOKUP(D11,DEBUT!$B$5:$E$100,2,FALSE),\"\")","v":""},{"$f":"IFERROR(VLOOKUP(D11,DEBUT!$B$5:$E$100,3,FALSE),\"\")","v":""},{"$f":"IFERROR(VLOOKUP(D11,DEBUT!$B$5:$E$100,4,FALSE),\"\")","v":""},null,{"$f":"IFERROR(VLOOKUP(H11,DEBUT!$G$5:$J$100,2,FALSE),\"\")","v":"Insuffisant"},{"$f":"IFERROR(VLOOKUP(H11,DEBUT!$G$5:$J$100,3,FALSE),\"\")","v":0},{"$f":"IFERROR(VLOOKUP(H11,DEBUT!$G$5:$J$100,4,FALSE),\"\")","v":0}]
[{"$f":"IF($B$2=APPEL!$B$1,VLOOKUP(B12,APPEL!$C$3:$D$38,2,FALSE),IF($B$2=APPEL!$E$1,VLOOKUP(B12,APPEL!$F$3:$G$38,2,FALSE),IF($B$2=APPEL!$H$1,VLOOKUP(B12,APPEL!$I$3:$J$38,2,FALSE),IF($B$2=APPEL!$K$1,VLOOKUP(B12,APPEL!$L$3:$M$38,2,FALSE),IF($B$2=APPEL!$N$1,VLOOKUP(B12,APPEL!$O$3:$P$38,2,FALSE),IF($B$2=APPEL!$Q$1,VLOOKUP(B12,APPEL!$R$3:$S$38,2,FALSE),IF($B$2=APPEL!$T$1,VLOOKUP(B12,APPEL!$U$3:$V$38,2,FALSE),IF($B$2=APPEL!$W$1,VLOOKUP(B12,APPEL!$X$3:$Y$38,2,FALSE),IF($B$2=APPEL!$Z$1,VLOOKUP(B12,APPEL!$AA$3:$AB$38,2,FALSE))))))))))","v":"g"},{"$f":"IF($B$2=APPEL!$B$1,APPEL!C10,IF($B$2=APPEL!$E$1,APPEL!F10,IF($B$2=APPEL!$H$1,APPEL!I10,IF($B$2=APPEL!$K$1,APPEL!L10,IF($B$2=APPEL!$N$1,APPEL!O10,IF($B$2=APPEL!$Q$1,APPEL!R10,IF($B$2=APPEL!$T$1,APPEL!U10,IF($B$2=APPEL!$W$1,APPEL!X10,IF($B$2=APPEL!$Z$1,APPEL!AA10)))))))))","v":"Djamel"},null,null,{"$f":"IFERROR(VLOOKUP(D12,DEBUT!$B$5:$E$100,2,FALSE),\"\")","v":""},{"$f":"IFERROR(VLOOKUP(D12,DEBUT!$B$5:$E$100,3,FALSE),\"\")","v":""},{"$f":"IFERROR(VLOOKUP(D12,DEBUT!$B$5:$E$100,4,FALSE),\"\")","v":""},null,{"$f":"IFERROR(VLOOKUP(H12,DEBUT!$G$5:$J$100,2,FALSE),\"\")","v":"Insuffisant"},{"$f":"IFERROR(VLOOKUP(H12,DEBUT!$G$5:$J$100,3,FALSE),\"\")","v":0},{"$f":"IFERROR(VLOOKUP(H12,DEBUT!$G$5:$J$100,4,FALSE),\"\")","v":0}]
[{"$f":"IF($B$2=APPEL!$B$1,VLOOKUP(B13,APPEL!$C$3:$D$38,2,FALSE),IF($B$2=APPEL!$E$1,VLOOKUP(B13,APPEL!$F$3:$G$38,2,FALSE),IF($B$2=APPEL!$H$1,VLOOKUP(B13,APPEL!$I$3:$J$38,2,FALSE),IF($B$2=APPEL!$K$1,VLOOKUP(B13,APPEL!$L$3:$M$38,2,FALSE),IF($B$2=APPEL!$N$1,VLOOKUP(B13,APPEL!$O$3:$P$38,2,FALSE),IF($B$2=APPEL!$Q$1,VLOOKUP(B13,APPEL!$R$3:$S$38,2,FALSE),IF($B$2=APPEL!$T$1,VLOOKUP(B13,APPEL!$U$3:$V$38,2,FALSE),IF($B$2=APPEL!$W$1,VLOOKUP(B13,APPEL!$X$3:$Y$38,2,FALSE),IF($B$2=APPEL!$Z$1,VLOOKUP(B13,APPEL!$AA$3:$AB$38,2,FALSE))))))))))","v":"f"},{"$f":"IF($B$2=APPEL!$B$1,APPEL!C11,IF($B$2=APPEL!$E$1,APPEL!F11,IF($B$2=APPEL!$H$1,APPEL!I11,IF($B$2=APPEL!$K$1,APPEL!L11,IF($B$2=APPEL!$N$1,APPEL!O11,IF($B$2=APPEL!$Q$1,APPEL!R11,IF($B$2=APPEL!$T$1,APPEL!U11,IF($B$2=APPEL!$W$1,APPEL!X11,IF($B$2=APPEL!$Z$1,APPEL!AA11)))))))))","v":"Dounia"},null,null,{"$f":"IFERROR(VLOOKUP(D13,DEBUT!$B$5:$E$100,2,FALSE),\"\")","v":""},{"$f":"IFERROR(VLOOKUP(D13,DEBUT!$B$5:$E$100,3,FALSE),\"\")","v":""},{"$f":"IFERROR(VLOOKUP(D13,DEBUT!$B$5:$E$100,4,FALSE),\"\")","v":""},null,{"$f":"IFERROR(VLOOKUP(H13,DEBUT!$G$5:$J$100,2,FALSE),\"\")","v":"Insuffisant"},{"$f":"IFERROR(VLOOKUP(H13,DEBUT!$G$5:$J$100,3,FALSE),\"\")","v":0},{"$f":"IFERROR(VLOOKUP(H13,DEBUT!$G$5:$J$100,4,FALSE),\"\")","v":0}]
[{"$f":"IF($B$2=APPEL!$B$1,VLOOKUP(B14,APPEL!$C$3:$D$38,2,FALSE),IF($B$2=APPEL!$E$1,VLOOKUP(B14,APPEL!$F$3:$G$38,2,FALSE),IF($B$2=APPEL!$H$1,VLOOKUP(B14,APPEL!$I$3:$J$38,2,FALSE),IF($B$2=APPEL!$K$1,VLOOKUP(B14,APPEL!$L$3:$M$38,2,FALSE),IF($B$2=APPEL!$N$1,VLOOKUP(B14,APPEL!$O$3:$P$38,2,FALSE),IF($B$2=APPEL!$Q$1,VLOOKUP(B14,APPEL!$R$3:$S$38,2,FALSE),IF($B$2=APPEL!$T$1,VLOOKUP(B14,APPEL!$U$3:$V$38,2,FALSE),IF($B$2=APPEL!$W$1,VLOOKUP(B14,APPEL!$X$3:$Y$38,2,FALSE),IF($B$2=APPEL!$Z$1,VLOOKUP(B14,APPEL!$AA$3:$AB$38,2,FALSE))))))))))","v":"g"},{"$f":"IF($B$2=APPEL!$B$1,APPEL!C12,IF($B$2=APPEL!$E$1,APPEL!F12,IF($B$2=APPEL!$H$1,APPEL!I12,IF($B$2=APPEL!$K$1,APPEL!L12,IF($B$2=APPEL!$N$1,APPEL!O12,IF($B$2=APPEL!$Q$1,APPEL!R12,IF($B$2=APPEL!$T$1,APPEL!U12,IF($B$2=APPEL!$W$1,APPEL!X12,IF($B$2=APPEL!$Z$1,APPEL!AA12)))))))))","v":"Eyat"},null,null,{"$f":"IFERROR(VLOOKUP(D14,DEBUT!$B$5:$E$100,2,FALSE),\"\")","v":""},{"$f":"IFERROR(VLOOKUP(D14,DEBUT!$B$5:$E$100,3,FALSE),\"\")","v":""},{"$f":"IFERROR(VLOOKUP(D14,DEBUT!$B$5:$E$100,4,FALSE),\"\")","v":""},null,{"$f":"IFERROR(VLOOKUP(H14,DEBUT!$G$5:$J$100,2,FALSE),\"\")","v":"Insuffisant"},{"$f":"IFERROR(VLOOKUP(H14,DEBUT!$G$5:$J$100,3,FALSE),\"\")","v":0},{"$f":"IFERROR(VLOOKUP(H14,DEBUT!$G$5:$J$100,4,FALSE),\"\")","v":0}]
[{"$f":"IF($B$2=APPEL!$B$1,VLOOKUP(B15,APPEL!$C$3:$D$38,2,FALSE),IF($B$2=APPEL!$E$1,VLOOKUP(B15,APPEL!$F$3:$G$38,2,FALSE),IF($B$2=APPEL!$H$1,VLOOKUP(B15,APPEL!$I$3:$J$38,2,FALSE),IF($B$2=APPEL!$K$1,VLOOKUP(B15,APPEL!$L$3:$M$38,2,FALSE),IF($B$2=APPEL!$N$1,VLOOKUP(B15,APPEL!$O$3:$P$38,2,FALSE),IF($B$2=APPEL!$Q$1,VLOOKUP(B15,APPEL!$R$3:$S$38,2,FALSE),IF($B$2=APPEL!$T$1,VLOOKUP(B15,APPEL!$U$3:$V$38,2,FALSE),IF($B$2=APPEL!$W$1,VLOOKUP(B15,APPEL!$X$3:$Y$38,2,FALSE),IF($B$2=APPEL!$Z$1,VLOOKUP(B15,APPEL!$AA$3:$AB$38,2,FALSE))))))))))","v":"f"},{"$f":"IF($B$2=APPEL!$B$1,APPEL!C13,IF($B$2=APPEL!$E$1,APPEL!F13,IF($B$2=APPEL!$H$1,APPEL!I13,IF($B$2=APPEL!$K$1,APPEL!L13,IF($B$2=APPEL!$N$1,APPEL!O13,IF($B$2=APPEL!$Q$1,APPEL!R13,IF($B$2=APPEL!$T$1,APPEL!U13,IF($B$2=APPEL!$W$1,APPEL!X13,IF($B$2=APPEL!$Z$1,APPEL!AA13)))))))))","v":"Fatima-Zohra"},null,null,{"$f":"IFERROR(VLOOKUP(D15,DEBUT!$B$5:$E$100,2,FALSE),\"\")","v":""},{"$f":"IFERROR(VLOOKUP(D15,DEBUT!$B$5:$E$100,3,FALSE),\"\")","v":""},{"$f":"IFERROR(VLOOKUP(D15,DEBUT!$B$5:$E$100,4,FALSE),\"\")","v":""},null,{"$f":"IFERROR(VLOOKUP(H15,DEBUT!$G$5:$J$100,2,FALSE),\"\")","v":"Insuffisant"},{"$f":"IFERROR(VLOOKUP(H15,DEBUT!$G$5:$J$100,3,FALSE),\"\")","v":0},{"$f":"IFERROR(VLOOKUP(H15,DEBUT!$G$5:$J$100,4,FALSE),\"\")","v":0}]
[{"$f":"IF($B$2=APPEL!$B$1,VLOOKUP(B16,APPEL!$C$3:$D$38,2,FALSE),IF($B$2=APPEL!$E$1,VLOOKUP(B16,APPEL!$F$3:$G$38,2,FALSE),IF($B$2=APPEL!$H$1,VLOOKUP(B16,APPEL!$I$3:$J$38,2,FALSE),IF($B$2=APPEL!$K$1,VLOOKUP(B16,APPEL!$L$3:$M$38,2,FALSE),IF($B$2=APPEL!$N$1,VLOOKUP(B16,APPEL!$O$3:$P$38,2,FALSE),IF($B$2=APPEL!$Q$1,VLOOKUP(B16,APPEL!$R$3:$S$38,2,FALSE),IF($B$2=APPEL!$T$1,VLOOKUP(B16,APPEL!$U$3:$V$38,2,FALSE),IF($B$2=APPEL!$W$1,VLOOKUP(B16,APPEL!$X$3:$Y$38,2,FALSE),IF($B$2=APPEL!$Z$1,VLOOKUP(B16,APPEL!$AA$3:$AB$38,2,FALSE))))))))))","v":"f"},{"$f":"IF($B$2=APPEL!$B$1,APPEL!C14,IF($B$2=APPEL!$E$1,APPEL!F14,IF($B$2=APPEL!$H$1,APPEL!I14,IF($B$2=APPEL!$K$1,APPEL!L14,IF($B$2=APPEL!$N$1,APPEL!O14,IF($B$2=APPEL!$Q$1,APPEL!R14,IF($B$2=APPEL!$T$1,APPEL!U14,IF($B$2=APPEL!$W$1,APPEL!X14,IF($B$2=APPEL!$Z$1,APPEL!AA14)))))))))","v":"Hana"},null,null,{"$f":"IFERROR(VLOOKUP(D16,DEBUT!$B$5:$E$100,2,FALSE),\"\")","v":""},{"$f":"IFERROR(VLOOKUP(D16,DEBUT!$B$5:$E$100,3,FALSE),\"\")","v":""},{"$f":"IFERROR(VLOOKUP(D16,DEBUT!$B$5:$E$100,4,FALSE),\"\")","v":""},null,{"$f":"IFERROR(VLOOKUP(H16,DEBUT!$G$5:$J$100,2,FALSE),\"\")","v":"Insuffisant"},{"$f":"IFERROR(VLOOKUP(H16,DEBUT!$G$5:$J$100,3,FALSE),\"\")","v":0},{"$f":"IFERROR(VLOOKUP(H16,DEBUT!$G$5:$J$100,4,FALSE),\"\")","v":0}]
[{"$f":"IF($B$2=APPEL!$B$1,VLOOKUP(B17,APPEL!$C$3:$D$38,2,FALSE),IF($B$2=APPEL!$E$1,VLOOKUP(B17,APPEL!$F$3:$G$38,2,FALSE),IF($B$2=APPEL!$H$1,VLOOKUP(B17,APPEL!$I$3:$J$38,2,FALSE),IF($B$2=APPEL!$K$1,VLOOKUP(B17,APPEL!$L$3:$M$38,2,FALSE),IF($B$2=APPEL!$N$1,VLOOKUP(B17,APPEL!$O$3:$P$38,2,FALSE),IF($B$2=APPEL!$Q$1,VLOOKUP(B17,APPEL!$R$3:$S$38,2,FALSE),IF($B$2=APPEL!$T$1,VLOOKUP(B17,APPEL!$U$3:$V$38,2,FALSE),IF($B$2=APPEL!$W$1,VLOOKUP(B17,APPEL!$X$3:$Y$38,2,FALSE),IF($B$2=APPEL!$Z$1,VLOOKUP(B17,APPEL!$AA$3:$AB$38,2,FALSE))))))))))","v":"f"},{"$f":"IF($B$2=APPEL!$B$1,APPEL!C15,IF($B$2=APPEL!$E$1,APPEL!F15,IF($B$2=APPEL!$H$1,APPEL!I15,IF($B$2=APPEL!$K$1,APPEL!L15,IF($B$2=APPEL!$N$1,APPEL!O15,IF($B$2=APPEL!$Q$1,APPEL!R15,IF($B$2=APPEL!$T$1,APPEL!U15,IF($B$2=APPEL!$W$1,APPEL!X15,IF($B$2=APPEL!$Z$1,APPEL!AA15)))))))))","v":"Ikram"},null,null,{"$f":"IFERROR(VLOOKUP(D17,DEBUT!$B$5:$E$100,2,FALSE),\"\")","v":""},{"$f":"IFERROR(VLOOKUP(D17,DEBUT!$B$5:$E$100,3,FALSE),\"\")","v":""},{"$f":"IFERROR(VLOOKUP(D17,DEBUT!$B$5:$E$100,4,FALSE),\"\")","v":""},null,{"$f":"IFERROR(VLOOKUP(H17,DEBUT!$G$5:$J$100,2,FALSE),\"\")","v":"Insuffisant"},{"$f":"IFERROR(VLOOKUP(H17,DEBUT!$G$5:$J$100,3,FALSE),\"\")","v":0},{"$f":"IFERROR(VLOOKUP(H17,DEBUT!$G$5:$J$100,4,FALSE),\"\")","v":0}]
[{"$f":"IF($B$2=APPEL!$B$1,VLOOKUP(B18,APPEL!$C$3:$D$38,2,FALSE),IF($B$2=APPEL!$E$1,VLOOKUP(B18,APPEL!$F$3:$G$38,2,FALSE),IF($B$2=APPEL!$H$1,VLOOKUP(B18,APPEL!$I$3:$J$38,2,FALSE),IF($B$2=APPEL!$K$1,VLOOKUP(B18,APPEL!$L$3:$M$38,2,FALSE),IF($B$2=APPEL!$N$1,VLOOKUP(B18,APPEL!$O$3:$P$38,2,FALSE),IF($B$2=APPEL!$Q$1,VLOOKUP(B18,APPEL!$R$3:$S$38,2,FALSE),IF($B$2=APPEL!$T$1,VLOOKUP(B18,APPEL!$U$3:$V$38,2,FALSE),IF($B$2=APPEL!$W$1,VLOOKUP(B18,APPEL!$X$3:$Y$38,2,FALSE),IF($B$2=APPEL!$Z$1,VLOOKUP(B18,APPEL!$AA$3:$AB$38,2,FALSE))))))))))","v":"g"},{"$f":"IF($B$2=APPEL!$B$1,APPEL!C16,IF($B$2=APPEL!$E$1,APPEL!F16,IF($B$2=APPEL!$H$1,APPEL!I16,IF($B$2=APPEL!$K$1,APPEL!L16,IF($B$2=APPEL!$N$1,APPEL!O16,IF($B$2=APPEL!$Q$1,APPEL!R16,IF($B$2=APPEL!$T$1,APPEL!U16,IF($B$2=APPEL!$W$1,APPEL!X16,IF($B$2=APPEL!$Z$1,APPEL!AA16)))))))))","v":"Jairzhino"},null,null,{"$f":"IFERROR(VLOOKUP(D18,DEBUT!$B$5:$E$100,2,FALSE),\"\")","v":""},{"$f":"IFERROR(VLOOKUP(D18,DEBUT!$B$5:$E$100,3,FALSE),\"\")","v":""},{"$f":"IFERROR(VLOOKUP(D18,DEBUT!$B$5:$E$100,4,FALSE),\"\")","v":""},null,{"$f":"IFERROR(VLOOKUP(H18,DEBUT!$G$5:$J$100,2,FALSE),\"\")","v":"Insuffisant"},{"$f":"IFERROR(VLOOKUP(H18,DEBUT!$G$5:$J$100,3,FALSE),\"\")","v":0},{"$f":"IFERROR(VLOOKUP(H18,DEBUT!$G$5:$J$100,4,FALSE),\"\")","v":0}]
[{"$f":"IF($B$2=APPEL!$B$1,VLOOKUP(B19,APPEL!$C$3:$D$38,2,FALSE),IF($B$2=APPEL!$E$1,VLOOKUP(B19,APPEL!$F$3:$G$38,2,FALSE),IF($B$2=APPEL!$H$1,VLOOKUP(B19,APPEL!$I$3:$J$38,2,FALSE),IF($B$2=APPEL!$K$1,VLOOKUP(B19,APPEL!$L$3:$M$38,2,FALSE),IF($B$2=APPEL!$N$1,VLOOKUP(B19,APPEL!$O$3:$P$38,2,FALSE),IF($B$2=APPEL!$Q$1,VLOOKUP(B19,APPEL!$R$3:$S$38,2,FALSE),IF($B$2=APPEL!$T$1,VLOOKUP(B19,APPEL!$U$3:$V$38,2,FALSE),IF($B$2=APPEL!$W$1,VLOOKUP(B19,APPEL!$X$3:$Y$38,2,FALSE),IF($B$2=APPEL!$Z$1,VLOOKUP(B19,APPEL!$AA$3:$AB$38,2,FALSE))))))))))","v":"f"},{"$f":"IF($B$2=APPEL!$B$1,APPEL!C17,IF($B$2=APPEL!$E$1,APPEL!F17,IF($B$2=APPEL!$H$1,APPEL!I17,IF($B$2=APPEL!$K$1,APPEL!L17,IF($B$2=APPEL!$N$1,APPEL!O17,IF($B$2=APPEL!$Q$1,APPEL!R17,IF($B$2=APPEL!$T$1,APPEL!U17,IF($B$2=APPEL!$W$1,APPEL!X17,IF($B$2=APPEL!$Z$1,APPEL!AA17)))))))))","v":"Mergim"},null,null,{"$f":"IFERROR(VLOOKUP(D19,DEBUT!$B$5:$E$100,2,FALSE),\"\")","v":""},{"$f":"IFERROR(VLOOKUP(D19,DEBUT!$B$5:$E$100,3,FALSE),\"\")","v":""},{"$f":"IFERROR(VLOOKUP(D19,DEBUT!$B$5:$E$100,4,FALSE),\"\")","v":""},null,{"$f":"IFERROR(VLOOKUP(H19,DEBUT!$G$5:$J$100,2,FALSE),\"\")","v":"Insuffisant"},{"$f":"IFERROR(VLOOKUP(H19,DEBUT!$G$5:$J$100,3,FALSE),\"\")","v":0},{"$f":"IFERROR(VLOOKUP(H19,DEBUT!$G$5:$J$100,4,FALSE),\"\")","v":0}]
[{"$f":"IF($B$2=APPEL!$B$1,VLOOKUP(B20,APPEL!$C$3:$D$38,2,FALSE),IF($B$2=APPEL!$E$1,VLOOKUP(B20,APPEL!$F$3:$G$38,2,FALSE),IF($B$2=APPEL!$H$1,VLOOKUP(B20,APPEL!$I$3:$J$38,2,FALSE),IF($B$2=APPEL!$K$1,VLOOKUP(B20,APPEL!$L$3:$M$38,2,FALSE),IF($B$2=APPEL!$N$1,VLOOKUP(B20,APPEL!$O$3:$P$38,2,FALSE),IF($B$2=APPEL!$Q$1,VLOOKUP(B20,APPEL!$R$3:$S$38,2,FALSE),IF($B$2=APPEL!$T$1,VLOOKUP(B20,APPEL!$U$3:$V$38,2,FALSE),IF($B$2=APPEL!$W$1,VLOOKUP(B20,APPEL!$X$3:$Y$38,2,FALSE),IF($B$2=APPEL!$Z$1,VLOOKUP(B20,APPEL!$AA$3:$AB$38,2,FALSE))))))))))","v":"f"},{"$f":"IF($B$2=APPEL!$B$1,APPEL!C18,IF($B$2=APPEL!$E$1,APPEL!F18,IF($B$2=APPEL!$H$1,APPEL!I18,IF($B$2=APPEL!$K$1,APPEL!L18,IF($B$2=APPEL!$N$1,APPEL!O18,IF($B$2=APPEL!$Q$1,APPEL!R18,IF($B$2=APPEL!$T$1,APPEL!U18,IF($B$2=APPEL!$W$1,APPEL!X18,IF($B$2=APPEL!$Z$1,APPEL!AA18)))))))))","v":"Myriam"},null,null,{"$f":"IFERROR(VLOOKUP(D20,DEBUT!$B$5:$E$100,2,FALSE),\"\")","v":""},{"$f":"IFERROR(VLOOKUP(D20,DEBUT!$B$5:$E$100,3,FALSE),\"\")","v":""},{"$f":"IFERROR(VLOOKUP(D20,DEBUT!$B$5:$E$100,4,FALSE),\"\")","v":""},null,{"$f":"IFERROR(VLOOKUP(H20,DEBUT!$G$5:$J$100,2,FALSE),\"\")","v":"Insuffisant"},{"$f":"IFERROR(VLOOKUP(H20,DEBUT!$G$5:$J$100,3,FALSE),\"\")","v":0},{"$f":"IFERROR(VLOOKUP(H20,DEBUT!$G$5:$J$100,4,FALSE),\"\")","v":0}]
[{"$f":"IF($B$2=APPEL!$B$1,VLOOKUP(B21,APPEL!$C$3:$D$38,2,FALSE),IF($B$2=APPEL!$E$1,VLOOKUP(B21,APPEL!$F$3:$G$38,2,FALSE),IF($B$2=APPEL!$H$1,VLOOKUP(B21,APPEL!$I$3:$J$38,2,FALSE),IF($B$2=APPEL!$K$1,VLOOKUP(B21,APPEL!$L$3:$M$38,2,FALSE),IF($B$2=APPEL!$N$1,VLOOKUP(B21,APPEL!$O$3:$P$38,2,FALSE),IF($B$2=APPEL!$Q$1,VLOOKUP(B21,APPEL!$R$3:$S$38,2,FALSE),IF($B$2=APPEL!$T$1,VLOOKUP(B21,APPEL!$U$3:$V$38,2,FALSE),IF($B$2=APPEL!$W$1,VLOOKUP(B21,APPEL!$X$3:$Y$38,2,FALSE),IF($B$2=APPEL!$Z$1,VLOOKUP(B21,APPEL!$AA$3:$AB$38,2,FALSE))))))))))","v":"f"},{"$f":"IF($B$2=APPEL!$B$1,APPEL!C19,IF($B$2=APPEL!$E$1,APPEL!F19,IF($B$2=APPEL!$H$1,APPEL!I19,IF($B$2=APPEL!$K$1,APPEL!L19,IF($B$2=APPEL!$N$1,APPEL!O19,IF($B$2=APPEL!$Q$1,APPEL!R19,IF($B$2=APPEL!$T$1,APPEL!U19,IF($B$2=APPEL!$W$1,APPEL!X19,IF($B$2=APPEL!$Z$1,APPEL!AA19)))))))))","v":"Serone"},null,null,{"$f":"IFERROR(VLOOKUP(D21,DEBUT!$B$5:$E$100,2,FALSE),\"\")","v":""},{"$f":"IFERROR(VLOOKUP(D21,DEBUT!$B$5:$E$100,3,FALSE),\"\")","v":""},{"$f":"IFERROR(VLOOKUP(D21,DEBUT!$B$5:$E$100,4,FALSE),\"\")","v":""},null,{"$f":"IFERROR(VLOOKUP(H21,DEBUT!$G$5:$J$100,2,FALSE),\"\")","v":"Insuffisant"},{"$f":"IFERROR(VLOOKUP(H21,DEBUT!$G$5:$J$100,3,FALSE),\"\")","v":0},{"$f":"IFERROR(VLOOKUP(H21,DEBUT!$G$5:$J$100,4,FALSE),\"\")","v":0}]
[{"$f":"IF($B$2=APPEL!$B$1,VLOOKUP(B22,APPEL!$C$3:$D$38,2,FALSE),IF($B$2=APPEL!$E$1,VLOOKUP(B22,APPEL!$F$3:$G$38,2,FALSE),IF($B$2=APPEL!$H$1,VLOOKUP(B22,APPEL!$I$3:$J$38,2,FALSE),IF($B$2=APPEL!$K$1,VLOOKUP(B22,APPEL!$L$3:$M$38,2,FALSE),IF($B$2=APPEL!$N$1,VLOOKUP(B22,APPEL!$O$3:$P$38,2,FALSE),IF($B$2=APPEL!$Q$1,VLOOKUP(B22,APPEL!$R$3:$S$38,2,FALSE),IF($B$2=APPEL!$T$1,VLOOKUP(B22,APPEL!$U$3:$V$38,2,FALSE),IF($B$2=APPEL!$W$1,VLOOKUP(B22,APPEL!$X$3:$Y$38,2,FALSE),IF($B$2=APPEL!$Z$1,VLOOKUP(B22,APPEL!$AA$3:$AB$38,2,FALSE))))))))))","v":"f"},{"$f":"IF($B$2=APPEL!$B$1,APPEL!C20,IF($B$2=APPEL!$E$1,APPEL!F20,IF($B$2=APPEL!$H$1,APPEL!I20,IF($B$2=APPEL!$K$1,APPEL!L20,IF($B$2=APPEL!$N$1,APPEL!O20,IF($B$2=APPEL!$Q$1,APPEL!R20,IF($B$2=APPEL!$T$1,APPEL!U20,IF($B$2=APPEL!$W$1,APPEL!X20,IF($B$2=APPEL!$Z$1,APPEL!AA20)))))))))","v":"Suha"},null,null,{"$f":"IFERROR(VLOOKUP(D22,DEBUT!$B$5:$E$100,2,FALSE),\"\")","v":""},{"$f":"IFERROR(VLOOKUP(D22,DEBUT!$B$5:$E$100,3,FALSE),\"\")","v":""},{"$f":"IFERROR(VLOOKUP(D22,DEBUT!$B$5:$E$100,4,FALSE),\"\")","v":""},null,{"$f":"IFERROR(VLOOKUP(H22,DEBUT!$G$5:$J$100,2,FALSE),\"\")","v":"Insuffisant"},{"$f":"IFERROR(VLOOKUP(H22,DEBUT!$G$5:$J$100,3,FALSE),\"\")","v":0},{"$f":"IFERROR(VLOOKUP(H22,DEBUT!$G$5:$J$100,4,FALSE),\"\")","v":0}]
[{"$f":"IF($B$2=APPEL!$B$1,VLOOKUP(B23,APPEL!$C$3:$D$38,2,FALSE),IF($B$2=APPEL!$E$1,VLOOKUP(B23,APPEL!$F$3:$G$38,2,FALSE),IF($B$2=APPEL!$H$1,VLOOKUP(B23,APPEL!$I$3:$J$38,2,FALSE),IF($B$2=APPEL!$K$1,VLOOKUP(B23,APPEL!$L$3:$M$38,2,FALSE),IF($B$2=APPEL!$N$1,VLOOKUP(B23,APPEL!$O$3:$P$38,2,FALSE),IF($B$2=APPEL!$Q$1,VLOOKUP(B23,APPEL!$R$3:$S$38,2,FALSE),IF($B$2=APPEL!$T$1,VLOOKUP(B23,APPEL!$U$3:$V$38,2,FALSE),IF($B$2=APPEL!$W$1,VLOOKUP(B23,APPEL!$X$3:$Y$38,2,FALSE),IF($B$2=APPEL!$Z$1,VLOOKUP(B23,APPEL!$AA$3:$AB$38,2,FALSE))))))))))","v":"g"},{"$f":"IF($B$2=APPEL!$B$1,APPEL!C21,IF($B$2=APPEL!$E$1,APPEL!F21,IF($B$2=APPEL!$H$1,APPEL!I21,IF($B$2=APPEL!$K$1,APPEL!L21,IF($B$2=APPEL!$N$1,APPEL!O21,IF($B$2=APPEL!$Q$1,APPEL!R21,IF($B$2=APPEL!$T$1,APPEL!U21,IF($B$2=APPEL!$W$1,APPEL!X21,IF($B$2=APPEL!$Z$1,APPEL!AA21)))))))))","v":"Yassine"},null,null,{"$f":"IFERROR(VLOOKUP(D23,DEBUT!$B$5:$E$100,2,FALSE),\"\")","v":""},{"$f":"IFERROR(VLOOKUP(D23,DEBUT!$B$5:$E$100,3,FALSE),\"\")","v":""},{"$f":"IFERROR(VLOOKUP(D23,DEBUT!$B$5:$E$100,4,FALSE),\"\")","v":""},null,{"$f":"IFERROR(VLOOKUP(H23,DEBUT!$G$5:$J$100,2,FALSE),\"\")","v":"Insuffisant"},{"$f":"IFERROR(VLOOKUP(H23,DEBUT!$G$5:$J$100,3,FALSE),\"\")","v":0},{"$f":"IFERROR(VLOOKUP(H23,DEBUT!$G$5:$J$100,4,FALSE),\"\")","v":0}]
[{"$f":"IF($B$2=APPEL!$B$1,VLOOKUP(B24,APPEL!$C$3:$D$38,2,FALSE),IF($B$2=APPEL!$E$1,VLOOKUP(B24,APPEL!$F$3:$G$38,2,FALSE),IF($B$2=APPEL!$H$1,VLOOKUP(B24,APPEL!$I$3:$J$38,2,FALSE),IF($B$2=APPEL!$K$1,VLOOKUP(B24,APPEL!$L$3:$M$38,2,FALSE),IF($B$2=APPEL!$N$1,VLOOKUP(B24,APPEL!$O$3:$P$38,2,FALSE),IF($B$2=APPEL!$Q$1,VLOOKUP(B24,APPEL!$R$3:$S$38,2,FALSE),IF($B$2=APPEL!$T$1,VLOOKUP(B24,APPEL!$U$3:$V$38,2,FALSE),IF($B$2=APPEL!$W$1,VLOOKUP(B24,APPEL!$X$3:$Y$38,2,FALSE),IF($B$2=APPEL!$Z$1,VLOOKUP(B24,APPEL!$AA$3:$AB$38,2,FALSE))))))))))","v":{"$error":"#N/A"}},{"$f":"IF($B$2=APPEL!$B$1,APPEL!C22,IF($B$2=APPEL!$E$1,APPEL!F22,IF($B$2=APPEL!$H$1,APPEL!I22,IF($B$2=APPEL!$K$1,APPEL!L22,IF($B$2=APPEL!$N$1,APPEL!O22,IF($B$2=APPEL!$Q$1,APPEL!R22,IF($B$2=APPEL!$T$1,APPEL!U22,IF($B$2=APPEL!$W$1,APPEL!X22,IF($B$2=APPEL!$Z$1,APPEL!AA22)))))))))","v":0},null,null,{"$f":"IFERROR(VLOOKUP(D24,DEBUT!$B$5:$E$100,2,FALSE),\"\")","v":""},{"$f":"IFERROR(VLOOKUP(D24,DEBUT!$B$5:$E$100,3,FALSE),\"\")","v":""},{"$f":"IFERROR(VLOOKUP(D24,DEBUT!$B$5:$E$100,4,FALSE),\"\")","v":""},null,{"$f":"IFERROR(VLOOKUP(H24,DEBUT!$G$5:$J$100,2,FALSE),\"\")","v":"Insuffisant"},{"$f":"IFERROR(VLOOKUP(H24,DEBUT!$G$5:$J$100,3,FALSE),\"\")","v":0},{"$f":"IFERROR(VLOOKUP(H24,DEBUT!$G$5:$J$100,4,FALSE),\"\")","v":0}]
[{"$f":"IF($B$2=APPEL!$B$1,VLOOKUP(B25,APPEL!$C$3:$D$38,2,FALSE),IF($B$2=APPEL!$E$1,VLOOKUP(B25,APPEL!$F$3:$G$38,2,FALSE),IF($B$2=APPEL!$H$1,VLOOKUP(B25,APPEL!$I$3:$J$38,2,FALSE),IF($B$2=APPEL!$K$1,VLOOKUP(B25,APPEL!$L$3:$M$38,2,FALSE),IF($B$2=APPEL!$N$1,VLOOKUP(B25,APPEL!$O$3:$P$38,2,FALSE),IF($B$2=APPEL!$Q$1,VLOOKUP(B25,APPEL!$R$3:$S$38,2,FALSE),IF($B$2=APPEL!$T$1,VLOOKUP(B25,APPEL!$U$3:$V$38,2,FALSE),IF($B$2=APPEL!$W$1,VLOOKUP(B25,APPEL!$X$3:$Y$38,2,FALSE),IF($B$2=APPEL!$Z$1,VLOOKUP(B25,APPEL!$AA$3:$AB$38,2,FALSE))))))))))","v":{"$error":"#N/A"}},{"$f":"IF($B$2=APPEL!$B$1,APPEL!C23,IF($B$2=APPEL!$E$1,APPEL!F23,IF($B$2=APPEL!$H$1,APPEL!I23,IF($B$2=APPEL!$K$1,APPEL!L23,IF($B$2=APPEL!$N$1,APPEL!O23,IF($B$2=APPEL!$Q$1,APPEL!R23,IF($B$2=APPEL!$T$1,APPEL!U23,IF($B$2=APPEL!$W$1,APPEL!X23,IF($B$2=APPEL!$Z$1,APPEL!AA23)))))))))","v":0},null,null,{"$f":"IFERROR(VLOOKUP(D25,DEBUT!$B$5:$E$100,2,FALSE),\"\")","v":""},{"$f":"IFERROR(VLOOKUP(D25,DEBUT!$B$5:$E$100,3,FALSE),\"\")","v":""},{"$f":"IFERROR(VLOOKUP(D25,DEBUT!$B$5:$E$100,4,FALSE),\"\")","v":""},null,{"$f":"IFERROR(VLOOKUP(H25,DEBUT!$G$5:$J$100,2,FALSE),\"\")","v":"Insuffisant"},{"$f":"IFERROR(VLOOKUP(H25,DEBUT!$G$5:$J$100,3,FALSE),\"\")","v":0},{"$f":"IFERROR(VLOOKUP(H25,DEBUT!$G$5:$J$100,4,FALSE),\"\")","v":0}]
[{"$f":"IF($B$2=APPEL!$B$1,VLOOKUP(B26,APPEL!$C$3:$D$38,2,FALSE),IF($B$2=APPEL!$E$1,VLOOKUP(B26,APPEL!$F$3:$G$38,2,FALSE),IF($B$2=APPEL!$H$1,VLOOKUP(B26,APPEL!$I$3:$J$38,2,FALSE),IF($B$2=APPEL!$K$1,VLOOKUP(B26,APPEL!$L$3:$M$38,2,FALSE),IF($B$2=APPEL!$N$1,VLOOKUP(B26,APPEL!$O$3:$P$38,2,FALSE),IF($B$2=APPEL!$Q$1,VLOOKUP(B26,APPEL!$R$3:$S$38,2,FALSE),IF($B$2=APPEL!$T$1,VLOOKUP(B26,APPEL!$U$3:$V$38,2,FALSE),IF($B$2=APPEL!$W$1,VLOOKUP(B26,APPEL!$X$3:$Y$38,2,FALSE),IF($B$2=APPEL!$Z$1,VLOOKUP(B26,APPEL!$AA$3:$AB$38,2,FALSE))))))))))","v":{"$error":"#N/A"}},{"$f":"IF($B$2=APPEL!$B$1,APPEL!C24,IF($B$2=APPEL!$E$1,APPEL!F24,IF($B$2=APPEL!$H$1,APPEL!I24,IF($B$2=APPEL!$K$1,APPEL!L24,IF($B$2=APPEL!$N$1,APPEL!O24,IF($B$2=APPEL!$Q$1,APPEL!R24,IF($B$2=APPEL!$T$1,APPEL!U24,IF($B$2=APPEL!$W$1,APPEL!X24,IF($B$2=APPEL!$Z$1,APPEL!AA24)))))))))","v":0},null,null,{"$f":"IFERROR(VLOOKUP(D26,DEBUT!$B$5:$E$100,2,FALSE),\"\")","v":""},{"$f":"IFERROR(VLOOKUP(D26,DEBUT!$B$5:$E$100,3,FALSE),\"\")","v":""},{"$f":"IFERROR(VLOOKUP(D26,DEBUT!$B$5:$E$100,4,FALSE),\"\")","v":""},null,{"$f":"IFERROR(VLOOKUP(H26,DEBUT!$G$5:$J$100,2,FALSE),\"\")","v":"Insuffisant"},{"$f":"IFERROR(VLOOKUP(H26,DEBUT!$G$5:$J$100,3,FALSE),\"\")","v":0},{"$f":"IFERROR(VLOOKUP(H26,DEBUT!$G$5:$J$100,4,FALSE),\"\")","v":0}]
[{"$f":"IF($B$2=APPEL!$B$1,VLOOKUP(B27,APPEL!$C$3:$D$38,2,FALSE),IF($B$2=APPEL!$E$1,VLOOKUP(B27,APPEL!$F$3:$G$38,2,FALSE),IF($B$2=APPEL!$H$1,VLOOKUP(B27,APPEL!$I$3:$J$38,2,FALSE),IF($B$2=APPEL!$K$1,VLOOKUP(B27,APPEL!$L$3:$M$38,2,FALSE),IF($B$2=APPEL!$N$1,VLOOKUP(B27,APPEL!$O$3:$P$38,2,FALSE),IF($B$2=APPEL!$Q$1,VLOOKUP(B27,APPEL!$R$3:$S$38,2,FALSE),IF($B$2=APPEL!$T$1,VLOOKUP(B27,APPEL!$U$3:$V$38,2,FALSE),IF($B$2=APPEL!$W$1,VLOOKUP(B27,APPEL!$X$3:$Y$38,2,FALSE),IF($B$2=APPEL!$Z$1,VLOOKUP(B27,APPEL!$AA$3:$AB$38,2,FALSE))))))))))","v":{"$error":"#N/A"}},{"$f":"IF($B$2=APPEL!$B$1,APPEL!C25,IF($B$2=APPEL!$E$1,APPEL!F25,IF($B$2=APPEL!$H$1,APPEL!I25,IF($B$2=APPEL!$K$1,APPEL!L25,IF($B$2=APPEL!$N$1,APPEL!O25,IF($B$2=APPEL!$Q$1,APPEL!R25,IF($B$2=APPEL!$T$1,APPEL!U25,IF($B$2=APPEL!$W$1,APPEL!X25,IF($B$2=APPEL!$Z$1,APPEL!AA25)))))))))","v":0},null,null,{"$f":"IFERROR(VLOOKUP(D27,DEBUT!$B$5:$E$100,2,FALSE),\"\")","v":""},{"$f":"IFERROR(VLOOKUP(D27,DEBUT!$B$5:$E$100,3,FALSE),\"\")","v":""},{"$f":"IFERROR(VLOOKUP(D27,DEBUT!$B$5:$E$100,4,FALSE),\"\")","v":""},null,{"$f":"IFERROR(VLOOKUP(H27,DEBUT!$G$5:$J$100,2,FALSE),\"\")","v":"Insuffisant"},{"$f":"IFERROR(VLOOKUP(H27,DEBUT!$G$5:$J$100,3,FALSE),\"\")","v":0},{"$f":"IFERROR(VLOOKUP(H27,DEBUT!$G$5:$J$100,4,FALSE),\"\")","v":0}]
[{"$f":"IF($B$2=APPEL!$B$1,VLOOKUP(B28,APPEL!$C$3:$D$38,2,FALSE),IF($B$2=APPEL!$E$1,VLOOKUP(B28,APPEL!$F$3:$G$38,2,FALSE),IF($B$2=APPEL!$H$1,VLOOKUP(B28,APPEL!$I$3:$J$38,2,FALSE),IF($B$2=APPEL!$K$1,VLOOKUP(B28,APPEL!$L$3:$M$38,2,FALSE),IF($B$2=APPEL!$N$1,VLOOKUP(B28,APPEL!$O$3:$P$38,2,FALSE),IF($B$2=APPEL!$Q$1,VLOOKUP(B28,APPEL!$R$3:$S$38,2,FALSE),IF($B$2=APPEL!$T$1,VLOOKUP(B28,APPEL!$U$3:$V$38,2,FALSE),IF($B$2=APPEL!$W$1,VLOOKUP(B28,APPEL!$X$3:$Y$38,2,FALSE),IF($B$2=APPEL!$Z$1,VLOOKUP(B28,APPEL!$AA$3:$AB$38,2,FALSE))))))))))","v":{"$error":"#N/A"}},{"$f":"IF($B$2=APPEL!$B$1,APPEL!C26,IF($B$2=APPEL!$E$1,APPEL!F26,IF($B$2=APPEL!$H$1,APPEL!I26,IF($B$2=APPEL!$K$1,APPEL!L26,IF($B$2=APPEL!$N$1,APPEL!O26,IF($B$2=APPEL!$Q$1,APPEL!R26,IF($B$2=APPEL!$T$1,APPEL!U26,IF($B$2=APPEL!$W$1,APPEL!X26,IF($B$2=APPEL!$Z$1,APPEL!AA26)))))))))","v":0},null,null,{"$f":"IFERROR(VLOOKUP(D28,DEBUT!$B$5:$E$100,2,FALSE),\"\")","v":""},{"$f":"IFERROR(VLOOKUP(D28,DEBUT!$B$5:$E$100,3,FALSE),\"\")","v":""},{"$f":"IFERROR(VLOOKUP(D28,DEBUT!$B$5:$E$100,4,FALSE),\"\")","v":""},null,{"$f":"IFERROR(VLOOKUP(H28,DEBUT!$G$5:$J$100,2,FALSE),\"\")","v":"Insuffisant"},{"$f":"IFERROR(VLOOKUP(H28,DEBUT!$G$5:$J$100,3,FALSE),\"\")","v":0},{"$f":"IFERROR(VLOOKUP(H28,DEBUT!$G$5:$J$100,4,FALSE),\"\")","v":0}]
[{"$f":"IF($B$2=APPEL!$B$1,VLOOKUP(B29,APPEL!$C$3:$D$38,2,FALSE),IF($B$2=APPEL!$E$1,VLOOKUP(B29,APPEL!$F$3:$G$38,2,FALSE),IF($B$2=APPEL!$H$1,VLOOKUP(B29,APPEL!$I$3:$J$38,2,FALSE),IF($B$2=APPEL!$K$1,VLOOKUP(B29,APPEL!$L$3:$M$38,2,FALSE),IF($B$2=APPEL!$N$1,VLOOKUP(B29,APPEL!$O$3:$P$38,2,FALSE),IF($B$2=APPEL!$Q$1,VLOOKUP(B29,APPEL!$R$3:$S$38,2,FALSE),IF($B$2=APPEL!$T$1,VLOOKUP(B29,APPEL!$U$3:$V$38,2,FALSE),IF($B$2=APPEL!$W$1,VLOOKUP(B29,APPEL!$X$3:$Y$38,2,FALSE),IF($B$2=APPEL!$Z$1,VLOOKUP(B29,APPEL!$AA$3:$AB$38,2,FALSE))))))))))","v":{"$error":"#N/A"}},{"$f":"IF($B$2=APPEL!$B$1,APPEL!C27,IF($B$2=APPEL!$E$1,APPEL!F27,IF($B$2=APPEL!$H$1,APPEL!I27,IF($B$2=APPEL!$K$1,APPEL!L27,IF($B$2=APPEL!$N$1,APPEL!O27,IF($B$2=APPEL!$Q$1,APPEL!R27,IF($B$2=APPEL!$T$1,APPEL!U27,IF($B$2=APPEL!$W$1,APPEL!X27,IF($B$2=APPEL!$Z$1,APPEL!AA27)))))))))","v":0},null,null,{"$f":"IFERROR(VLOOKUP(D29,DEBUT!$B$5:$E$100,2,FALSE),\"\")","v":""},{"$f":"IFERROR(VLOOKUP(D29,DEBUT!$B$5:$E$100,3,FALSE),\"\")","v":""},{"$f":"IFERROR(VLOOKUP(D29,DEBUT!$B$5:$E$100,4,FALSE),\"\")","v":""},null,{"$f":"IFERROR(VLOOKUP(H29,DEBUT!$G$5:$J$100,2,FALSE),\"\")","v":"Insuffisant"},{"$f":"IFERROR(VLOOKUP(H29,DEBUT!$G$5:$J$100,3,FALSE),\"\")","v":0},{"$f":"IFERROR(VLOOKUP(H29,DEBUT!$G$5:$J$100,4,FALSE),\"\")","v":0}]
[{"$f":"IF($B$2=APPEL!$B$1,VLOOKUP(B30,APPEL!$C$3:$D$38,2,FALSE),IF($B$2=APPEL!$E$1,VLOOKUP(B30,APPEL!$F$3:$G$38,2,FALSE),IF($B$2=APPEL!$H$1,VLOOKUP(B30,APPEL!$I$3:$J$38,2,FALSE),IF($B$2=APPEL!$K$1,VLOOKUP(B30,APPEL!$L$3:$M$38,2,FALSE),IF($B$2=APPEL!$N$1,VLOOKUP(B30,APPEL!$O$3:$P$38,2,FALSE),IF($B$2=APPEL!$Q$1,VLOOKUP(B30,APPEL!$R$3:$S$38,2,FALSE),IF($B$2=APPEL!$T$1,VLOOKUP(B30,APPEL!$U$3:$V$38,2,FALSE),IF($B$2=APPEL!$W$1,VLOOKUP(B30,APPEL!$X$3:$Y$38,2,FALSE),IF($B$2=APPEL!$Z$1,VLOOKUP(B30,APPEL!$AA$3:$AB$38,2,FALSE))))))))))","v":{"$error":"#N/A"}},{"$f":"IF($B$2=APPEL!$B$1,APPEL!C28,IF($B$2=APPEL!$E$1,APPEL!F28,IF($B$2=APPEL!$H$1,APPEL!I28,IF($B$2=APPEL!$K$1,APPEL!L28,IF($B$2=APPEL!$N$1,APPEL!O28,IF($B$2=APPEL!$Q$1,APPEL!R28,IF($B$2=APPEL!$T$1,APPEL!U28,IF($B$2=APPEL!$W$1,APPEL!X28,IF($B$2=APPEL!$Z$1,APPEL!AA28)))))))))","v":0},null,null,{"$f":"IFERROR(VLOOKUP(D30,DEBUT!$B$5:$E$100,2,FALSE),\"\")","v":""},{"$f":"IFERROR(VLOOKUP(D30,DEBUT!$B$5:$E$100,3,FALSE),\"\")","v":""},{"$f":"IFERROR(VLOOKUP(D30,DEBUT!$B$5:$E$100,4,FALSE),\"\")","v":""},null,{"$f":"IFERROR(VLOOKUP(H30,DEBUT!$G$5:$J$100,2,FALSE),\"\")","v":"Insuffisant"},{"$f":"IFERROR(VLOOKUP(H30,DEBUT!$G$5:$J$100,3,FALSE),\"\")","v":0},{"$f":"IFERROR(VLOOKUP(H30,DEBUT!$G$5:$J$100,4,FALSE),\"\")","v":0}]
[{"$f":"IF($B$2=APPEL!$B$1,VLOOKUP(B31,APPEL!$C$3:$D$38,2,FALSE),IF($B$2=APPEL!$E$1,VLOOKUP(B31,APPEL!$F$3:$G$38,2,FALSE),IF($B$2=APPEL!$H$1,VLOOKUP(B31,APPEL!$I$3:$J$38,2,FALSE),IF($B$2=APPEL!$K$1,VLOOKUP(B31,APPEL!$L$3:$M$38,2,FALSE),IF($B$2=APPEL!$N$1,VLOOKUP(B31,APPEL!$O$3:$P$38,2,FALSE),IF($B$2=APPEL!$Q$1,VLOOKUP(B31,APPEL!$R$3:$S$38,2,FALSE),IF($B$2=APPEL!$T$1,VLOOKUP(B31,APPEL!$U$3:$V$38,2,FALSE),IF($B$2=APPEL!$W$1,VLOOKUP(B31,APPEL!$X$3:$Y$38,2,FALSE),IF($B$2=APPEL!$Z$1,VLOOKUP(B31,APPEL!$AA$3:$AB$38,2,FALSE))))))))))","v":{"$error":"#N/A"}},{"$f":"IF($B$2=APPEL!$B$1,APPEL!C29,IF($B$2=APPEL!$E$1,APPEL!F29,IF($B$2=APPEL!$H$1,APPEL!I29,IF($B$2=APPEL!$K$1,APPEL!L29,IF($B$2=APPEL!$N$1,APPEL!O29,IF($B$2=APPEL!$Q$1,APPEL!R29,IF($B$2=APPEL!$T$1,APPEL!U29,IF($B$2=APPEL!$W$1,APPEL!X29,IF($B$2=APPEL!$Z$1,APPEL!AA29)))))))))","v":0},null,null,{"$f":"IFERROR(VLOOKUP(D31,DEBUT!$B$5:$E$100,2,FALSE),\"\")","v":""},{"$f":"IFERROR(VLOOKUP(D31,DEBUT!$B$5:$E$100,3,FALSE),\"\")","v":""},{"$f":"IFERROR(VLOOKUP(D31,DEBUT!$B$5:$E$100,4,FALSE),\"\")","v":""},null,{"$f":"IFERROR(VLOOKUP(H31,DEBUT!$G$5:$J$100,2,FALSE),\"\")","v":"Insuffisant"},{"$f":"IFERROR(VLOOKUP(H31,DEBUT!$G$5:$J$100,3,FALSE),\"\")","v":0},{"$f":"IFERROR(VLOOKUP(H31,DEBUT!$G$5:$J$100,4,FALSE),\"\")","v":0}]
[{"$f":"IF($B$2=APPEL!$B$1,VLOOKUP(B32,APPEL!$C$3:$D$38,2,FALSE),IF($B$2=APPEL!$E$1,VLOOKUP(B32,APPEL!$F$3:$G$38,2,FALSE),IF($B$2=APPEL!$H$1,VLOOKUP(B32,APPEL!$I$3:$J$38,2,FALSE),IF($B$2=APPEL!$K$1,VLOOKUP(B32,APPEL!$L$3:$M$38,2,FALSE),IF($B$2=APPEL!$N$1,VLOOKUP(B32,APPEL!$O$3:$P$38,2,FALSE),IF($B$2=APPEL!$Q$1,VLOOKUP(B32,APPEL!$R$3:$S$38,2,FALSE),IF($B$2=APPEL!$T$1,VLOOKUP(B32,APPEL!$U$3:$V$38,2,FALSE),IF($B$2=APPEL!$W$1,VLOOKUP(B32,APPEL!$X$3:$Y$38,2,FALSE),IF($B$2=APPEL!$Z$1,VLOOKUP(B32,APPEL!$AA$3:$AB$38,2,FALSE))))))))))","v":{"$error":"#N/A"}},{"$f":"IF($B$2=APPEL!$B$1,APPEL!C30,IF($B$2=APPEL!$E$1,APPEL!F30,IF($B$2=APPEL!$H$1,APPEL!I30,IF($B$2=APPEL!$K$1,APPEL!L30,IF($B$2=APPEL!$N$1,APPEL!O30,IF($B$2=APPEL!$Q$1,APPEL!R30,IF($B$2=APPEL!$T$1,APPEL!U30,IF($B$2=APPEL!$W$1,APPEL!X30,IF($B$2=APPEL!$Z$1,APPEL!AA30)))))))))","v":0},null,null,{"$f":"IFERROR(VLOOKUP(D32,DEBUT!$B$5:$E$100,2,FALSE),\"\")","v":""},{"$f":"IFERROR(VLOOKUP(D32,DEBUT!$B$5:$E$100,3,FALSE),\"\")","v":""},{"$f":"IFERROR(VLOOKUP(D32,DEBUT!$B$5:$E$100,4,FALSE),\"\")","v":""},null,{"$f":"IFERROR(VLOOKUP(H32,DEBUT!$G$5:$J$100,2,FALSE),\"\")","v":"Insuffisant"},{"$f":"IFERROR(VLOOKUP(H32,DEBUT!$G$5:$J$100,3,FALSE),\"\")","v":0},{"$f":"IFERROR(VLOOKUP(H32,DEBUT!$G$5:$J$100,4,FALSE),\"\")","v":0}]
[{"$f":"IF($B$2=APPEL!$B$1,VLOOKUP(B33,APPEL!$C$3:$D$38,2,FALSE),IF($B$2=APPEL!$E$1,VLOOKUP(B33,APPEL!$F$3:$G$38,2,FALSE),IF($B$2=APPEL!$H$1,VLOOKUP(B33,APPEL!$I$3:$J$38,2,FALSE),IF($B$2=APPEL!$K$1,VLOOKUP(B33,APPEL!$L$3:$M$38,2,FALSE),IF($B$2=APPEL!$N$1,VLOOKUP(B33,APPEL!$O$3:$P$38,2,FALSE),IF($B$2=APPEL!$Q$1,VLOOKUP(B33,APPEL!$R$3:$S$38,2,FALSE),IF($B$2=APPEL!$T$1,VLOOKUP(B33,APPEL!$U$3:$V$38,2,FALSE),IF($B$2=APPEL!$W$1,VLOOKUP(B33,APPEL!$X$3:$Y$38,2,FALSE),IF($B$2=APPEL!$Z$1,VLOOKUP(B33,APPEL!$AA$3:$AB$38,2,FALSE))))))))))","v":{"$error":"#N/A"}},{"$f":"IF($B$2=APPEL!$B$1,APPEL!C31,IF($B$2=APPEL!$E$1,APPEL!F31,IF($B$2=APPEL!$H$1,APPEL!I31,IF($B$2=APPEL!$K$1,APPEL!L31,IF($B$2=APPEL!$N$1,APPEL!O31,IF($B$2=APPEL!$Q$1,APPEL!R31,IF($B$2=APPEL!$T$1,APPEL!U31,IF($B$2=APPEL!$W$1,APPEL!X31,IF($B$2=APPEL!$Z$1,APPEL!AA31)))))))))","v":0},null,null,{"$f":"IFERROR(VLOOKUP(D33,DEBUT!$B$5:$E$100,2,FALSE),\"\")","v":""},{"$f":"IFERROR(VLOOKUP(D33,DEBUT!$B$5:$E$100,3,FALSE),\"\")","v":""},{"$f":"IFERROR(VLOOKUP(D33,DEBUT!$B$5:$E$100,4,FALSE),\"\")","v":""},null,{"$f":"IFERROR(VLOOKUP(H33,DEBUT!$G$5:$J$100,2,FALSE),\"\")","v":"Insuffisant"},{"$f":"IFERROR(VLOOKUP(H33,DEBUT!$G$5:$J$100,3,FALSE),\"\")","v":0},{"$f":"IFERROR(VLOOKUP(H33,DEBUT!$G$5:$J$100,4,FALSE),\"\")","v":0}]
[{"$f":"IF($B$2=APPEL!$B$1,VLOOKUP(B34,APPEL!$C$3:$D$38,2,FALSE),IF($B$2=APPEL!$E$1,VLOOKUP(B34,APPEL!$F$3:$G$38,2,FALSE),IF($B$2=APPEL!$H$1,VLOOKUP(B34,APPEL!$I$3:$J$38,2,FALSE),IF($B$2=APPEL!$K$1,VLOOKUP(B34,APPEL!$L$3:$M$38,2,FALSE),IF($B$2=APPEL!$N$1,VLOOKUP(B34,APPEL!$O$3:$P$38,2,FALSE),IF($B$2=APPEL!$Q$1,VLOOKUP(B34,APPEL!$R$3:$S$38,2,FALSE),IF($B$2=APPEL!$T$1,VLOOKUP(B34,APPEL!$U$3:$V$38,2,FALSE),IF($B$2=APPEL!$W$1,VLOOKUP(B34,APPEL!$X$3:$Y$38,2,FALSE),IF($B$2=APPEL!$Z$1,VLOOKUP(B34,APPEL!$AA$3:$AB$38,2,FALSE))))))))))","v":{"$error":"#N/A"}},{"$f":"IF($B$2=APPEL!$B$1,APPEL!C32,IF($B$2=APPEL!$E$1,APPEL!F32,IF($B$2=APPEL!$H$1,APPEL!I32,IF($B$2=APPEL!$K$1,APPEL!L32,IF($B$2=APPEL!$N$1,APPEL!O32,IF($B$2=APPEL!$Q$1,APPEL!R32,IF($B$2=APPEL!$T$1,APPEL!U32,IF($B$2=APPEL!$W$1,APPEL!X32,IF($B$2=APPEL!$Z$1,APPEL!AA32)))))))))","v":0},null,null,{"$f":"IFERROR(VLOOKUP(D34,DEBUT!$B$5:$E$100,2,FALSE),\"\")","v":""},{"$f":"IFERROR(VLOOKUP(D34,DEBUT!$B$5:$E$100,3,FALSE),\"\")","v":""},{"$f":"IFERROR(VLOOKUP(D34,DEBUT!$B$5:$E$100,4,FALSE),\"\")","v":""},null,{"$f":"IFERROR(VLOOKUP(H34,DEBUT!$G$5:$J$100,2,FALSE),\"\")","v":"Insuffisant"},{"$f":"IFERROR(VLOOKUP(H34,DEBUT!$G$5:$J$100,3,FALSE),\"\")","v":0},{"$f":"IFERROR(VLOOKUP(H34,DEBUT!$G$5:$J$100,4,FALSE),\"\")","v":0}]
[{"$f":"IF($B$2=APPEL!$B$1,VLOOKUP(B35,APPEL!$C$3:$D$38,2,FALSE),IF($B$2=APPEL!$E$1,VLOOKUP(B35,APPEL!$F$3:$G$38,2,FALSE),IF($B$2=APPEL!$H$1,VLOOKUP(B35,APPEL!$I$3:$J$38,2,FALSE),IF($B$2=APPEL!$K$1,VLOOKUP(B35,APPEL!$L$3:$M$38,2,FALSE),IF($B$2=APPEL!$N$1,VLOOKUP(B35,APPEL!$O$3:$P$38,2,FALSE),IF($B$2=APPEL!$Q$1,VLOOKUP(B35,APPEL!$R$3:$S$38,2,FALSE),IF($B$2=APPEL!$T$1,VLOOKUP(B35,APPEL!$U$3:$V$38,2,FALSE),IF($B$2=APPEL!$W$1,VLOOKUP(B35,APPEL!$X$3:$Y$38,2,FALSE),IF($B$2=APPEL!$Z$1,VLOOKUP(B35,APPEL!$AA$3:$AB$38,2,FALSE))))))))))","v":{"$error":"#N/A"}},{"$f":"IF($B$2=APPEL!$B$1,APPEL!C33,IF($B$2=APPEL!$E$1,APPEL!F33,IF($B$2=APPEL!$H$1,APPEL!I33,IF($B$2=APPEL!$K$1,APPEL!L33,IF($B$2=APPEL!$N$1,APPEL!O33,IF($B$2=APPEL!$Q$1,APPEL!R33,IF($B$2=APPEL!$T$1,APPEL!U33,IF($B$2=APPEL!$W$1,APPEL!X33,IF($B$2=APPEL!$Z$1,APPEL!AA33)))))))))","v":0},null,null,{"$f":"IFERROR(VLOOKUP(D35,DEBUT!$B$5:$E$100,2,FALSE),\"\")","v":""},{"$f":"IFERROR(VLOOKUP(D35,DEBUT!$B$5:$E$100,3,FALSE),\"\")","v":""},{"$f":"IFERROR(VLOOKUP(D35,DEBUT!$B$5:$E$100,4,FALSE),\"\")","v":""},null,{"$f":"IFERROR(VLOOKUP(H35,DEBUT!$G$5:$J$100,2,FALSE),\"\")","v":"Insuffisant"},{"$f":"IFERROR(VLOOKUP(H35,DEBUT!$G$5:$J$100,3,FALSE),\"\")","v":0},{"$f":"IFERROR(VLOOKUP(H35,DEBUT!$G$5:$J$100,4,FALSE),\"\")","v":0}]
[{"$f":"IF($B$2=APPEL!$B$1,VLOOKUP(B36,APPEL!$C$3:$D$38,2,FALSE),IF($B$2=APPEL!$E$1,VLOOKUP(B36,APPEL!$F$3:$G$38,2,FALSE),IF($B$2=APPEL!$H$1,VLOOKUP(B36,APPEL!$I$3:$J$38,2,FALSE),IF($B$2=APPEL!$K$1,VLOOKUP(B36,APPEL!$L$3:$M$38,2,FALSE),IF($B$2=APPEL!$N$1,VLOOKUP(B36,APPEL!$O$3:$P$38,2,FALSE),IF($B$2=APPEL!$Q$1,VLOOKUP(B36,APPEL!$R$3:$S$38,2,FALSE),IF($B$2=APPEL!$T$1,VLOOKUP(B36,APPEL!$U$3:$V$38,2,FALSE),IF($B$2=APPEL!$W$1,VLOOKUP(B36,APPEL!$X$3:$Y$38,2,FALSE),IF($B$2=APPEL!$Z$1,VLOOKUP(B36,APPEL!$AA$3:$AB$38,2,FALSE))))))))))","v":{"$error":"#N/A"}},{"$f":"IF($B$2=APPEL!$B$1,APPEL!C34,IF($B$2=APPEL!$E$1,APPEL!F34,IF($B$2=APPEL!$H$1,APPEL!I34,IF($B$2=APPEL!$K$1,APPEL!L34,IF($B$2=APPEL!$N$1,APPEL!O34,IF($B$2=APPEL!$Q$1,APPEL!R34,IF($B$2=APPEL!$T$1,APPEL!U34,IF($B$2=APPEL!$W$1,APPEL!X34,IF($B$2=APPEL!$Z$1,APPEL!AA34)))))))))","v":0},null,null,{"$f":"IFERROR(VLOOKUP(D36,DEBUT!$B$5:$E$100,2,FALSE),\"\")","v":""},{"$f":"IFERROR(VLOOKUP(D36,DEBUT!$B$5:$E$100,3,FALSE),\"\")","v":""},{"$f":"IFERROR(VLOOKUP(D36,DEBUT!$B$5:$E$100,4,FALSE),\"\")","v":""},null,{"$f":"IFERROR(VLOOKUP(H36,DEBUT!$G$5:$J$100,2,FALSE),\"\")","v":"Insuffisant"},{"$f":"IFERROR(VLOOKUP(H36,DEBUT!$G$5:$J$100,3,FALSE),\"\")","v":0},{"$f":"IFERROR(VLOOKUP(H36,DEBUT!$G$5:$J$100,4,FALSE),\"\")","v":0}]

{"sheet":"SAELEVE1","index":3,"n_rows":19,"n_cols":11,"rows_kept":19,"cut":false,"hidden":false,"merged":[[15,2,15,10],[16,2,16,10],[17,2,17,10],[18,2,18,10],[14,9,14,10],[14,5,14,8],[13,2,13,4],[14,2,14,4],[13,9,13,10],[13,5,13,8],[7,17,7,18],[8,2,8,6],[8,7,8,10],[9,2,9,6],[9,7,9,10],[12,2,12,10],[4,2,4,6],[4,7,4,10],[5,2,7,6],[5,7,5,10],[6,7,6,10],[7,7,7,10],[2,2,3,2],[2,3,3,4],[2,6,2,9],[2,10,3,10],[3,6,3,9]]}
[null,null,null,"Situation d'apprentissage"]
[]
[null,null,{"$f":"VLOOKUP($D$3,SAMICBIS!$A$3:$T$70,4,FALSE)","v":"BAD"},"Max Tirs en 1'",null,"Obj",{"$f":"VLOOKUP($D$3,SAMICBIS!$A$3:$T$70,5,FALSE)","v":"Améliorer la qualité du tir en course"},null,null,null,{"$f":"VLOOKUP($D$3,SAMICBIS!$A$3:$T$70,2,FALSE)","v":"T1'"}]
[null,null,null,null,null,"But",{"$f":"VLOOKUP($D$3,SAMICBIS!$A$3:$T$70,6,FALSE)","v":"Marquer le plus de paniers possibles en 1 minute"}]
[null,null,"Schéma / Matériel nécessaire",null,null,null,null,"Matériel nécessaire"]
[null,null,null,null,null,null,null,{"$f":"VLOOKUP($D$3,SAMICBIS!$A$3:$T$70,13,FALSE)","v":"2 ballons (1 chacun). 1 panier. 2 plots. 1 chrono. 1 tablette."}]
[null,null,null,null,null,null,null,"Consignes"]
[null,null,null,null,null,null,null,{"$f":"CONCATENATE(VLOOKUP($D$3,SAMICBIS!$A$3:$T$70,8,FALSE),\"  -  \",VLOOKUP($D$3,SAMICBIS!$A$3:$T$70,10,FALSE))","v":"Mini défi 1 contre 1. Les joueurs se placent à leur plot. AU signal d'un camarade ils dribblent pour aller shooter au panier. Que le tir soit réussi ou non, les 2 joueurs retournent faire le tour du plot en dribblant pour tenter un nouveau tir. Ils tournent pendant 1 minute. chacun compte son score en même temps que les observateurs et le relève sur la tablette à la fin. 2 nouveaux élèves passent quand la minute est finie.  -  Consignes 2"}]
[null,null,"Critères de réussite",null,null,null,null,"Conseils pour réussir"]
[null,null,{"$f":"VLOOKUP($D$3,SAMICBIS!$A$3:$T$70,14,FALSE)","v":"Je réussi au moins 3 tirs à l'arrêt et 5 tirs en course."},null,null,null,null,{"$f":"VLOOKUP($D$3,SAMICBIS!$A$3:$T$70,12,FALSE)","v":"JE dribble rapidement pour pouvoir effectuer plusieurs shoots. Je m'applique sur chaque tir en m'aidant de l'angle du carré de la planche. "}]
[]
[]
[null,null,"ACQUISITIONS PRIORITAIRES"]
[null,null,"Connaissances",null,null,"Capacités",null,null,null,"Attitudes"]
[null,null,{"$f":"VLOOKUP($D$3,SAMICBIS!$A$3:$T$70,16,FALSE)","v":"Cns"},null,null,{"$f":"VLOOKUP($D$3,SAMICBIS!$A$3:$T$70,17,FALSE)","v":"Cap"},null,null,null,{"$f":"VLOOKUP($D$3,SAMICBIS!$A$3:$T$70,18,FALSE)","v":"Att"}]
[null,null,"COMPLEXIFICATION "]
[null,null,{"$f":"VLOOKUP($D$3,SAMICBIS!$A$3:$T$70,19,FALSE)","v":"Cplx"}]
[null,null,"Simplification"]
[null,null,{"$f":"VLOOKUP($D$3,SAMICBIS!$A$3:$T$70,20,FALSE)","v":"Simpli"}]

{"sheet":"REFERENTIELS","index":4,"n_rows":47,"n_cols":7,"rows_kept":47,"cut":false,"hidden":false,"merged":[[44,2,45,2],[44,3,45,3],[46,8,46,9],[25,2,26,2],[25,3,26,3],[27,2,28,2],[27,3,28,3],[29,8,29,9],[30,2,30,9],[37,2,37,3],[37,4,37,9],[38,2,38,3],[38,4,38,9],[39,4,39,5],[39,6,39,9],[40,2,41,2],[40,3,41,3],[42,2,43,2],[3,2,3,3],[4,2,4,3],[20,2,20,3],[21,2,21,3],[42,3,43,3],[3,4,3,9],[4,4,4,9],[13,2,13,9],[5,4,5,5],[5,6,5,9],[20,4,20,9],[8,3,9,3],[6,3,7,3],[6,2,7,2],[8,2,9,2],[10,2,11,2],[10,3,11,3],[12,8,12,9],[21,4,21,9],[22,4,22,5],[22,6,22,9],[23,2,24,2],[23,3,24,3]]}
[]
[]
[null,null,"APSA N3"]
[null,null,"COMPETENCES ATTENDUES",null,"PRINCIPES D’ELABORATION DE L’EPREUVE"]
[]
[null,null,"POINTS A AFFECTER","ELEMENTS A EVALUER","COMPETENCE DE NIVEAU 3 EN COURS D’ACQUISITION\nDe 0 à 09 pts",null,"COMPETENCE DE NIVEAU 3 ACQUISE\nDe 10 à 20 pts"]
[null,null,"05 Points","Performance Individuelle sur 50m.\nTemps individuel sur 50 mètres"]
[]
[null,null,"05 Points","Indice de transmission. Différence entre  le meilleur temps réalisé sur 4x50 mètres (2) et la somme des temps des 4 coureurs sur 50m"]
[]
[null,null,"05 Points","Performances sur 4X50m.\nTemps cumulés des 2 4x50m, sans et avec changement de rôle (3)"]
[]
[null,null,"05 Points","Préparation avant l’épreuve et récupération après l’effort.\nEtre capable d’assurer une transmission valide\n(zone de transmission respectée)."]
[null,null,"COMMENTAIRES"]
[null,null,-1]
[]
[]
[]
[]
[null,null,"APSA N4"]
[null,null,"COMPETENCES ATTENDUES",null,"PRINCIPES D’ELABORATION DE L’EPREUVE"]
[]
[null,null,"POINTS A AFFECTER","ELEMENTS A EVALUER","COMPETENCE DE NIVEAU 3 EN COURS D’ACQUISITION\nDe 0 à 09 pts",null,"COMPETENCE DE NIVEAU 3 ACQUISE\nDe 10 à 20 pts"]
[null,null,"05 Points","Performance Individuelle sur 50m.\nTemps individuel sur 50 mètres"]
[]
[null,null,"05 Points","Indice de transmission. Différence entre  le meilleur temps réalisé sur 4x50 mètres (2) et la somme des temps des 4 coureurs sur 50m"]
[]
[null,null,"05 Points","Performances sur 4X50m.\nTemps cumulés des 2 4x50m, sans et avec changement de rôle (3)"]
[]
[null,null,"05 Points","Préparation avant l’épreuve et récupération après l’effort.\nEtre capable d’assurer une transmission valide\n(zone de transmission respectée)."]
[null,null,"COMMENTAIRES"]
[null,null,-1]
[]
[]
[]
[]
[null,null,"APSA EVALUATION CYCLE"]
[null,null,"COMPETENCES ATTENDUES",null,"PRINCIPES D’ELABORATION DE L’EPREUVE"]
[]
[null,null,"POINTS A AFFECTER","ELEMENTS A EVALUER","COMPETENCE DE NIVEAU 3 EN COURS D’ACQUISITION\nDe 0 à 09 pts",null,"COMPETENCE DE NIVEAU 3 ACQUISE\nDe 10 à 20 pts"]
[null,null,"05 Points","Performance Individuelle sur 50m.\nTemps individuel sur 50 mètres"]
[]
[null,null,"05 Points","Indice de transmission. Différence entre  le meilleur temps réalisé sur 4x50 mètres (2) et la somme des temps des 4 coureurs sur 50m"]
[]
[null,null,"05 Points","Performances sur 4X50m.\nTemps cumulés des 2 4x50m, sans et avec changement de rôle (3)"]
[]
[null,null,"05 Points","Préparation avant l’épreuve et récupération après l’effort.\nEtre capable d’assurer une transmission valide\n(zone de transmission respectée)."]

{"sheet":"APPEL","index":5,"n_rows":38,"n_cols":28,"rows_kept":38,"cut":false,"hidden":false,"merged":[[0,19,0,20],[0,22,0,23],[0,25,0,26],[0,1,0,2],[0,4,0,5],[0,7,0,8],[0,10,0,11],[0,13,0,14],[0,16,0,17]]}
[null,"1TU-GA",null,null,"1TU-GA2",null,null,"STAGE",null,null,"1EVS",null,null,"1GA",null,null,"1TU",null,null,"STAGE",null,null,"classe8",null,null,"classe9"]
[null,"NOMS","PRENOMS","sexe","NOMS","PRENOMS","sexe","NOMS","PRENOMS","sexe","NOMS","PRENOMS","sexe","NOMS","PRENOMS","sexe","NOMS","PRENOMS","sexe","NOMS","PRENOMS","sexe","NOMS","PRENOMS","sexe","NOMS","PRENOMS","sexe"]
[1,null,"Abraham","g",null,"Ali Malek","g",null,"Christine"]
[2,null,"Aimane","f",null,"Aline","f",null,"Eric"]
[3,null,"Amel","f",null,"Alya","f",null,"Audrey"]
[4,null,"Amira","f",null,"Amine","g",null,"Julien"]
[5,null,"Anis","g",null,"Badis","g",null,"Marie"]
[6,null,"Beyza","f",null,"Jean-Michaël","g",null,"Nadine"]
[7,null,"Clarky","g",null,"Jessica","f",null,"Sylvain"]
[8,null,"Djamel","g",null,"Kaïna","f",null,"Céline"]
[9,null,"Dounia","f",null,"Katy","f",null,"Paul"]
[10,null,"Eyat","g",null,"Léonard","g",null,"Sandrine"]
[11,null,"Fatima-Zohra","f",null,"Marinho","g",null,"Isa"]
[12,null,"Hana","f",null,"Mervé","f"]
[13,null,"Ikram","f",null,"Mouhamadou Moustapha","g"]
[14,null,"Jairzhino","g",null,"Rayane","g"]
[15,null,"Mergim","f",null,"Sania","f"]
[16,null,"Myriam","f",null,"Sonia","f"]
[17,null,"Serone","f",null,"Suzana","f"]
[18,null,"Suha","f",null,"Thomas","g"]
[19,null,"Yassine","g"]
[20]
[21]
[22]
[23]
[24]
[25]
[26]
[27]
[28]
[29]
[30]
[31]
[32]
[33]
[34]
[35]
[36]

{"sheet":"DEBUT","index":6,"n_rows":13,"n_cols":28,"rows_kept":13,"cut":false,"hidden":false,"merged":[[0,1,2,4],[0,11,2,16],[0,6,2,9]]}
[null,null,null,null,null,null,"BAREME POINTS MATCH",null,null,null,null,"MES DONNES DE VALIDATION MODIFIABLES"]
[]
[]
[null,"Points marqués","CRITERE 2","CRITERE 3","CRITERE 4",null,"POINTS","COMPETENCE","C3","C4",null,"DV1","DV2","DV3","DV4","DV5","DV6","DV7","DV8","DV9","DV10","DV11","DV12","DV13","DV14","DV15","DV16","DV17"]
[]
[null,100,null,null,null,null,0,"Insuffisant"]
[null,10,null,null,null,null,9,"Insuffisant"]
[null,1,null,null,null,null,10,"Fragile"]
[null,null,null,null,null,null,60,"Fragile"]
[null,null,null,null,null,null,61,"Satisfaisant"]
[null,null,null,null,null,null,99,"Satisfaisant"]
[null,null,null,null,null,null,100,"Très bonne maitrise"]
[null,null,null,null,null,null,1000,"Très bonne maitrise"]

{"sheet":"SAMICBIS","index":7,"n_rows":5,"n_cols":20,"rows_kept":5,"cut":false,"hidden":false,"merged":[]}
[null,null,null,null,null,null,null,null,"Taille schéma PC : 1,25x2,26",null,"Taille schéma tablette : 1,85x3,4\"",null,null,null,null,null,null,null,null,"Conseil pour "]
["nom SA","n° SA","OBJ GENERAL","APSA","Obj SA","But","Type SA","Consignes","Schéma","Consignes 2","Schéma 2","Réussir","Matériel ","CR","Intérêt SA","Connaissances","Capacités","Attitudes","Complexification","Simplification"]
["Max Tirs en 1'","T1'","Améliorer la qualité du tir en course. Construire une continuité dribble-tir","BAD","Améliorer la qualité du tir en course","Marquer le plus de paniers possibles en 1 minute","Défi","Mini défi 1 contre 1. Les joueurs se placent à leur plot. AU signal d'un camarade ils dribblent pour aller shooter au panier. Que le tir soit réussi ou non, les 2 joueurs retournent faire le tour du plot en dribblant pour tenter un nouveau tir. Ils tournent pendant 1 minute. chacun compte son score en même temps que les observateurs et le relève sur la tablette à la fin. 2 nouveaux élèves passent quand la minute est finie.",null,"Consignes 2",null,"JE dribble rapidement pour pouvoir effectuer plusieurs shoots. Je m'applique sur chaque tir en m'aidant de l'angle du carré de la planche. ","2 ballons (1 chacun). 1 panier. 2 plots. 1 chrono. 1 tablette.","Je réussi au moins 3 tirs à l'arrêt et 5 tirs en course.","Intérêt SA","Cns","Cap","Att","Cplx","Simpli"]
["1000 plots",1000]
["PASSE et VA","PVA"]